Workbook

Sheet Main
B10: 2018-03-14
B12: Sheet No. | C12: Template Name | D12: Summary
B13: 1 | C13: Future Intra | D13: For Intraday trading in F&O segment
B14: 2 | C14: Cash Intra | D14: For Intraday trading in cash market segment
B15: 3 | C15: Mid-cap Intra | D15: For Intraday trading in Mid-cap stocks
B16: 4 | C16: Bulk Deals | D16: Reveals Bulk Deals carried on NSE & BSE
B17: 5 | C17: Call Tracker

Sheet Future Intra
M5: Back to Main Page
A6: FOR INTRA DAY TRADING | L6: =Main!B10 -> 2018-03-14
A9: Sr.no | B9: Sector | C9: Scrip | D9: CLOSE RATE | E9: Pivot Point | F9: Supports | I9: Resistances
B10: Sector | D10: Point | E10: Point | F10: S1 | G10: S2 | H10: S3 | I10: R1 | J10: R2 | K10: R3 | L10: HIGH | M10: LOW | N10: OI | O10: % Change in OI
A11: 1 | B11: Index | C11: BANKNIFTY | D11: 24816.10 | E11: 24847.37 | F11: 24604.73 | G11: 24393.37 | H11: 24150.73 | I11: 25058.73 | J11: 25301.37 | K11: 25512.73 | L11: 25090 | M11: 24636 | N11: 2057360 | O11: -3.72%
A12: 2 | B12: Index | C12: NIFTY | D12: 10426.40 | E12: 10430.30 | F12: 10370.60 | G12: 10314.80 | H12: 10255.10 | I12: 10486.10 | J12: 10545.80 | K12: 10601.60 | L12: 10490 | M12: 10374.5 | N12: 25617900 | O12: -0.89%
A13: 3 | B13: Index | C13: NIFTYCPSE | D13: 2729.20 | E13: 909.73 | F13: 1819.47 | G13: 909.73 | H13: 1819.47 | I13: 1819.47 | J13: 909.73 | K13: 1819.47 | L13: 0 | M13: 0 | N13: 0 | O13: 0.00%
A14: 4 | B14: Index | C14: NIFTYINFRA | D14: 3662.60 | E14: 1220.87 | F14: 2441.73 | G14: 1220.87 | H14: 2441.73 | I14: 2441.73 | J14: 1220.87 | K14: 2441.73 | L14: 0 | M14: 0 | N14: 0 | O14: 0.00%
A15: 5 | B15: Index | C15: NIFTYIT | D15: 12758.00 | E15: 12783.67 | F15: 12667.33 | G15: 12576.67 | H15: 12460.33 | I15: 12874.33 | J15: 12990.67 | K15: 13081.33 | L15: 12900 | M15: 12693 | N15: 51600 | O15: 13.28%
A16: 6 | B16: Index | C16: NIFTYMID50 | D16: 5080.00 | E16: 5080.00 | F16: 5080.00 | G16: 5080.00 | H16: 5080.00 | I16: 5080.00 | J16: 5080.00 | K16: 5080.00 | L16: 5080 | M16: 5080 | N16: 513600 | O16: -0.04%
A17: 7 | B17: Index | C17: NIFTYPSE | D17: 4378.20 | E17: 1459.40 | F17: 2918.80 | G17: 1459.40 | H17: 2918.80 | I17: 2918.80 | J17: 1459.40 | K17: 2918.80 | L17: 0 | M17: 0 | N17: 0 | O17: 0.00%
A18: 8 | B18: Cement | C18: ACC | D18: 1580.40 | E18: 1576.57 | F18: 1566.63 | G18: 1552.87 | H18: 1542.93 | I18: 1590.33 | J18: 1600.27 | K18: 1614.03 | L18: 1586.5 | M18: 1562.8 | N18: 1415600 | O18: -4.87%
A19: 9 | B19: Others | C19: ADANIENT | D19: 160.05 | E19: 160.78 | F19: 156.67 | G19: 153.28 | H19: 149.17 | I19: 164.17 | J19: 168.28 | K19: 171.67 | L19: 164.9 | M19: 157.4 | N19: 21324000 | O19: 3.03%
A20: 10 | B20: Others | C20: ADANIPORTS | D20: 386.75 | E20: 387.40 | F20: 382.00 | G20: 377.25 | H20: 371.85 | I20: 392.15 | J20: 397.55 | K20: 402.30 | L20: 392.8 | M20: 382.65 | N20: 14305000 | O20: -1.70%
A21: 11 | B21: Power | C21: ADANIPOWER | D21: 26.80 | E21: 26.67 | F21: 25.98 | G21: 25.17 | H21: 24.48 | I21: 27.48 | J21: 28.17 | K21: 28.98 | L21: 27.35 | M21: 25.85 | N21: 99420000 | O21: -0.08%
A22: 12 | B22: Pharma | C22: AJANTPHARM | D22: 1386.40 | E22: 1378.53 | F22: 1360.07 | G22: 1333.73 | H22: 1315.27 | I22: 1404.87 | J22: 1423.33 | K22: 1449.67 | L22: 1397 | M22: 1352.2 | N22: 650500 | O22: -0.99%
A23: 13 | B23: Banking | C23: ALBK | D23: 48.25 | E23: 47.75 | F23: 45.30 | G23: 42.35 | H23: 39.90 | I23: 50.70 | J23: 53.15 | K23: 56.10 | L23: 50.2 | M23: 44.8 | N23: 16230000 | O23: -0.55%
A24: 14 | B24: Automobile | C24: AMARAJABAT | D24: 805.75 | E24: 811.68 | F24: 796.72 | G24: 787.68 | H24: 772.72 | I24: 820.72 | J24: 835.68 | K24: 844.72 | L24: 826.65 | M24: 802.65 | N24: 1293600 | O24: 7.69%
A25: 15 | B25: Cement | C25: AMBUJACEM | D25: 240.00 | E25: 241.28 | F25: 237.22 | G25: 234.43 | H25: 230.37 | I25: 244.07 | J25: 248.13 | K25: 250.92 | L25: 245.35 | M25: 238.5 | N25: 13270000 | O25: 2.18%
A26: 16 | B26: Banking | C26: ANDHRABANK | D26: 39.90 | E26: 38.12 | F26: 35.83 | G26: 31.77 | H26: 29.48 | I26: 42.18 | J26: 44.47 | K26: 48.53 | L26: 40.4 | M26: 34.05 | N26: 25590000 | O26: -20.97%
A27: 17 | B27: Others | C27: APOLLOHOSP | D27: 1101.10 | E27: 1109.97 | F27: 1085.13 | G27: 1069.17 | H27: 1044.33 | I27: 1125.93 | J27: 1150.77 | K27: 1166.73 | L27: 1134.8 | M27: 1094 | N27: 1043000 | O27: 14.43%
A28: 18 | B28: Automobile | C28: APOLLOTYRE | D28: 265.45 | E28: 264.85 | F28: 261.20 | G28: 256.95 | H28: 253.30 | I28: 269.10 | J28: 272.75 | K28: 277.00 | L28: 268.5 | M28: 260.6 | N28: 12297000 | O28: 2.24%
A29: 19 | B29: Textile | C29: ARVIND | D29: 401.30 | E29: 401.83 | F29: 396.17 | G29: 391.03 | H29: 385.37 | I29: 406.97 | J29: 412.63 | K29: 417.77 | L29: 407.5 | M29: 396.7 | N29: 5416000 | O29: 3.24%
A30: 20 | B30: Automobile | C30: ASHOKLEY | D30: 150.05 | E30: 148.32 | F30: 146.13 | G30: 142.22 | H30: 140.03 | I30: 152.23 | J30: 154.42 | K30: 158.33 | L30: 150.5 | M30: 144.4 | N30: 60221000 | O30: -0.15%
A31: 21 | B31: FMCG | C31: ASIANPAINT | D31: 1143.20 | E31: 1141.40 | F31: 1134.80 | G31: 1126.40 | H31: 1119.80 | I31: 1149.80 | J31: 1156.40 | K31: 1164.80 | L31: 1148 | M31: 1133 | N31: 3804600 | O31: -2.10%
A32: 22 | B32: Pharma | C32: AUROPHARMA | D32: 584.45 | E32: 584.42 | F32: 578.83 | G32: 573.22 | H32: 567.63 | I32: 590.03 | J32: 595.62 | K32: 601.23 | L32: 590 | M32: 578.8 | N32: 23226400 | O32: 1.26%
A33: 23 | B33: Banking | C33: AXISBANK | D33: 532.30 | E33: 528.25 | F33: 520.50 | G33: 508.70 | H33: 500.95 | I33: 540.05 | J33: 547.80 | K33: 559.60 | L33: 536 | M33: 516.45 | N33: 40581600 | O33: -4.63%
A34: 24 | B34: Automobile | C34: BAJAJ-AUTO | D34: 2982.80 | E34: 2987.92 | F34: 2959.88 | G34: 2936.97 | H34: 2908.93 | I34: 3010.83 | J34: 3038.87 | K34: 3061.78 | L34: 3015.95 | M34: 2965 | N34: 2124500 | O34: 0.18%
A35: 25 | B35: Others | C35: BAJAJFINSV | D35: 5114.45 | E35: 5091.48 | F35: 5049.12 | G35: 4983.78 | H35: 4941.42 | I35: 5156.82 | J35: 5199.18 | K35: 5264.52 | L35: 5133.85 | M35: 5026.15 | N35: 704750 | O35: -0.53%
A36: 26 | B36: Finance | C36: BAJFINANCE | D36: 1686.45 | E36: 1687.25 | F36: 1668.60 | G36: 1650.75 | H36: 1632.10 | I36: 1705.10 | J36: 1723.75 | K36: 1741.60 | L36: 1705.9 | M36: 1669.4 | N36: 5486000 | O36: -1.18%
A37: 27 | B37: Others | C37: BALKRISIND | D37: 1053.35 | E37: 1050.58 | F37: 1043.37 | G37: 1033.38 | H37: 1026.17 | I37: 1060.57 | J37: 1067.78 | K37: 1077.77 | L37: 1057.8 | M37: 1040.6 | N37: 1048000 | O37: -2.31%
A38: 28 | B38: Others | C38: BALRAMCHIN | D38: 90.70 | E38: 89.27 | F38: 86.53 | G38: 82.37 | H38: 79.63 | I38: 93.43 | J38: 96.17 | K38: 100.33 | L38: 92 | M38: 85.1 | N38: 16740500 | O38: -1.36%
A39: 29 | B39: Banking | C39: BANKBARODA | D39: 141.70 | E39: 139.37 | F39: 133.83 | G39: 125.97 | H39: 120.43 | I39: 147.23 | J39: 152.77 | K39: 160.63 | L39: 144.9 | M39: 131.5 | N39: 63616000 | O39: -4.81%
A40: 30 | B40: Banking | C40: BANKINDIA | D40: 102.65 | E40: 102.38 | F40: 94.82 | G40: 86.98 | H40: 79.42 | I40: 110.22 | J40: 117.78 | K40: 125.62 | L40: 109.95 | M40: 94.55 | N40: 32304000 | O40: 16.06%
A41: 31 | B41: FMCG | C41: BATAINDIA | D41: 718.80 | E41: 715.58 | F41: 710.17 | G41: 701.53 | H41: 696.12 | I41: 724.22 | J41: 729.63 | K41: 738.27 | L41: 721 | M41: 706.95 | N41: 2212100 | O41: 5.07%
A42: 32 | B42: Capital_Goods | C42: BEL | D42: 151.95 | E42: 151.53 | F42: 150.42 | G42: 148.88 | H42: 147.77 | I42: 153.07 | J42: 154.18 | K42: 155.72 | L42: 152.65 | M42: 150 | N42: 25571700 | O42: 2.79%
A43: 33 | B43: Infrastructure | C43: BEML | D43: 1109.90 | E43: 1117.27 | F43: 1095.63 | G43: 1081.37 | H43: 1059.73 | I43: 1131.53 | J43: 1153.17 | K43: 1167.43 | L43: 1138.9 | M43: 1103 | N43: 2632200 | O43: -3.56%
A44: 34 | B44: Others | C44: BERGEPAINT | D44: 247.80 | E44: 247.58 | F44: 246.32 | G44: 244.83 | H44: 243.57 | I44: 249.07 | J44: 250.33 | K44: 251.82 | L44: 248.85 | M44: 246.1 | N44: 1133000 | O44: -4.63%
A45: 35 | B45: Finance | C45: BHARATFIN | D45: 1059.40 | E45: 1062.00 | F45: 1049.50 | G45: 1039.60 | H45: 1027.10 | I45: 1071.90 | J45: 1084.40 | K45: 1094.30 | L45: 1074.5 | M45: 1052.1 | N45: 5328000 | O45: -2.09%
A46: 36 | B46: Automobile | C46: BHARATFORG | D46: 741.05 | E46: 741.35 | F46: 730.70 | G46: 720.35 | H46: 709.70 | I46: 751.70 | J46: 762.35 | K46: 772.70 | L46: 752 | M46: 731 | N46: 6783600 | O46: -0.02%
A47: 37 | B47: Telecom | C47: BHARTIARTL | D47: 426.95 | E47: 425.43 | F47: 421.52 | G47: 416.08 | H47: 412.17 | I47: 430.87 | J47: 434.78 | K47: 440.22 | L47: 429.35 | M47: 420 | N47: 56407700 | O47: -1.86%
A48: 38 | B48: Capital_Goods | C48: BHEL | D48: 87.30 | E48: 87.32 | F48: 86.43 | G48: 85.57 | H48: 84.68 | I48: 88.18 | J48: 89.07 | K48: 89.93 | L48: 88.2 | M48: 86.45 | N48: 49282500 | O48: 1.69%
A49: 39 | B49: Pharma | C49: BIOCON | D49: 605.00 | E49: 600.52 | F49: 589.48 | G49: 573.97 | H49: 562.93 | I49: 616.03 | J49: 627.07 | K49: 642.58 | L49: 611.55 | M49: 585 | N49: 7799400 | O49: 2.53%
A50: 40 | B50: Automobile | C50: BOSCHLTD | D50: 18482.60 | E50: 18418.87 | F50: 18313.73 | G50: 18144.87 | H50: 18039.73 | I50: 18587.73 | J50: 18692.87 | K50: 18861.73 | L50: 18524 | M50: 18250 | N50: 149000 | O50: 1.43%
A51: 41 | B51: Oil_Gas | C51: BPCL | D51: 463.85 | E51: 458.57 | F51: 451.78 | G51: 439.72 | H51: 432.93 | I51: 470.63 | J51: 477.42 | K51: 489.48 | L51: 465.35 | M51: 446.5 | N51: 9756000 | O51: -2.95%
A52: 42 | B52: FMCG | C52: BRITANNIA | D52: 4895.15 | E52: 4884.50 | F52: 4863.85 | G52: 4832.55 | H52: 4811.90 | I52: 4915.80 | J52: 4936.45 | K52: 4967.75 | L52: 4905.15 | M52: 4853.2 | N52: 853000 | O52: 2.35%
A53: 43 | B53: Pharma | C53: CADILAHC | D53: 390.90 | E53: 391.02 | F53: 386.23 | G53: 381.57 | H53: 376.78 | I53: 395.68 | J53: 400.47 | K53: 405.13 | L53: 395.8 | M53: 386.35 | N53: 5697600 | O53: -0.78%
A54: 44 | B54: Banking | C54: CANBK | D54: 252.95 | E54: 250.00 | F54: 237.00 | G54: 221.05 | H54: 208.05 | I54: 265.95 | J54: 278.95 | K54: 294.90 | L54: 263 | M54: 234.05 | N54: 14633600 | O54: 0.18%
A55: 45 | B55: Others | C55: CANFINHOME | D55: 541.65 | E55: 534.18 | F55: 523.77 | G55: 505.88 | H55: 495.47 | I55: 552.07 | J55: 562.48 | K55: 580.37 | L55: 544.6 | M55: 516.3 | N55: 5965000 | O55: 4.42%
A56: 46 | B56: Finance | C56: CAPF | D56: 651.20 | E56: 649.07 | F56: 642.38 | G56: 633.57 | H56: 626.88 | I56: 657.88 | J56: 664.57 | K56: 673.38 | L56: 655.75 | M56: 640.25 | N56: 7951200 | O56: 2.72%
A57: 47 | B57: Oil_Gas | C57: CASTROLIND | D57: 206.00 | E57: 206.40 | F57: 204.25 | G57: 202.50 | H57: 200.35 | I57: 208.15 | J57: 210.30 | K57: 212.05 | L57: 208.55 | M57: 204.65 | N57: 11572400 | O57: -2.52%
A58: 48 | B58: Automobile | C58: CEATLTD | D58: 1605.50 | E58: 1589.27 | F58: 1568.68 | G58: 1531.87 | H58: 1511.28 | I58: 1626.08 | J58: 1646.67 | K58: 1683.48 | L58: 1609.85 | M58: 1552.45 | N58: 1100750 | O58: 7.01%
A59: 49 | B59: Textile | C59: CENTURYTEX | D59: 1215.75 | E59: 1206.28 | F59: 1187.67 | G59: 1159.58 | H59: 1140.97 | I59: 1234.37 | J59: 1252.98 | K59: 1281.07 | L59: 1224.9 | M59: 1178.2 | N59: 6304650 | O59: -2.36%
A60: 50 | B60: Power | C60: CESC | D60: 985.15 | E60: 979.02 | F60: 966.33 | G60: 947.52 | H60: 934.83 | I60: 997.83 | J60: 1010.52 | K60: 1029.33 | L60: 991.7 | M60: 960.2 | N60: 6274950 | O60: -0.50%
A61: 51 | B61: Power | C61: CGPOWER | D61: 82.55 | E61: 81.97 | F61: 80.93 | G61: 79.32 | H61: 78.28 | I61: 83.58 | J61: 84.62 | K61: 86.23 | L61: 83 | M61: 80.35 | N61: 21528000 | O61: -0.44%
A62: 52 | B62: Others | C62: CHENNPETRO | D62: 367.80 | E62: 362.70 | F62: 354.55 | G62: 341.30 | H62: 333.15 | I62: 375.95 | J62: 384.10 | K62: 397.35 | L62: 370.85 | M62: 349.45 | N62: 2620500 | O62: -3.80%
A63: 53 | B63: Others | C63: CHOLAFIN | D63: 1452.05 | E63: 1453.55 | F63: 1439.70 | G63: 1427.35 | H63: 1413.50 | I63: 1465.90 | J63: 1479.75 | K63: 1492.10 | L63: 1467.4 | M63: 1441.2 | N63: 505500 | O63: 2.85%
A64: 54 | B64: Pharma | C64: CIPLA | D64: 580.70 | E64: 580.77 | F64: 576.58 | G64: 572.47 | H64: 568.28 | I64: 584.88 | J64: 589.07 | K64: 593.18 | L64: 584.95 | M64: 576.65 | N64: 7838000 | O64: -1.15%
A65: 55 | B65: Others | C65: COALINDIA | D65: 278.30 | E65: 278.07 | F65: 273.93 | G65: 269.57 | H65: 265.43 | I65: 282.43 | J65: 286.57 | K65: 290.93 | L65: 282.2 | M65: 273.7 | N65: 17833200 | O65: 2.95%
A66: 56 | B66: FMCG | C66: COLPAL | D66: 1044.60 | E66: 1043.87 | F66: 1037.78 | G66: 1030.97 | H66: 1024.88 | I66: 1050.68 | J66: 1056.77 | K66: 1063.58 | L66: 1049.95 | M66: 1037.05 | N66: 1258600 | O66: -0.06%
A67: 57 | B67: Others | C67: CONCOR | D67: 1248.70 | E67: 1246.83 | F67: 1238.27 | G67: 1227.83 | H67: 1219.27 | I67: 1257.27 | J67: 1265.83 | K67: 1276.27 | L67: 1255.4 | M67: 1236.4 | N67: 1080000 | O67: 4.16%
A68: 58 | B68: Capital_Goods | C68: CUMMINSIND | D68: 777.50 | E68: 779.75 | F68: 771.95 | G68: 766.40 | H68: 758.60 | I68: 785.30 | J68: 793.10 | K68: 798.65 | L68: 787.55 | M68: 774.2 | N68: 690000 | O68: 6.19%
A69: 59 | B69: FMCG | C69: DABUR | D69: 327.20 | E69: 328.90 | F69: 324.10 | G69: 321.00 | H69: 316.20 | I69: 332.00 | J69: 336.80 | K69: 339.90 | L69: 333.7 | M69: 325.8 | N69: 13892500 | O69: 3.41%
A70: 60 | B70: Cement | C70: DALMIABHA | D70: 2871.50 | E70: 2872.97 | F70: 2851.93 | G70: 2832.37 | H70: 2811.33 | I70: 2892.53 | J70: 2913.57 | K70: 2933.13 | L70: 2894 | M70: 2853.4 | N70: 772500 | O70: -6.26%
A71: 61 | B71: Banking | C71: DCBBANK | D71: 164.35 | E71: 163.87 | F71: 160.88 | G71: 157.42 | H71: 154.43 | I71: 167.33 | J71: 170.32 | K71: 173.78 | L71: 166.85 | M71: 160.4 | N71: 5247000 | O71: 2.19%
A72: 62 | B72: Finance | C72: DHFL | D72: 518.70 | E72: 520.17 | F72: 511.83 | G72: 504.97 | H72: 496.63 | I72: 527.03 | J72: 535.37 | K72: 542.23 | L72: 528.5 | M72: 513.3 | N72: 26455500 | O72: -1.78%
A73: 63 | B73: Media | C73: DISHTV | D73: 66.85 | E73: 66.65 | F73: 65.50 | G73: 64.15 | H73: 63.00 | I73: 68.00 | J73: 69.15 | K73: 70.50 | L73: 67.8 | M73: 65.3 | N73: 48398000 | O73: 1.19%
A74: 64 | B74: Pharma | C74: DIVISLAB | D74: 1041.50 | E74: 1035.37 | F74: 1015.88 | G74: 990.27 | H74: 970.78 | I74: 1060.98 | J74: 1080.47 | K74: 1106.08 | L74: 1054.85 | M74: 1009.75 | N74: 2206400 | O74: -0.36%
A75: 65 | B75: Realty | C75: DLF | D75: 220.80 | E75: 220.23 | F75: 216.07 | G75: 211.33 | H75: 207.17 | I75: 224.97 | J75: 229.13 | K75: 233.87 | L75: 224.4 | M75: 215.5 | N75: 49895000 | O75: 0.57%
A76: 66 | B76: Pharma | C76: DRREDDY | D76: 2191.80 | E76: 2181.88 | F76: 2159.32 | G76: 2126.83 | H76: 2104.27 | I76: 2214.37 | J76: 2236.93 | K76: 2269.42 | L76: 2204.45 | M76: 2149.4 | N76: 4212000 | O76: -0.25%
A77: 67 | B77: Automobile | C77: EICHERMOT | D77: 28890.15 | E77: 28718.78 | F77: 28497.57 | G77: 28104.98 | H77: 27883.77 | I77: 29111.37 | J77: 29332.58 | K77: 29725.17 | L77: 28940 | M77: 28326.2 | N77: 212525 | O77: -0.75%
A78: 68 | B78: Infrastructure | C78: ENGINERSIN | D78: 165.40 | E78: 164.60 | F78: 162.10 | G78: 158.80 | H78: 156.30 | I78: 167.90 | J78: 170.40 | K78: 173.70 | L78: 167.1 | M78: 161.3 | N78: 9345000 | O78: 1.02%
A79: 69 | B79: Finance | C79: EQUITAS | D79: 142.40 | E79: 142.50 | F79: 141.00 | G79: 139.60 | H79: 138.10 | I79: 143.90 | J79: 145.40 | K79: 146.80 | L79: 144 | M79: 141.1 | N79: 20182400 | O79: 1.64%
A80: 70 | B80: Automobile | C80: ESCORTS | D80: 858.90 | E80: 860.27 | F80: 851.88 | G80: 844.87 | H80: 836.48 | I80: 867.28 | J80: 875.67 | K80: 882.68 | L80: 868.65 | M80: 853.25 | N80: 2800600 | O80: 6.88%
A81: 71 | B81: Automobile | C81: EXIDEIND | D81: 214.75 | E81: 214.85 | F81: 212.70 | G81: 210.65 | H81: 208.50 | I81: 216.90 | J81: 219.05 | K81: 221.10 | L81: 217 | M81: 212.8 | N81: 10804000 | O81: 0.45%
A82: 72 | B82: Banking | C82: FEDERALBNK | D82: 96.40 | E82: 95.93 | F82: 94.27 | G82: 92.13 | H82: 90.47 | I82: 98.07 | J82: 99.73 | K82: 101.87 | L82: 97.6 | M82: 93.8 | N82: 54626000 | O82: -2.68%
A83: 73 | B83: Others | C83: FORTIS | D83: 152.95 | E83: 151.98 | F83: 149.52 | G83: 146.08 | H83: 143.62 | I83: 155.42 | J83: 157.88 | K83: 161.32 | L83: 154.45 | M83: 148.55 | N83: 33246500 | O83: -3.15%
A84: 74 | B84: Oil_Gas | C84: GAIL | D84: 456.05 | E84: 452.23 | F84: 447.32 | G84: 438.58 | H84: 433.67 | I84: 460.97 | J84: 465.88 | K84: 474.62 | L84: 457.15 | M84: 443.5 | N84: 12784000 | O84: 1.20%
A85: 75 | B85: Pharma | C85: GLENMARK | D85: 539.30 | E85: 538.32 | F85: 534.98 | G85: 530.67 | H85: 527.33 | I85: 542.63 | J85: 545.97 | K85: 550.28 | L85: 541.65 | M85: 534 | N85: 5799600 | O85: 0.31%
A86: 76 | B86: Infrastructure | C86: GMRINFRA | D86: 17.70 | E86: 17.60 | F86: 17.35 | G86: 17.00 | H86: 16.75 | I86: 17.95 | J86: 18.20 | K86: 18.55 | L86: 17.85 | M86: 17.25 | N86: 300510000 | O86: 0.01%
A87: 77 | B87: Others | C87: GODFRYPHLP | D87: 876.00 | E87: 863.25 | F87: 846.60 | G87: 817.20 | H87: 800.55 | I87: 892.65 | J87: 909.30 | K87: 938.70 | L87: 879.9 | M87: 833.85 | N87: 657500 | O87: -4.36%
A88: 78 | B88: FMCG | C88: GODREJCP | D88: 1096.95 | E88: 1093.15 | F88: 1083.80 | G88: 1070.65 | H88: 1061.30 | I88: 1106.30 | J88: 1115.65 | K88: 1128.80 | L88: 1102.5 | M88: 1080 | N88: 2462400 | O88: 3.08%
A89: 79 | B89: FMCG | C89: GODREJIND | D89: 549.40 | E89: 546.08 | F89: 540.67 | G89: 531.93 | H89: 526.52 | I89: 554.82 | J89: 560.23 | K89: 568.97 | L89: 551.5 | M89: 537.35 | N89: 2269500 | O89: -2.51%
A90: 80 | B90: Pharma | C90: GRANULES | D90: 110.50 | E90: 110.42 | F90: 108.53 | G90: 106.57 | H90: 104.68 | I90: 112.38 | J90: 114.27 | K90: 116.23 | L90: 112.3 | M90: 108.45 | N90: 16480000 | O90: -1.17%
A91: 81 | B91: Cement | C91: GRASIM | D91: 1114.50 | E91: 1112.22 | F91: 1105.73 | G91: 1096.97 | H91: 1090.48 | I91: 1120.98 | J91: 1127.47 | K91: 1136.23 | L91: 1118.7 | M91: 1103.45 | N91: 4494000 | O91: 4.10%
A92: 82 | B92: Others | C92: GSFC | D92: 124.00 | E92: 123.92 | F92: 122.28 | G92: 120.57 | H92: 118.93 | I92: 125.63 | J92: 127.27 | K92: 128.98 | L92: 125.55 | M92: 122.2 | N92: 19489500 | O92: 0.02%
A93: 83 | B93: Others | C93: HAVELLS | D93: 514.95 | E93: 513.47 | F93: 507.93 | G93: 500.92 | H93: 495.38 | I93: 520.48 | J93: 526.02 | K93: 533.03 | L93: 519 | M93: 506.45 | N93: 4532000 | O93: -4.15%
A94: 84 | B94: Others | C94: HCC | D94: 31.85 | E94: 31.78 | F94: 31.32 | G94: 30.78 | H94: 30.32 | I94: 32.32 | J94: 32.78 | K94: 33.32 | L94: 32.25 | M94: 31.25 | N94: 50685000 | O94: 0.90%
A95: 85 | B95: Technology | C95: HCLTECH | D95: 959.25 | E95: 960.60 | F95: 948.95 | G95: 938.65 | H95: 927.00 | I95: 970.90 | J95: 982.55 | K95: 992.85 | L95: 972.25 | M95: 950.3 | N95: 10705100 | O95: -1.12%
A96: 86 | B96: Finance | C96: HDFC | D96: 1864.15 | E96: 1864.33 | F96: 1850.17 | G96: 1836.18 | H96: 1822.02 | I96: 1878.32 | J96: 1892.48 | K96: 1906.47 | L96: 1878.5 | M96: 1850.35 | N96: 17856500 | O96: 0.53%
A97: 87 | B97: Banking | C97: HDFCBANK | D97: 1867.35 | E97: 1872.27 | F97: 1857.03 | G97: 1846.72 | H97: 1831.48 | I97: 1882.58 | J97: 1897.82 | K97: 1908.13 | L97: 1887.5 | M97: 1861.95 | N97: 16512500 | O97: 1.09%
A98: 88 | B98: Realty | C98: HDIL | D98: 44.35 | E98: 43.90 | F98: 41.60 | G98: 38.85 | H98: 36.55 | I98: 46.65 | J98: 48.95 | K98: 51.70 | L98: 46.2 | M98: 41.15 | N98: 34524000 | O98: 4.52%
A99: 89 | B99: Automobile | C99: HEROMOTOCO | D99: 3700.35 | E99: 3703.45 | F99: 3676.90 | G99: 3653.45 | H99: 3626.90 | I99: 3726.90 | J99: 3753.45 | K99: 3776.90 | L99: 3730 | M99: 3680 | N99: 1387800 | O99: 0.84%
A100: 90 | B100: Technology | C100: HEXAWARE | D100: 368.55 | E100: 367.78 | F100: 364.07 | G100: 359.58 | H100: 355.87 | I100: 372.27 | J100: 375.98 | K100: 380.47 | L100: 371.5 | M100: 363.3 | N100: 4626000 | O100: 11.50%
A101: 91 | B101: Metals | C101: HINDALCO | D101: 226.30 | E101: 226.00 | F101: 223.50 | G101: 220.70 | H101: 218.20 | I101: 228.80 | J101: 231.30 | K101: 234.10 | L101: 228.5 | M101: 223.2 | N101: 48422500 | O101: -4.72%
A102: 92 | B102: Oil_Gas | C102: HINDPETRO | D102: 381.80 | E102: 378.08 | F102: 370.87 | G102: 359.93 | H102: 352.72 | I102: 389.02 | J102: 396.23 | K102: 407.17 | L102: 385.3 | M102: 367.15 | N102: 22428000 | O102: -2.89%
A103: 93 | B103: FMCG | C103: HINDUNILVR | D103: 1321.75 | E103: 1324.52 | F103: 1313.38 | G103: 1305.02 | H103: 1293.88 | I103: 1332.88 | J103: 1344.02 | K103: 1352.38 | L103: 1335.65 | M103: 1316.15 | N103: 8266200 | O103: -2.84%
A104: 94 | B104: Metals | C104: HINDZINC | D104: 311.25 | E104: 310.22 | F104: 306.68 | G104: 302.12 | H104: 298.58 | I104: 314.78 | J104: 318.32 | K104: 322.88 | L104: 313.75 | M104: 305.65 | N104: 14464000 | O104: 2.66%
A105: 95 | B105: Finance | C105: IBULHSGFIN | D105: 1236.30 | E105: 1236.38 | F105: 1217.92 | G105: 1199.53 | H105: 1181.07 | I105: 1254.77 | J105: 1273.23 | K105: 1291.62 | L105: 1254.85 | M105: 1218 | N105: 16962800 | O105: -0.40%
A106: 96 | B106: Banking | C106: ICICIBANK | D106: 305.05 | E106: 304.48 | F106: 301.07 | G106: 297.08 | H106: 293.67 | I106: 308.47 | J106: 311.88 | K106: 315.87 | L106: 307.9 | M106: 300.5 | N106: 85852250 | O106: -0.34%
A107: 97 | B107: Others | C107: ICICIPRULI | D107: 387.65 | E107: 387.32 | F107: 383.33 | G107: 379.02 | H107: 375.03 | I107: 391.63 | J107: 395.62 | K107: 399.93 | L107: 391.3 | M107: 383 | N107: 5545800 | O107: 6.65%
A108: 98 | B108: Banking | C108: IDBI | D108: 67.45 | E108: 65.95 | F108: 61.10 | G108: 54.75 | H108: 49.90 | I108: 72.30 | J108: 77.15 | K108: 83.50 | L108: 70.8 | M108: 59.6 | N108: 39510000 | O108: -1.13%
A109: 99 | B109: Telecom | C109: IDEA | D109: 81.05 | E109: 80.48 | F109: 79.12 | G109: 77.18 | H109: 75.82 | I109: 82.42 | J109: 83.78 | K109: 85.72 | L109: 81.85 | M109: 78.55 | N109: 107639000 | O109: -0.17%
A110: 100 | B110: Finance | C110: IDFC | D110: 51.40 | E110: 51.05 | F110: 50.30 | G110: 49.20 | H110: 48.45 | I110: 52.15 | J110: 52.90 | K110: 54.00 | L110: 51.8 | M110: 49.95 | N110: 169593600 | O110: -1.82%
A111: 101 | B111: Banking | C111: IDFCBANK | D111: 50.35 | E111: 50.23 | F111: 49.77 | G111: 49.18 | H111: 48.72 | I111: 50.82 | J111: 51.28 | K111: 51.87 | L111: 50.7 | M111: 49.65 | N111: 181386000 | O111: 0.53%
A112: 102 | B112: Finance | C112: IFCI | D112: 21.90 | E112: 21.82 | F112: 20.83 | G112: 19.77 | H112: 18.78 | I112: 22.88 | J112: 23.87 | K112: 24.93 | L112: 22.8 | M112: 20.75 | N112: 90398000 | O112: 2.93%
A113: 103 | B113: Oil_Gas | C113: IGL | D113: 304.90 | E113: 303.83 | F113: 302.17 | G113: 299.43 | H113: 297.77 | I113: 306.57 | J113: 308.23 | K113: 310.97 | L113: 305.5 | M113: 301.1 | N113: 5109500 | O113: -0.59%
A114: 104 | B114: Cement | C114: INDIACEM | D114: 151.00 | E114: 150.97 | F114: 148.68 | G114: 146.37 | H114: 144.08 | I114: 153.28 | J114: 155.57 | K114: 157.88 | L114: 153.25 | M114: 148.65 | N114: 24608500 | O114: -1.92%
A115: 105 | B115: Banking | C115: INDIANB | D115: 294.35 | E115: 292.82 | F115: 278.68 | G115: 263.02 | H115: 248.88 | I115: 308.48 | J115: 322.62 | K115: 338.28 | L115: 306.95 | M115: 277.15 | N115: 5260000 | O115: -1.35%
A116: 106 | B116: Others | C116: INDIGO | D116: 1300.00 | E116: 1282.40 | F116: 1257.80 | G116: 1215.60 | H116: 1191.00 | I116: 1324.60 | J116: 1349.20 | K116: 1391.40 | L116: 1307 | M116: 1240.2 | N116: 2488800 | O116: 6.14%
A117: 107 | B117: Banking | C117: INDUSINDBK | D117: 1725.75 | E117: 1728.85 | F117: 1709.15 | G117: 1692.55 | H117: 1672.85 | I117: 1745.45 | J117: 1765.15 | K117: 1781.75 | L117: 1748.55 | M117: 1712.25 | N117: 5700600 | O117: -2.15%
A118: 108 | B118: Technology | C118: INFIBEAM | D118: 152.10 | E118: 152.63 | F118: 150.52 | G118: 148.93 | H118: 146.82 | I118: 154.22 | J118: 156.33 | K118: 157.92 | L118: 154.75 | M118: 151.05 | N118: 35568000 | O118: -0.66%
A119: 109 | B119: Telecom | C119: INFRATEL | D119: 347.15 | E119: 343.87 | F119: 340.13 | G119: 333.12 | H119: 329.38 | I119: 350.88 | J119: 354.62 | K119: 361.63 | L119: 347.6 | M119: 336.85 | N119: 6176100 | O119: -8.90%
A120: 110 | B120: Technology | C120: INFY | D120: 1182.90 | E120: 1185.07 | F120: 1172.93 | G120: 1162.97 | H120: 1150.83 | I120: 1195.03 | J120: 1207.17 | K120: 1217.13 | L120: 1197.2 | M120: 1175.1 | N120: 38131800 | O120: 0.15%
A121: 111 | B121: Oil_Gas | C121: IOC | D121: 401.00 | E121: 400.52 | F121: 395.73 | G121: 390.47 | H121: 385.68 | I121: 405.78 | J121: 410.57 | K121: 415.83 | L121: 405.3 | M121: 395.25 | N121: 26169000 | O121: 22.17%
A122: 112 | B122: Infrastructure | C122: IRB | D122: 216.95 | E122: 217.72 | F122: 214.43 | G122: 211.92 | H122: 208.63 | I122: 220.23 | J122: 223.52 | K122: 226.03 | L122: 221 | M122: 215.2 | N122: 15080000 | O122: 4.76%
A123: 113 | B123: FMCG | C123: ITC | D123: 269.60 | E123: 270.07 | F123: 267.33 | G123: 265.07 | H123: 262.33 | I123: 272.33 | J123: 275.07 | K123: 277.33 | L123: 272.8 | M123: 267.8 | N123: 84208800 | O123: -2.72%
A124: 114 | B124: Others | C124: JETAIRWAYS | D124: 702.60 | E124: 700.80 | F124: 690.80 | G124: 679.00 | H124: 669.00 | I124: 712.60 | J124: 722.60 | K124: 734.40 | L124: 710.8 | M124: 689 | N124: 6121200 | O124: -2.22%
A125: 115 | B125: Metals | C125: JINDALSTEL | D125: 230.90 | E125: 232.02 | F125: 226.63 | G125: 222.37 | H125: 216.98 | I125: 236.28 | J125: 241.67 | K125: 245.93 | L125: 237.4 | M125: 227.75 | N125: 38727000 | O125: -2.13%
A126: 116 | B126: Others | C126: JISLJALEQS | D126: 110.55 | E126: 110.05 | F126: 108.10 | G126: 105.65 | H126: 103.70 | I126: 112.50 | J126: 114.45 | K126: 116.90 | L126: 112 | M126: 107.6 | N126: 42093000 | O126: 4.37%
A127: 117 | B127: Realty | C127: JPASSOCIAT | D127: 14.95 | E127: 14.90 | F127: 14.35 | G127: 13.75 | H127: 13.20 | I127: 15.50 | J127: 16.05 | K127: 16.65 | L127: 15.45 | M127: 14.3 | N127: 223890000 | O127: -1.29%
A128: 118 | B128: Metals | C128: JSWSTEEL | D128: 304.05 | E128: 301.92 | F128: 298.63 | G128: 293.22 | H128: 289.93 | I128: 307.33 | J128: 310.62 | K128: 316.03 | L128: 305.2 | M128: 296.5 | N128: 66306000 | O128: -0.14%
A129: 119 | B129: Others | C129: JUBLFOOD | D129: 2070.70 | E129: 2076.45 | F129: 2046.90 | G129: 2023.10 | H129: 1993.55 | I129: 2100.25 | J129: 2129.80 | K129: 2153.60 | L129: 2106 | M129: 2052.65 | N129: 2340000 | O129: 0.84%
A130: 120 | B130: Others | C130: JUSTDIAL | D130: 442.05 | E130: 439.95 | F130: 430.25 | G130: 418.45 | H130: 408.75 | I130: 451.75 | J130: 461.45 | K130: 473.25 | L130: 449.65 | M130: 428.15 | N130: 4580800 | O130: 1.74%
A131: 121 | B131: Others | C131: KAJARIACER | D131: 572.35 | E131: 573.47 | F131: 567.43 | G131: 562.52 | H131: 556.48 | I131: 578.38 | J131: 584.42 | K131: 589.33 | L131: 579.5 | M131: 568.55 | N131: 1680000 | O131: 2.59%
A132: 122 | B132: Banking | C132: KOTAKBANK | D132: 1089.40 | E132: 1095.12 | F132: 1077.08 | G132: 1064.77 | H132: 1046.73 | I132: 1107.43 | J132: 1125.47 | K132: 1137.78 | L132: 1113.15 | M132: 1082.8 | N132: 10972800 | O132: -2.69%
A133: 123 | B133: Technology | C133: KPIT | D133: 220.20 | E133: 219.93 | F133: 217.67 | G133: 215.13 | H133: 212.87 | I133: 222.47 | J133: 224.73 | K133: 227.27 | L133: 222.2 | M133: 217.4 | N133: 10669500 | O133: 0.42%
A134: 124 | B134: Others | C134: KSCL | D134: 488.35 | E134: 488.05 | F134: 482.20 | G134: 476.05 | H134: 470.20 | I134: 494.20 | J134: 500.05 | K134: 506.20 | L134: 493.9 | M134: 481.9 | N134: 2872500 | O134: -0.62%
A135: 125 | B135: Banking | C135: KTKBANK | D135: 120.80 | E135: 120.07 | F135: 115.78 | G135: 110.77 | H135: 106.48 | I135: 125.08 | J135: 129.37 | K135: 134.38 | L135: 124.35 | M135: 115.05 | N135: 23522000 | O135: 2.06%
A136: 126 | B136: Finance | C136: L&TFH | D136: 164.95 | E136: 164.38 | F136: 162.57 | G136: 160.18 | H136: 158.37 | I136: 166.77 | J136: 168.58 | K136: 170.97 | L136: 166.2 | M136: 162 | N136: 34897500 | O136: -0.06%
A137: 127 | B137: Finance | C137: LICHSGFIN | D137: 514.35 | E137: 507.05 | F137: 498.10 | G137: 481.85 | H137: 472.90 | I137: 523.30 | J137: 532.25 | K137: 548.50 | L137: 516 | M137: 490.8 | N137: 15649700 | O137: -2.51%
A138: 128 | B138: Capital_Goods | C138: LT | D138: 1307.95 | E138: 1311.03 | F138: 1297.07 | G138: 1286.18 | H138: 1272.22 | I138: 1321.92 | J138: 1335.88 | K138: 1346.77 | L138: 1325 | M138: 1300.15 | N138: 12964500 | O138: -0.39%
A139: 129 | B139: Pharma | C139: LUPIN | D139: 783.90 | E139: 781.17 | F139: 773.58 | G139: 763.27 | H139: 755.68 | I139: 791.48 | J139: 799.07 | K139: 809.38 | L139: 788.75 | M139: 770.85 | N139: 13936800 | O139: -0.72%
A140: 130 | B140: Automobile | C140: M&M | D140: 736.45 | E140: 738.33 | F140: 731.72 | G140: 726.98 | H140: 720.37 | I140: 743.07 | J140: 749.68 | K140: 754.42 | L140: 744.95 | M140: 733.6 | N140: 15146000 | O140: 0.48%
A141: 131 | B141: Finance | C141: M&MFIN | D141: 429.45 | E141: 425.82 | F141: 417.63 | G141: 405.82 | H141: 397.63 | I141: 437.63 | J141: 445.82 | K141: 457.63 | L141: 434 | M141: 414 | N141: 8157500 | O141: 9.88%
A142: 132 | B142: Others | C142: MANAPPURAM | D142: 105.70 | E142: 105.53 | F142: 104.17 | G142: 102.63 | H142: 101.27 | I142: 107.07 | J142: 108.43 | K142: 109.97 | L142: 106.9 | M142: 104 | N142: 23358000 | O142: 0.52%
A143: 133 | B143: FMCG | C143: MARICO | D143: 309.65 | E143: 310.18 | F143: 307.42 | G143: 305.18 | H143: 302.42 | I143: 312.42 | J143: 315.18 | K143: 317.42 | L143: 312.95 | M143: 307.95 | N143: 4594200 | O143: 2.14%
A144: 134 | B144: Automobile | C144: MARUTI | D144: 8791.85 | E144: 8796.12 | F144: 8721.53 | G144: 8651.22 | H144: 8576.63 | I144: 8866.43 | J144: 8941.02 | K144: 9011.33 | L144: 8870.7 | M144: 8725.8 | N144: 2592525 | O144: 1.15%
A145: 135 | B145: FMCG | C145: MCDOWELL-N | D145: 3096.65 | E145: 3112.25 | F145: 3049.50 | G145: 3002.35 | H145: 2939.60 | I145: 3159.40 | J145: 3222.15 | K145: 3269.30 | L145: 3175 | M145: 3065.1 | N145: 2240250 | O145: -3.95%
A146: 136 | B146: Others | C146: MCX | D146: 755.35 | E146: 750.50 | F146: 742.00 | G146: 728.65 | H146: 720.15 | I146: 763.85 | J146: 772.35 | K146: 785.70 | L146: 759 | M146: 737.15 | N146: 3395500 | O146: -0.24%
A147: 137 | B147: Finance | C147: MFSL | D147: 474.05 | E147: 476.03 | F147: 469.52 | G147: 464.98 | H147: 458.47 | I147: 480.57 | J147: 487.08 | K147: 491.62 | L147: 482.55 | M147: 471.5 | N147: 2941000 | O147: 0.86%
A148: 138 | B148: Others | C148: MGL | D148: 1023.15 | E148: 1023.90 | F148: 1015.95 | G148: 1008.75 | H148: 1000.80 | I148: 1031.10 | J148: 1039.05 | K148: 1046.25 | L148: 1031.85 | M148: 1016.7 | N148: 1098000 | O148: 3.27%
A149: 139 | B149: Technology | C149: MINDTREE | D149: 804.75 | E149: 809.77 | F149: 793.48 | G149: 782.22 | H149: 765.93 | I149: 821.03 | J149: 837.32 | K149: 848.58 | L149: 826.05 | M149: 798.5 | N149: 2115600 | O149: -1.40%
A150: 140 | B150: Automobile | C150: MOTHERSUMI | D150: 320.30 | E150: 320.50 | F150: 316.50 | G150: 312.70 | H150: 308.70 | I150: 324.30 | J150: 328.30 | K150: 332.10 | L150: 324.5 | M150: 316.7 | N150: 18888000 | O150: 2.48%
A151: 141 | B151: Automobile | C151: MRF | D151: 72029.40 | E151: 71880.02 | F151: 71325.03 | G151: 70620.67 | H151: 70065.68 | I151: 72584.38 | J151: 73139.37 | K151: 73843.73 | L151: 72435 | M151: 71175.65 | N151: 42825 | O151: 0.74%
A152: 142 | B152: Others | C152: MRPL | D152: 120.25 | E152: 119.13 | F152: 117.62 | G152: 114.98 | H152: 113.47 | I152: 121.77 | J152: 123.28 | K152: 125.92 | L152: 120.65 | M152: 116.5 | N152: 5166000 | O152: -2.05%
A153: 143 | B153: Finance | C153: MUTHOOTFIN | D153: 399.75 | E153: 393.92 | F153: 384.83 | G153: 369.92 | H153: 360.83 | I153: 408.83 | J153: 417.92 | K153: 432.83 | L153: 403 | M153: 379 | N153: 2224500 | O153: -4.51%
A154: 144 | B154: Others | C154: NATIONALUM | D154: 63.95 | E154: 64.03 | F154: 63.22 | G154: 62.48 | H154: 61.67 | I154: 64.77 | J154: 65.58 | K154: 66.32 | L154: 64.85 | M154: 63.3 | N154: 47184000 | O154: -0.10%
A155: 145 | B155: Others | C155: NBCC | D155: 196.05 | E155: 193.18 | F155: 188.87 | G155: 181.68 | H155: 177.37 | I155: 200.37 | J155: 204.68 | K155: 211.87 | L155: 197.5 | M155: 186 | N155: 11940000 | O155: -5.87%
A156: 146 | B156: Infrastructure | C156: NCC | D156: 125.25 | E156: 124.90 | F156: 123.60 | G156: 121.95 | H156: 120.65 | I156: 126.55 | J156: 127.85 | K156: 129.50 | L156: 126.2 | M156: 123.25 | N156: 29920000 | O156: 0.35%
A157: 147 | B157: Others | C157: NESTLEIND | D157: 7726.05 | E157: 7747.02 | F157: 7677.03 | G157: 7628.02 | H157: 7558.03 | I157: 7796.03 | J157: 7866.02 | K157: 7915.03 | L157: 7817 | M157: 7698 | N157: 266200 | O157: 1.14%
A158: 148 | B158: Power | C158: NHPC | D158: 27.15 | E158: 27.03 | F158: 26.82 | G158: 26.48 | H158: 26.27 | I158: 27.37 | J158: 27.58 | K158: 27.92 | L158: 27.25 | M158: 26.7 | N158: 44955000 | O158: -0.72%
A159: 149 | B159: Technology | C159: NIITTECH | D159: 904.80 | E159: 909.88 | F159: 895.92 | G159: 887.03 | H159: 873.07 | I159: 918.77 | J159: 932.73 | K159: 941.62 | L159: 923.85 | M159: 901 | N159: 1342500 | O159: 6.80%
A160: 150 | B160: Metals | C160: NMDC | D160: 122.00 | E160: 121.72 | F160: 120.53 | G160: 119.07 | H160: 117.88 | I160: 123.18 | J160: 124.37 | K160: 125.83 | L160: 122.9 | M160: 120.25 | N160: 36456000 | O160: -0.38%
A161: 151 | B161: Power | C161: NTPC | D161: 169.55 | E161: 169.18 | F161: 167.72 | G161: 165.88 | H161: 164.42 | I161: 171.02 | J161: 172.48 | K161: 174.32 | L161: 170.65 | M161: 167.35 | N161: 29852000 | O161: -0.93%
A162: 152 | B162: Technology | C162: OFSS | D162: 3945.35 | E162: 3939.25 | F162: 3916.70 | G162: 3888.05 | H162: 3865.50 | I162: 3967.90 | J162: 3990.45 | K162: 4019.10 | L162: 3961.8 | M162: 3910.6 | N162: 118050 | O162: -3.67%
A163: 153 | B163: Oil_Gas | C163: OIL | D163: 327.25 | E163: 326.87 | F163: 323.73 | G163: 320.22 | H163: 317.08 | I163: 330.38 | J163: 333.52 | K163: 337.03 | L163: 330 | M163: 323.35 | N163: 2232010 | O163: 5.12%
A164: 154 | B164: Oil_Gas | C164: ONGC | D164: 184.20 | E164: 183.67 | F164: 182.53 | G164: 180.87 | H164: 179.73 | I164: 185.33 | J164: 186.47 | K164: 188.13 | L164: 184.8 | M164: 182 | N164: 33423750 | O164: -1.74%
A165: 155 | B165: Banking | C165: ORIENTBANK | D165: 95.85 | E165: 94.98 | F165: 88.92 | G165: 81.98 | H165: 75.92 | I165: 101.92 | J165: 107.98 | K165: 114.92 | L165: 101.05 | M165: 88.05 | N165: 16146000 | O165: 1.97%
A166: 156 | B166: Textile | C166: PAGEIND | D166: 21939.90 | E166: 21779.28 | F166: 21510.62 | G166: 21081.33 | H166: 20812.67 | I166: 22208.57 | J166: 22477.23 | K166: 22906.52 | L166: 22047.95 | M166: 21350 | N166: 35800 | O166: 0.00%
A167: 157 | B167: Others | C167: PCJEWELLER | D167: 366.20 | E167: 362.07 | F167: 342.33 | G167: 318.47 | H167: 298.73 | I167: 385.93 | J167: 405.67 | K167: 429.53 | L167: 381.8 | M167: 338.2 | N167: 6858000 | O167: -6.18%
A168: 158 | B168: Pharma | C168: PEL | D168: 2483.90 | E168: 2460.72 | F168: 2428.33 | G168: 2372.77 | H168: 2340.38 | I168: 2516.28 | J168: 2548.67 | K168: 2604.23 | L168: 2493.1 | M168: 2405.15 | N168: 2112490 | O168: -2.41%
A169: 159 | B169: Oil_Gas | C169: PETRONET | D169: 240.10 | E169: 237.40 | F169: 234.00 | G169: 227.90 | H169: 224.50 | I169: 243.50 | J169: 246.90 | K169: 253.00 | L169: 240.8 | M169: 231.3 | N169: 17391000 | O169: -1.91%
A170: 160 | B170: Finance | C170: PFC | D170: 90.35 | E170: 90.18 | F170: 88.07 | G170: 85.78 | H170: 83.67 | I170: 92.47 | J170: 94.58 | K170: 96.87 | L170: 92.3 | M170: 87.9 | N170: 71898000 | O170: 3.20%
A171: 161 | B171: FMCG | C171: PIDILITIND | D171: 899.80 | E171: 896.93 | F171: 888.97 | G171: 878.13 | H171: 870.17 | I171: 907.77 | J171: 915.73 | K171: 926.57 | L171: 904.9 | M171: 886.1 | N171: 1306000 | O171: 4.40%
A172: 162 | B172: Banking | C172: PNB | D172: 98.25 | E172: 98.40 | F172: 93.65 | G172: 89.05 | H172: 84.30 | I172: 103.00 | J172: 107.75 | K172: 112.35 | L172: 103.15 | M172: 93.8 | N172: 80132000 | O172: 2.94%
A173: 163 | B173: Power | C173: POWERGRID | D173: 196.00 | E173: 195.97 | F173: 194.23 | G173: 192.47 | H173: 190.73 | I173: 197.73 | J173: 199.47 | K173: 201.23 | L173: 197.7 | M173: 194.2 | N173: 23388000 | O173: -1.45%
A174: 164 | B174: Power | C174: PTC | D174: 94.95 | E174: 94.05 | F174: 91.95 | G174: 88.95 | H174: 86.85 | I174: 97.05 | J174: 99.15 | K174: 102.15 | L174: 96.15 | M174: 91.05 | N174: 23816000 | O174: -1.65%
A175: 165 | B175: Others | C175: PVR | D175: 1328.70 | E175: 1323.02 | F175: 1308.53 | G175: 1288.37 | H175: 1273.88 | I175: 1343.18 | J175: 1357.67 | K175: 1377.83 | L175: 1337.5 | M175: 1302.85 | N175: 603600 | O175: -2.58%
A176: 166 | B176: Cement | C176: RAMCOCEM | D176: 738.60 | E176: 738.15 | F176: 728.30 | G176: 718.00 | H176: 708.15 | I176: 748.45 | J176: 758.30 | K176: 768.60 | L176: 748 | M176: 727.85 | N176: 956800 | O176: 3.28%
A177: 167 | B177: Others | C177: RAYMOND | D177: 929.85 | E177: 931.75 | F177: 922.00 | G177: 914.15 | H177: 904.40 | I177: 939.60 | J177: 949.35 | K177: 957.20 | L177: 941.5 | M177: 923.9 | N177: 4822400 | O177: -1.29%
A178: 168 | B178: Banking | C178: RBLBANK | D178: 468.50 | E178: 469.90 | F178: 463.50 | G178: 458.50 | H178: 452.10 | I178: 474.90 | J178: 481.30 | K178: 486.30 | L178: 476.3 | M178: 464.9 | N178: 4849000 | O178: -2.59%
A179: 169 | B179: Telecom | C179: RCOM | D179: 23.50 | E179: 23.13 | F179: 22.57 | G179: 21.63 | H179: 21.07 | I179: 24.07 | J179: 24.63 | K179: 25.57 | L179: 23.7 | M179: 22.2 | N179: 105868000 | O179: 1.29%
A180: 170 | B180: Capital_Goods | C180: RNAVAL | D180: 36.00 | E180: 35.73 | F180: 34.77 | G180: 33.53 | H180: 32.57 | I180: 36.97 | J180: 37.93 | K180: 39.17 | L180: 36.7 | M180: 34.5 | N180: 39366000 | O180: -2.15%
A181: 171 | B181: Power | C181: RECLTD | D181: 130.55 | E181: 129.72 | F181: 126.83 | G181: 123.12 | H181: 120.23 | I181: 133.43 | J181: 136.32 | K181: 140.03 | L181: 132.6 | M181: 126 | N181: 38688000 | O181: 0.83%
A182: 172 | B182: Finance | C182: RELCAPITAL | D182: 440.60 | E182: 438.15 | F182: 431.50 | G182: 422.40 | H182: 415.75 | I182: 447.25 | J182: 453.90 | K182: 463.00 | L182: 444.8 | M182: 429.05 | N182: 13465500 | O182: -1.77%
A183: 173 | B183: Oil_Gas | C183: RELIANCE | D183: 934.25 | E183: 932.75 | F183: 926.50 | G183: 918.75 | H183: 912.50 | I183: 940.50 | J183: 946.75 | K183: 954.50 | L183: 939 | M183: 925 | N183: 47721000 | O183: -2.07%
A184: 174 | B184: Power | C184: RELINFRA | D184: 451.95 | E184: 446.93 | F184: 437.52 | G184: 423.08 | H184: 413.67 | I184: 461.37 | J184: 470.78 | K184: 485.22 | L184: 456.35 | M184: 432.5 | N184: 10133500 | O184: -1.69%
A185: 175 | B185: Others | C185: REPCOHOME | D185: 571.00 | E185: 566.18 | F185: 559.37 | G185: 547.73 | H185: 540.92 | I185: 577.82 | J185: 584.63 | K185: 596.27 | L185: 573 | M185: 554.55 | N185: 984600 | O185: -5.01%
A186: 176 | B186: Power | C186: RPOWER | D186: 39.55 | E186: 39.37 | F186: 38.33 | G186: 37.12 | H186: 36.08 | I186: 40.58 | J186: 41.62 | K186: 42.83 | L186: 40.4 | M186: 38.15 | N186: 67847000 | O186: 0.50%
A187: 177 | B187: Metals | C187: SAIL | D187: 72.95 | E187: 73.02 | F187: 71.23 | G187: 69.52 | H187: 67.73 | I187: 74.73 | J187: 76.52 | K187: 78.23 | L187: 74.8 | M187: 71.3 | N187: 109080000 | O187: -0.30%
A188: 178 | B188: Banking | C188: SBIN | D188: 255.95 | E188: 256.58 | F188: 249.37 | G188: 242.78 | H188: 235.57 | I188: 263.17 | J188: 270.38 | K188: 276.97 | L188: 263.8 | M188: 250 | N188: 83139000 | O188: 3.59%
A189: 179 | B189: Cement | C189: SHREECEM | D189: 16806.50 | E189: 16620.52 | F189: 16386.03 | G189: 15965.57 | H189: 15731.08 | I189: 17040.98 | J189: 17275.47 | K189: 17695.93 | L189: 16855 | M189: 16200.05 | N189: 71050 | O189: -1.93%
A190: 180 | B190: Capital_Goods | C190: SIEMENS | D190: 1122.85 | E190: 1118.43 | F190: 1107.07 | G190: 1091.28 | H190: 1079.92 | I190: 1134.22 | J190: 1145.58 | K190: 1161.37 | L190: 1129.8 | M190: 1102.65 | N190: 870000 | O190: -0.34%
A191: 181 | B191: Banking | C191: SOUTHBANK | D191: 25.30 | E191: 25.27 | F191: 24.83 | G191: 24.37 | H191: 23.93 | I191: 25.73 | J191: 26.17 | K191: 26.63 | L191: 25.7 | M191: 24.8 | N191: 145853541 | O191: 0.94%
A192: 182 | B192: Others | C192: SREINFRA | D192: 82.70 | E192: 82.65 | F192: 81.30 | G192: 79.90 | H192: 78.55 | I192: 84.05 | J192: 85.40 | K192: 86.80 | L192: 84 | M192: 81.25 | N192: 16520000 | O192: 0.95%
A193: 183 | B193: Textile | C193: SRF | D193: 1869.10 | E193: 1871.95 | F193: 1855.60 | G193: 1842.10 | H193: 1825.75 | I193: 1885.45 | J193: 1901.80 | K193: 1915.30 | L193: 1888.3 | M193: 1858.45 | N193: 487500 | O193: 0.83%
A194: 184 | B194: Finance | C194: SRTRANSFIN | D194: 1362.45 | E194: 1362.03 | F194: 1350.07 | G194: 1337.68 | H194: 1325.72 | I194: 1374.42 | J194: 1386.38 | K194: 1398.77 | L194: 1374 | M194: 1349.65 | N194: 2616600 | O194: 0.21%
A195: 185 | B195: Pharma | C195: STAR | D195: 678.90 | E195: 673.60 | F195: 665.30 | G195: 651.70 | H195: 643.40 | I195: 687.20 | J195: 695.50 | K195: 709.10 | L195: 681.9 | M195: 660 | N195: 3723600 | O195: -0.05%
A196: 186 | B196: Pharma | C196: SUNPHARMA | D196: 524.05 | E196: 521.10 | F196: 515.40 | G196: 506.75 | H196: 501.05 | I196: 529.75 | J196: 535.45 | K196: 544.10 | L196: 526.8 | M196: 512.45 | N196: 58430900 | O196: -1.50%
A197: 187 | B197: Media | C197: SUNTV | D197: 902.05 | E197: 897.60 | F197: 887.20 | G197: 872.35 | H197: 861.95 | I197: 912.45 | J197: 922.85 | K197: 937.70 | L197: 908 | M197: 882.75 | N197: 4271000 | O197: 1.57%
A198: 188 | B198: Power | C198: SUZLON | D198: 11.65 | E198: 11.60 | F198: 11.40 | G198: 11.15 | H198: 10.95 | I198: 11.85 | J198: 12.05 | K198: 12.30 | L198: 11.8 | M198: 11.35 | N198: 354095000 | O198: -0.22%
A199: 189 | B199: Banking | C199: SYNDIBANK | D199: 57.95 | E199: 57.17 | F199: 54.73 | G199: 51.52 | H199: 49.08 | I199: 60.38 | J199: 62.82 | K199: 66.03 | L199: 59.6 | M199: 53.95 | N199: 30825000 | O199: -3.25%
A200: 190 | B200: Fertilisers | C200: TATACHEM | D200: 693.80 | E200: 694.25 | F200: 688.60 | G200: 683.40 | H200: 677.75 | I200: 699.45 | J200: 705.10 | K200: 710.30 | L200: 699.9 | M200: 689.05 | N200: 5760000 | O200: 0.58%
A201: 191 | B201: Telecom | C201: TATACOMM | D201: 635.60 | E201: 634.47 | F201: 627.93 | G201: 620.27 | H201: 613.73 | I201: 642.13 | J201: 648.67 | K201: 656.33 | L201: 641 | M201: 626.8 | N201: 6622400 | O201: -1.33%
A202: 192 | B202: Technology | C202: TATAELXSI | D202: 1016.25 | E202: 1016.02 | F202: 1004.33 | G202: 992.42 | H202: 980.73 | I202: 1027.93 | J202: 1039.62 | K202: 1051.53 | L202: 1027.7 | M202: 1004.1 | N202: 1649600 | O202: 6.29%
A203: 193 | B203: FMCG | C203: TATAGLOBAL | D203: 278.60 | E203: 278.18 | F203: 274.57 | G203: 270.53 | H203: 266.92 | I203: 282.22 | J203: 285.83 | K203: 289.87 | L203: 281.8 | M203: 274.15 | N203: 22657500 | O203: -1.60%
A204: 194 | B204: Automobile | C204: TATAMOTORS | D204: 354.80 | E204: 354.47 | F204: 351.13 | G204: 347.47 | H204: 344.13 | I204: 358.13 | J204: 361.47 | K204: 365.13 | L204: 357.8 | M204: 350.8 | N204: 67290000 | O204: -1.26%
A205: 195 | B205: Automobile | C205: TATAMTRDVR | D205: 198.15 | E205: 198.15 | F205: 196.10 | G205: 194.05 | H205: 192.00 | I205: 200.20 | J205: 202.25 | K205: 204.30 | L205: 200.2 | M205: 196.1 | N205: 30870000 | O205: 0.32%
A206: 196 | B206: Power | C206: TATAPOWER | D206: 81.75 | E206: 81.58 | F206: 80.67 | G206: 79.58 | H206: 78.67 | I206: 82.67 | J206: 83.58 | K206: 84.67 | L206: 82.5 | M206: 80.5 | N206: 62622000 | O206: -0.17%
... 37 more rows

Sheet Cash Intra
M5: Back to Main Page
A6: FOR INTRA DAY TRADING | K6: =Main!B10 -> 2018-03-14
A8: Sr.no | B8: Scrip | C8: CLOSE RATE | D8: Pivot Point | E8: Supports | H8: Resistances
C9: Point | E9: S1 | F9: S2 | G9: S3 | H9: R1 | I9: R2 | J9: R3 | K9: HIGH | L9: LOW | M9: Total Trade Quanity in Lakhs
A10: 1 | B10: Nifty 50 | C10: 10426.85 | D10: 10427.77 | E10: 10376.93 | F10: 10327.02 | G10: 10276.18 | H10: 10477.68 | I10: 10528.52 | J10: 10578.43 | K10: 10478.6 | L10: 10377.85
A11: 2 | B11: Nifty Bank | C11: 24738.65 | D11: 24781.95 | E11: 24554.25 | F11: 24369.85 | G11: 24142.15 | H11: 24966.35 | I11: 25194.05 | J11: 25378.45 | K11: 25009.65 | L11: 24597.55
A12: 3 | B12: Nifty CPSE | C12: 2558.55 | D12: 2550.95 | E12: 2538.70 | F12: 2518.85 | G12: 2506.60 | H12: 2570.80 | I12: 2583.05 | J12: 2602.90 | K12: 2563.2 | L12: 2531.1
A13: 4 | B13: Nifty Infra | C13: 3403.95 | D13: 3401.62 | E13: 3385.33 | F13: 3366.72 | G13: 3350.43 | H13: 3420.23 | I13: 3436.52 | J13: 3455.13 | K13: 3417.9 | L13: 3383
A14: 5 | B14: Nifty IT | C14: 12734.2 | D14: 12746.57 | E14: 12650.93 | F14: 12567.67 | G14: 12472.03 | H14: 12829.83 | I14: 12925.47 | J14: 13008.73 | K14: 12842.2 | L14: 12663.3
A15: 6 | B15: Nifty PSE | C15: 4030.1 | D15: 4015.48 | E15: 3989.57 | F15: 3949.03 | G15: 3923.12 | H15: 4056.02 | I15: 4081.93 | J15: 4122.47 | K15: 4041.4 | L15: 3974.95
A16: 7 | B16: Nifty Midcap 50 | C16: 5057 | D16: 5047.12 | E16: 5005.08 | F16: 4953.17 | G16: 4911.13 | H16: 5099.03 | I16: 5141.07 | J16: 5192.98 | K16: 5089.15 | L16: 4995.2
A17: 8 | B17: ABB | C17: 1410.8 | D17: 1417.55 | E17: 1395.25 | F17: 1379.70 | G17: 1357.40 | H17: 1433.10 | I17: 1455.40 | J17: 1470.95 | K17: 1439.85 | L17: 1402 | M17: 0.38286
A18: 9 | B18: ACC | C18: 1575.35 | D18: 1571.58 | E18: 1561.17 | F18: 1546.98 | G18: 1536.57 | H18: 1585.77 | I18: 1596.18 | J18: 1610.37 | K18: 1582 | L18: 1557.4 | M18: 4.41704
A19: 10 | B19: AIAENG | C19: 1447.9 | D19: 1443.12 | E19: 1432.33 | F19: 1416.77 | G19: 1405.98 | H19: 1458.68 | I19: 1469.47 | J19: 1485.03 | K19: 1453.9 | L19: 1427.55 | M19: 0.08448
A20: 11 | B20: AUBANK | C20: 583.35 | D20: 584.27 | E20: 576.03 | F20: 568.72 | G20: 560.48 | H20: 591.58 | I20: 599.82 | J20: 607.13 | K20: 592.5 | L20: 576.95 | M20: 0.8475
A21: 12 | B21: ADANIENT | C21: 159.75 | D21: 160.42 | E21: 156.33 | F21: 152.92 | G21: 148.83 | H21: 163.83 | I21: 167.92 | J21: 171.33 | K21: 164.5 | L21: 157 | M21: 151.60439
A22: 13 | B22: ADANIPORTS | C22: 385.2 | D22: 385.92 | E22: 380.43 | F22: 375.67 | G22: 370.18 | H22: 390.68 | I22: 396.17 | J22: 400.93 | K22: 391.4 | L22: 381.15 | M22: 21.75696
A23: 14 | B23: ADANIPOWER | C23: 26.7 | D23: 26.57 | E23: 25.93 | F23: 25.17 | G23: 24.53 | H23: 27.33 | I23: 27.97 | J23: 28.73 | K23: 27.2 | L23: 25.8 | M23: 111.66266
A24: 15 | B24: ABFRL | C24: 150.25 | D24: 148.72 | E24: 145.93 | F24: 141.62 | G24: 138.83 | H24: 153.03 | I24: 155.82 | J24: 160.13 | K24: 151.5 | L24: 144.4 | M24: 2.8439
A25: 16 | B25: AJANTPHARM | C25: 1384.95 | D25: 1376.18 | E25: 1357.42 | F25: 1329.88 | G25: 1311.12 | H25: 1403.72 | I25: 1422.48 | J25: 1450.02 | K25: 1394.95 | L25: 1348.65 | M25: 1.32665
A26: 17 | B26: ALKEM | C26: 2197.1 | D26: 2202.00 | E26: 2190.05 | F26: 2183.00 | G26: 2171.05 | H26: 2209.05 | I26: 2221.00 | J26: 2228.05 | K26: 2213.95 | L26: 2194.95 | M26: 0.20999
A27: 18 | B27: AMARAJABAT | C27: 801.95 | D27: 807.88 | E27: 791.17 | F27: 780.38 | G27: 763.67 | H27: 818.67 | I27: 835.38 | J27: 846.17 | K27: 824.6 | L27: 797.1 | M27: 5.82103
A28: 19 | B28: AMBUJACEM | C28: 238.8 | D28: 240.30 | E28: 236.20 | F28: 233.60 | G28: 229.50 | H28: 242.90 | I28: 247.00 | J28: 249.60 | K28: 244.4 | L28: 237.7 | M28: 19.42169
A29: 20 | B29: APOLLOHOSP | C29: 1095.9 | D29: 1105.47 | E29: 1080.43 | F29: 1064.97 | G29: 1039.93 | H29: 1120.93 | I29: 1145.97 | J29: 1161.43 | K29: 1130.5 | L29: 1090 | M29: 3.86569
A30: 21 | B30: APOLLOTYRE | C30: 264.55 | D30: 264.20 | E30: 260.45 | F30: 256.35 | G30: 252.60 | H30: 268.30 | I30: 272.05 | J30: 276.15 | K30: 267.95 | L30: 260.1 | M30: 17.98681
A31: 22 | B31: ARVIND | C31: 399.75 | D31: 400.70 | E31: 395.05 | F31: 390.35 | G31: 384.70 | H31: 405.40 | I31: 411.05 | J31: 415.75 | K31: 406.35 | L31: 396 | M31: 30.48982
A32: 23 | B32: ASHOKLEY | C32: 149.9 | D32: 148.05 | E32: 145.65 | F32: 141.40 | G32: 139.00 | H32: 152.30 | I32: 154.70 | J32: 158.95 | K32: 150.45 | L32: 143.8 | M32: 246.0104
A33: 24 | B33: ASIANPAINT | C33: 1140.3 | D33: 1136.17 | E33: 1129.33 | F33: 1118.37 | G33: 1111.53 | H33: 1147.13 | I33: 1153.97 | J33: 1164.93 | K33: 1143 | L33: 1125.2 | M33: 7.1155
A34: 25 | B34: AUROPHARMA | C34: 581.65 | D34: 582.52 | E34: 576.68 | F34: 571.72 | G34: 565.88 | H34: 587.48 | I34: 593.32 | J34: 598.28 | K34: 588.35 | L34: 577.55 | M34: 22.85767
A35: 26 | B35: DMART | C35: 1337.9 | D35: 1331.57 | E35: 1318.33 | F35: 1298.77 | G35: 1285.53 | H35: 1351.13 | I35: 1364.37 | J35: 1383.93 | K35: 1344.8 | L35: 1312 | M35: 5.29862
A36: 27 | B36: AXISBANK | C36: 531.5 | D36: 527.03 | E36: 519.12 | F36: 506.73 | G36: 498.82 | H36: 539.42 | I36: 547.33 | J36: 559.72 | K36: 534.95 | L36: 514.65 | M36: 78.46232
A37: 28 | B37: BAJAJ-AUTO | C37: 2971.75 | D37: 2976.23 | E37: 2948.47 | F37: 2925.18 | G37: 2897.42 | H37: 2999.52 | I37: 3027.28 | J37: 3050.57 | K37: 3004 | L37: 2952.95 | M37: 2.87288
A38: 29 | B38: BAJFINANCE | C38: 1680.7 | D38: 1681.05 | E38: 1663.25 | F38: 1645.80 | G38: 1628.00 | H38: 1698.50 | I38: 1716.30 | J38: 1733.75 | K38: 1698.85 | L38: 1663.6 | M38: 8.20802
A39: 30 | B39: BAJAJFINSV | C39: 5098.4 | D39: 5078.32 | E39: 5036.68 | F39: 4974.97 | G39: 4933.33 | H39: 5140.03 | I39: 5181.67 | J39: 5243.38 | K39: 5119.95 | L39: 5016.6 | M39: 0.9257
A40: 31 | B40: BALKRISIND | C40: 1049.7 | D40: 1046.12 | E40: 1040.23 | F40: 1030.77 | G40: 1024.88 | H40: 1055.58 | I40: 1061.47 | J40: 1070.93 | K40: 1052 | L40: 1036.65 | M40: 2.5501
A41: 32 | B41: BANKBARODA | C41: 141.55 | D41: 138.97 | E41: 133.63 | F41: 125.72 | G41: 120.38 | H41: 146.88 | I41: 152.22 | J41: 160.13 | K41: 144.3 | L41: 131.05 | M41: 312.16963
A42: 33 | B42: BANKINDIA | C42: 102.15 | D42: 101.87 | E42: 94.38 | F42: 86.62 | G42: 79.13 | H42: 109.63 | I42: 117.12 | J42: 124.88 | K42: 109.35 | L42: 94.1 | M42: 680.02667
A43: 34 | B43: BATAINDIA | C43: 715.35 | D43: 711.37 | E43: 705.28 | F43: 695.22 | G43: 689.13 | H43: 721.43 | I43: 727.52 | J43: 737.58 | K43: 717.45 | L43: 701.3 | M43: 5.66988
A44: 35 | B44: BERGEPAINT | C44: 246.8 | D44: 246.55 | E44: 244.95 | F44: 243.10 | G44: 241.50 | H44: 248.40 | I44: 250.00 | J44: 251.85 | K44: 248.15 | L44: 244.7 | M44: 3.82305
A45: 36 | B45: BEL | C45: 151.55 | D45: 151.12 | E45: 150.03 | F45: 148.52 | G45: 147.43 | H45: 152.63 | I45: 153.72 | J45: 155.23 | K45: 152.2 | L45: 149.6 | M45: 41.55454
A46: 37 | B46: BHARATFIN | C46: 1056.6 | D46: 1060.63 | E46: 1047.27 | F46: 1037.93 | G46: 1024.57 | H46: 1069.97 | I46: 1083.33 | J46: 1092.67 | K46: 1074 | L46: 1051.3 | M46: 6.92305
A47: 38 | B47: BHARATFORG | C47: 737.75 | D47: 738.98 | E47: 727.77 | F47: 717.78 | G47: 706.57 | H47: 748.97 | I47: 760.18 | J47: 770.17 | K47: 750.2 | L47: 729 | M47: 10.32311
A48: 39 | B48: BHEL | C48: 86.9 | D48: 87.00 | E48: 86.20 | F48: 85.50 | G48: 84.70 | H48: 87.70 | I48: 88.50 | J48: 89.20 | K48: 87.8 | L48: 86.3 | M48: 80.51617
A49: 40 | B49: BPCL | C49: 466.65 | D49: 460.20 | E49: 452.00 | F49: 437.35 | G49: 429.15 | H49: 474.85 | I49: 483.05 | J49: 497.70 | K49: 468.4 | L49: 445.55 | M49: 41.70537
A50: 41 | B50: BHARTIARTL | C50: 426.3 | D50: 425.42 | E50: 421.03 | F50: 415.77 | G50: 411.38 | H50: 430.68 | I50: 435.07 | J50: 440.33 | K50: 429.8 | L50: 420.15 | M50: 51.48679
A51: 42 | B51: INFRATEL | C51: 349 | D51: 345.00 | E51: 340.00 | F51: 331.00 | G51: 326.00 | H51: 354.00 | I51: 359.00 | J51: 368.00 | K51: 350 | L51: 336 | M51: 24.91061
A52: 43 | B52: BIOCON | C52: 603.8 | D52: 598.82 | E52: 587.28 | F52: 570.77 | G52: 559.23 | H52: 615.33 | I52: 626.87 | J52: 643.38 | K52: 610.35 | L52: 582.3 | M52: 30.84553
A53: 44 | B53: BOSCHLTD | C53: 18487.9 | D53: 18396.42 | E53: 18292.83 | F53: 18097.77 | G53: 17994.18 | H53: 18591.48 | I53: 18695.07 | J53: 18890.13 | K53: 18500 | L53: 18201.35 | M53: 0.08229
A54: 45 | B54: BRITANNIA | C54: 4869.95 | D54: 4865.77 | E54: 4836.53 | F54: 4803.12 | G54: 4773.88 | H54: 4899.18 | I54: 4928.42 | J54: 4961.83 | K54: 4895 | L54: 4832.35 | M54: 1.09033
A55: 46 | B55: CRISIL | C55: 1954.1 | D55: 1948.03 | E55: 1931.12 | F55: 1908.13 | G55: 1891.22 | H55: 1971.02 | I55: 1987.93 | J55: 2010.92 | K55: 1964.95 | L55: 1925.05 | M55: 0.17083
A56: 47 | B56: CADILAHC | C56: 390.45 | D56: 390.38 | E56: 384.07 | F56: 377.68 | G56: 371.37 | H56: 396.77 | I56: 403.08 | J56: 409.47 | K56: 396.7 | L56: 384 | M56: 8.99152
A57: 48 | B57: CANBK | C57: 252 | D57: 248.87 | E57: 235.98 | F57: 219.97 | G57: 207.08 | H57: 264.88 | I57: 277.77 | J57: 293.78 | K57: 261.75 | L57: 232.85 | M57: 237.87685
A58: 49 | B58: CASTROLIND | C58: 205.75 | D58: 206.47 | E58: 204.23 | F58: 202.72 | G58: 200.48 | H58: 207.98 | I58: 210.22 | J58: 211.73 | K58: 208.7 | L58: 204.95 | M58: 18.22015
A59: 50 | B59: CENTRALBK | C59: 73.45 | D59: 73.93 | E59: 71.62 | F59: 69.78 | G59: 67.47 | H59: 75.77 | I59: 78.08 | J59: 79.92 | K59: 76.25 | L59: 72.1 | M59: 16.12005
A60: 51 | B60: CENTURYTEX | C60: 1214.6 | D60: 1202.45 | E60: 1184.90 | F60: 1155.20 | G60: 1137.65 | H60: 1232.15 | I60: 1249.70 | J60: 1279.40 | K60: 1220 | L60: 1172.75 | M60: 8.13347
A61: 52 | B61: CHOLAFIN | C61: 1446.15 | D61: 1448.32 | E61: 1431.73 | F61: 1417.32 | G61: 1400.73 | H61: 1462.73 | I61: 1479.32 | J61: 1493.73 | K61: 1464.9 | L61: 1433.9 | M61: 1.38429
A62: 53 | B62: CIPLA | C62: 578.75 | D62: 578.93 | E62: 574.97 | F62: 571.18 | G62: 567.22 | H62: 582.72 | I62: 586.68 | J62: 590.47 | K62: 582.9 | L62: 575.15 | M62: 8.01792
A63: 54 | B63: COALINDIA | C63: 294.85 | D63: 294.50 | E63: 290.35 | F63: 285.85 | G63: 281.70 | H63: 299.00 | I63: 303.15 | J63: 307.65 | K63: 298.65 | L63: 290 | M63: 63.06692
A64: 55 | B64: COLPAL | C64: 1044.9 | D64: 1044.28 | E64: 1038.57 | F64: 1032.23 | G64: 1026.52 | H64: 1050.62 | I64: 1056.33 | J64: 1062.67 | K64: 1050 | L64: 1037.95 | M64: 1.78164
A65: 56 | B65: CONCOR | C65: 1241.4 | D65: 1242.50 | E65: 1230.00 | F65: 1218.60 | G65: 1206.10 | H65: 1253.90 | I65: 1266.40 | J65: 1277.80 | K65: 1255 | L65: 1231.1 | M65: 1.90308
A66: 57 | B66: COROMANDEL | C66: 504 | D66: 507.87 | E66: 498.13 | F66: 492.27 | G66: 482.53 | H66: 513.73 | I66: 523.47 | J66: 529.33 | K66: 517.6 | L66: 502 | M66: 1.14688
A67: 58 | B67: CROMPTON | C67: 227.1 | D67: 229.25 | E67: 223.35 | F67: 219.60 | G67: 213.70 | H67: 233.00 | I67: 238.90 | J67: 242.65 | K67: 235.15 | L67: 225.5 | M67: 6.04696
A68: 59 | B68: CUMMINSIND | C68: 773.75 | D68: 775.67 | E68: 766.33 | F68: 758.92 | G68: 749.58 | H68: 783.08 | I68: 792.42 | J68: 799.83 | K68: 785 | L68: 768.25 | M68: 2.57696
A69: 60 | B69: DLF | C69: 219.9 | D69: 219.38 | E69: 215.42 | F69: 210.93 | G69: 206.97 | H69: 223.87 | I69: 227.83 | J69: 232.32 | K69: 223.35 | L69: 214.9 | M69: 64.33609
A70: 61 | B70: DABUR | C70: 325.15 | D70: 327.52 | E70: 321.98 | F70: 318.82 | G70: 313.28 | H70: 330.68 | I70: 336.22 | J70: 339.38 | K70: 333.05 | L70: 324.35 | M70: 26.1847
A71: 62 | B71: DALMIABHA | C71: 2869.35 | D71: 2872.52 | E71: 2847.03 | F71: 2824.72 | G71: 2799.23 | H71: 2894.83 | I71: 2920.32 | J71: 2942.63 | K71: 2898 | L71: 2850.2 | M71: 1.94967
A72: 63 | B72: DHFL | C72: 516.15 | D72: 517.45 | E72: 509.30 | F72: 502.45 | G72: 494.30 | H72: 524.30 | I72: 532.45 | J72: 539.30 | K72: 525.6 | L72: 510.6 | M72: 51.71004
A73: 64 | B73: DISHTV | C73: 66.6 | D73: 66.30 | E73: 65.15 | F73: 63.70 | G73: 62.55 | H73: 67.75 | I73: 68.90 | J73: 70.35 | K73: 67.45 | L73: 64.85 | M73: 18.82238
A74: 65 | B74: DIVISLAB | C74: 1035.45 | D74: 1031.15 | E74: 1012.30 | F74: 989.15 | G74: 970.30 | H74: 1054.30 | I74: 1073.15 | J74: 1096.30 | K74: 1050 | L74: 1008 | M74: 8.39762
A75: 66 | B75: LALPATHLAB | C75: 908.3 | D75: 907.92 | E75: 901.48 | F75: 894.67 | G75: 888.23 | H75: 914.73 | I75: 921.17 | J75: 927.98 | K75: 914.35 | L75: 901.1 | M75: 0.34945
A76: 67 | B76: DRREDDY | C76: 2181.5 | D76: 2172.30 | E76: 2150.45 | F76: 2119.40 | G76: 2097.55 | H76: 2203.35 | I76: 2225.20 | J76: 2256.25 | K76: 2194.15 | L76: 2141.25 | M76: 5.19269
A77: 68 | B77: EDELWEISS | C77: 272.1 | D77: 269.92 | E77: 265.53 | F77: 258.97 | G77: 254.58 | H77: 276.48 | I77: 280.87 | J77: 287.43 | K77: 274.3 | L77: 263.35 | M77: 11.73281
A78: 69 | B78: EICHERMOT | C78: 28849.35 | D78: 28607.12 | E78: 28294.23 | F78: 27739.12 | G78: 27426.23 | H78: 29162.23 | I78: 29475.12 | J78: 30030.23 | K78: 28920 | L78: 28052 | M78: 0.41271
A79: 70 | B79: EMAMILTD | C79: 1063.15 | D79: 1066.72 | E79: 1056.43 | F79: 1049.72 | G79: 1039.43 | H79: 1073.43 | I79: 1083.72 | J79: 1090.43 | K79: 1077 | L79: 1060 | M79: 0.93156
A80: 71 | B80: ENDURANCE | C80: 1295.6 | D80: 1292.03 | E80: 1269.07 | F80: 1242.53 | G80: 1219.57 | H80: 1318.57 | I80: 1341.53 | J80: 1368.07 | K80: 1315 | L80: 1265.5 | M80: 1.01631
A81: 72 | B81: ENGINERSIN | C81: 167.1 | D81: 166.33 | E81: 163.47 | F81: 159.83 | G81: 156.97 | H81: 169.97 | I81: 172.83 | J81: 176.47 | K81: 169.2 | L81: 162.7 | M81: 20.20407
A82: 73 | B82: EXIDEIND | C82: 214.5 | D82: 214.50 | E82: 212.50 | F82: 210.50 | G82: 208.50 | H82: 216.50 | I82: 218.50 | J82: 220.50 | K82: 216.5 | L82: 212.5 | M82: 13.44277
A83: 74 | B83: FEDERALBNK | C83: 96.35 | D83: 95.77 | E83: 94.18 | F83: 92.02 | G83: 90.43 | H83: 97.93 | I83: 99.52 | J83: 101.68 | K83: 97.35 | L83: 93.6 | M83: 135.41557
A84: 75 | B84: GAIL | C84: 455.95 | D84: 451.32 | E84: 444.63 | F84: 433.32 | G84: 426.63 | H84: 462.63 | I84: 469.32 | J84: 480.63 | K84: 458 | L84: 440 | M84: 27.79069
A85: 76 | B85: GMRINFRA | C85: 17.55 | D85: 17.50 | E85: 17.25 | F85: 16.95 | G85: 16.70 | H85: 17.80 | I85: 18.05 | J85: 18.35 | K85: 17.75 | L85: 17.2 | M85: 264.97276
A86: 77 | B86: GSKCONS | C86: 6625.45 | D86: 6675.58 | E86: 6551.17 | F86: 6476.88 | G86: 6352.47 | H86: 6749.87 | I86: 6874.28 | J86: 6948.57 | K86: 6800 | L86: 6601.3 | M86: 0.1336
A87: 78 | B87: GLAXO | C87: 2269.3 | D87: 2269.77 | E87: 2249.53 | F87: 2229.77 | G87: 2209.53 | H87: 2289.53 | I87: 2309.77 | J87: 2329.53 | K87: 2290 | L87: 2250 | M87: 0.09145
A88: 79 | B88: GLENMARK | C88: 538.15 | D88: 537.37 | E88: 533.78 | F88: 529.42 | G88: 525.83 | H88: 541.73 | I88: 545.32 | J88: 549.68 | K88: 540.95 | L88: 533 | M88: 5.01265
A89: 80 | B89: GODREJCP | C89: 1092.45 | D89: 1088.18 | E89: 1080.27 | F89: 1068.08 | G89: 1060.17 | H89: 1100.37 | I89: 1108.28 | J89: 1120.47 | K89: 1096.1 | L89: 1076 | M89: 2.88849
A90: 81 | B90: GODREJIND | C90: 547.55 | D90: 543.08 | E90: 536.47 | F90: 525.38 | G90: 518.77 | H90: 554.17 | I90: 560.78 | J90: 571.87 | K90: 549.7 | L90: 532 | M90: 3.69094
A91: 82 | B91: GRUH | C91: 556.5 | D91: 554.50 | E91: 550.00 | F91: 543.50 | G91: 539.00 | H91: 561.00 | I91: 565.50 | J91: 572.00 | K91: 559 | L91: 548 | M91: 3.08068
A92: 83 | B92: GPPL | C92: 140.05 | D92: 140.60 | E92: 138.20 | F92: 136.35 | G92: 133.95 | H92: 142.45 | I92: 144.85 | J92: 146.70 | K92: 143 | L92: 138.75 | M92: 3.04938
A93: 84 | B93: GSPL | C93: 195.8 | D93: 195.87 | E93: 193.93 | F93: 192.07 | G93: 190.13 | H93: 197.73 | I93: 199.67 | J93: 201.53 | K93: 197.8 | L93: 194 | M93: 3.85439
A94: 85 | B94: HCLTECH | C94: 957 | D94: 957.20 | E94: 945.40 | F94: 933.80 | G94: 922.00 | H94: 968.80 | I94: 980.60 | J94: 992.20 | K94: 969 | L94: 945.6 | M94: 12.56754
A95: 86 | B95: HDFCBANK | C95: 1860.25 | D95: 1866.67 | E95: 1848.58 | F95: 1836.92 | G95: 1818.83 | H95: 1878.33 | I95: 1896.42 | J95: 1908.08 | K95: 1884.75 | L95: 1855 | M95: 12.8105
A96: 87 | B96: HAVELLS | C96: 514.3 | D96: 512.10 | E96: 505.45 | F96: 496.60 | G96: 489.95 | H96: 520.95 | I96: 527.60 | J96: 536.45 | K96: 518.75 | L96: 503.25 | M96: 11.85899
A97: 88 | B97: HEROMOTOCO | C97: 3701.2 | D97: 3700.98 | E97: 3672.22 | F97: 3643.23 | G97: 3614.47 | H97: 3729.97 | I97: 3758.73 | J97: 3787.72 | K97: 3729.75 | L97: 3672 | M97: 2.3365
A98: 89 | B98: HEXAWARE | C98: 384.3 | D98: 382.35 | E98: 373.10 | F98: 361.90 | G98: 352.65 | H98: 393.55 | I98: 402.80 | J98: 414.00 | K98: 391.6 | L98: 371.15 | M98: 13.3523
A99: 90 | B99: HINDALCO | C99: 226.15 | D99: 225.53 | E99: 223.12 | F99: 220.08 | G99: 217.67 | H99: 228.57 | I99: 230.98 | J99: 234.02 | K99: 227.95 | L99: 222.5 | M99: 99.90633
A100: 91 | B100: HINDPETRO | C100: 382.95 | D100: 378.48 | E100: 371.47 | F100: 359.98 | G100: 352.97 | H100: 389.97 | I100: 396.98 | J100: 408.47 | K100: 385.5 | L100: 367 | M100: 60.20643
A101: 92 | B101: HINDUNILVR | C101: 1320.55 | D101: 1321.90 | E101: 1312.35 | F101: 1304.15 | G101: 1294.60 | H101: 1330.10 | I101: 1339.65 | J101: 1347.85 | K101: 1331.45 | L101: 1313.7 | M101: 10.67772
A102: 93 | B102: HINDZINC | C102: 319 | D102: 319.58 | E102: 312.77 | F102: 306.53 | G102: 299.72 | H102: 325.82 | I102: 332.63 | J102: 338.87 | K102: 326.4 | L102: 313.35 | M102: 27.62603
A103: 94 | B103: HUDCO | C103: 70.8 | D103: 70.88 | E103: 69.87 | F103: 68.93 | G103: 67.92 | H103: 71.82 | I103: 72.83 | J103: 73.77 | K103: 71.9 | L103: 69.95 | M103: 11.87965
A104: 95 | B104: HDFC | C104: 1868.5 | D104: 1866.67 | E104: 1851.83 | F104: 1835.17 | G104: 1820.33 | H104: 1883.33 | I104: 1898.17 | J104: 1914.83 | K104: 1881.5 | L104: 1850 | M104: 32.6492
A105: 96 | B105: ITC | C105: 269.45 | D105: 269.55 | E105: 267.10 | F105: 264.75 | G105: 262.30 | H105: 271.90 | I105: 274.35 | J105: 276.70 | K105: 272 | L105: 267.2 | M105: 83.26884
A106: 97 | B106: ICICIBANK | C106: 304.35 | D106: 303.65 | E106: 300.30 | F106: 296.25 | G106: 292.90 | H106: 307.70 | I106: 311.05 | J106: 315.10 | K106: 307 | L106: 299.6 | M106: 159.66647
A107: 98 | B107: ICICIPRULI | C107: 385.45 | D107: 386.00 | E107: 381.65 | F107: 377.85 | G107: 373.50 | H107: 389.80 | I107: 394.15 | J107: 397.95 | K107: 390.35 | L107: 382.2 | M107: 20.31569
A108: 99 | B108: IDBI | C108: 67.25 | D108: 66.25 | E108: 62.10 | F108: 56.95 | G108: 52.80 | H108: 71.40 | I108: 75.55 | J108: 80.70 | K108: 70.4 | L108: 61.1 | M108: 768.56
A109: 100 | B109: IDFCBANK | C109: 50.15 | D109: 50.12 | E109: 49.63 | F109: 49.12 | G109: 48.63 | H109: 50.63 | I109: 51.12 | J109: 51.63 | K109: 50.6 | L109: 49.6 | M109: 49.83558
A110: 101 | B110: IDFC | C110: 51.3 | D110: 50.97 | E110: 50.23 | F110: 49.17 | G110: 48.43 | H110: 52.03 | I110: 52.77 | J110: 53.83 | K110: 51.7 | L110: 49.9 | M110: 67.65039
A111: 102 | B111: IRB | C111: 215.85 | D111: 216.58 | E111: 213.37 | F111: 210.88 | G111: 207.67 | H111: 219.07 | I111: 222.28 | J111: 224.77 | K111: 219.8 | L111: 214.1 | M111: 19.82119
A112: 103 | B112: IDEA | C112: 80.65 | D112: 80.10 | E112: 78.65 | F112: 76.65 | G112: 75.20 | H112: 82.10 | I112: 83.55 | J112: 85.55 | K112: 81.55 | L112: 78.1 | M112: 152.57207
A113: 104 | B113: IBULHSGFIN | C113: 1231.8 | D113: 1230.58 | E113: 1211.67 | F113: 1191.53 | G113: 1172.62 | H113: 1250.72 | I113: 1269.63 | J113: 1289.77 | K113: 1249.5 | L113: 1210.45 | M113: 14.61671
A114: 105 | B114: INDIANB | C114: 293.55 | D114: 292.22 | E114: 278.58 | F114: 263.62 | G114: 249.98 | H114: 307.18 | I114: 320.82 | J114: 335.78 | K114: 305.85 | L114: 277.25 | M114: 49.88144
A115: 106 | B115: INDHOTEL | C115: 130 | D115: 131.07 | E115: 127.63 | F115: 125.27 | G115: 121.83 | H115: 133.43 | I115: 136.87 | J115: 139.23 | K115: 134.5 | L115: 128.7 | M115: 13.97514
A116: 107 | B116: IOC | C116: 407.85 | D116: 407.58 | E116: 402.27 | F116: 396.68 | G116: 391.37 | H116: 413.17 | I116: 418.48 | J116: 424.07 | K116: 412.9 | L116: 402 | M116: 186.12673
A117: 108 | B117: IGL | C117: 303.6 | D117: 302.83 | E117: 300.92 | F117: 298.23 | G117: 296.32 | H117: 305.52 | I117: 307.43 | J117: 310.12 | K117: 304.75 | L117: 300.15 | M117: 16.04649
A118: 109 | B118: INDUSINDBK | C118: 1729.5 | D118: 1732.10 | E118: 1713.20 | F118: 1696.90 | G118: 1678.00 | H118: 1748.40 | I118: 1767.30 | J118: 1783.60 | K118: 1751 | L118: 1715.8 | M118: 7.97998
A119: 110 | B119: NAUKRI | C119: 1250.75 | D119: 1245.08 | E119: 1230.87 | F119: 1210.98 | G119: 1196.77 | H119: 1264.97 | I119: 1279.18 | J119: 1299.07 | K119: 1259.3 | L119: 1225.2 | M119: 0.09091
A120: 111 | B120: INFY | C120: 1183.8 | D120: 1185.32 | E120: 1173.63 | F120: 1163.47 | G120: 1151.78 | H120: 1195.48 | I120: 1207.17 | J120: 1217.33 | K120: 1197 | L120: 1175.15 | M120: 42.90526
A121: 112 | B121: INDIGO | C121: 1301.6 | D121: 1283.87 | E121: 1257.73 | F121: 1213.87 | G121: 1187.73 | H121: 1327.73 | I121: 1353.87 | J121: 1397.73 | K121: 1310 | L121: 1240 | M121: 15.62665
A122: 113 | B122: IPCALAB | C122: 676.85 | D122: 679.00 | E122: 667.95 | F122: 659.05 | G122: 648.00 | H122: 687.90 | I122: 698.95 | J122: 707.85 | K122: 690.05 | L122: 670.1 | M122: 2.99501
A123: 114 | B123: JSWENERGY | C123: 79.85 | D123: 78.92 | E123: 77.33 | F123: 74.82 | G123: 73.23 | H123: 81.43 | I123: 83.02 | J123: 85.53 | K123: 80.5 | L123: 76.4 | M123: 25.33986
A124: 115 | B124: JSWSTEEL | C124: 303.5 | D124: 301.30 | E124: 298.00 | F124: 292.50 | G124: 289.20 | H124: 306.80 | I124: 310.10 | J124: 315.60 | K124: 304.6 | L124: 295.8 | M124: 41.61207
A125: 116 | B125: JINDALSTEL | C125: 229.9 | D125: 231.05 | E125: 226.00 | F125: 222.10 | G125: 217.05 | H125: 234.95 | I125: 240.00 | J125: 243.90 | K125: 236.1 | L125: 227.15 | M125: 97.04491
A126: 117 | B126: JUBLFOOD | C126: 2060.1 | D126: 2068.53 | E126: 2038.57 | F126: 2017.03 | G126: 1987.07 | H126: 2090.07 | I126: 2120.03 | J126: 2141.57 | K126: 2098.5 | L126: 2047 | M126: 5.24075
A127: 118 | B127: JUBILANT | C127: 827.95 | D127: 823.12 | E127: 816.23 | F127: 804.52 | G127: 797.63 | H127: 834.83 | I127: 841.72 | J127: 853.43 | K127: 830 | L127: 811.4 | M127: 7.46452
A128: 119 | B128: KARURVYSYA | C128: 102.15 | D128: 101.42 | E128: 100.23 | F128: 98.32 | G128: 97.13 | H128: 103.33 | I128: 104.52 | J128: 106.43 | K128: 102.6 | L128: 99.5 | M128: 15.57344
A129: 120 | B129: KOTAKBANK | C129: 1083.9 | D129: 1090.45 | E129: 1072.40 | F129: 1060.90 | G129: 1042.85 | H129: 1101.95 | I129: 1120.00 | J129: 1131.50 | K129: 1108.5 | L129: 1078.95 | M129: 13.80164
A130: 121 | B130: L&TFH | C130: 164.6 | D130: 163.98 | E130: 162.22 | F130: 159.83 | G130: 158.07 | H130: 166.37 | I130: 168.13 | J130: 170.52 | K130: 165.75 | L130: 161.6 | M130: 35.38125
A131: 122 | B131: LICHSGFIN | C131: 513.05 | D131: 505.92 | E131: 497.28 | F131: 481.52 | G131: 472.88 | H131: 521.68 | I131: 530.32 | J131: 546.08 | K131: 514.55 | L131: 490.15 | M131: 26.31177
A132: 123 | B132: LT | C132: 1302.75 | D132: 1306.58 | E132: 1290.22 | F132: 1277.68 | G132: 1261.32 | H132: 1319.12 | I132: 1335.48 | J132: 1348.02 | K132: 1322.95 | L132: 1294.05 | M132: 19.15199
A133: 124 | B133: LUPIN | C133: 780.6 | D133: 778.03 | E133: 771.17 | F133: 761.73 | G133: 754.87 | H133: 787.47 | I133: 794.33 | J133: 803.77 | K133: 784.9 | L133: 768.6 | M133: 8.81387
A134: 125 | B134: MRF | C134: 71717.3 | D134: 71544.10 | E134: 70988.20 | F134: 70259.10 | G134: 69703.20 | H134: 72273.20 | I134: 72829.10 | J134: 73558.20 | K134: 72100 | L134: 70815 | M134: 0.04148
A135: 126 | B135: MGL | C135: 1017.85 | D135: 1018.70 | E135: 1011.25 | F135: 1004.65 | G135: 997.20 | H135: 1025.30 | I135: 1032.75 | J135: 1039.35 | K135: 1026.15 | L135: 1012.1 | M135: 1.28282
A136: 127 | B136: M&MFIN | C136: 426.05 | D136: 423.17 | E136: 414.38 | F136: 402.72 | G136: 393.93 | H136: 434.83 | I136: 443.62 | J136: 455.28 | K136: 431.95 | L136: 411.5 | M136: 31.00131
A137: 128 | B137: M&M | C137: 733 | D137: 734.82 | E137: 728.63 | F137: 724.27 | G137: 718.08 | H137: 739.18 | I137: 745.37 | J137: 749.73 | K137: 741 | L137: 730.45 | M137: 18.23994
A138: 129 | B138: MANAPPURAM | C138: 105.15 | D138: 105.02 | E138: 103.68 | F138: 102.22 | G138: 100.88 | H138: 106.48 | I138: 107.82 | J138: 109.28 | K138: 106.35 | L138: 103.55 | M138: 39.86023
A139: 130 | B139: MRPL | C139: 119.6 | D139: 118.53 | E139: 117.07 | F139: 114.53 | G139: 113.07 | H139: 121.07 | I139: 122.53 | J139: 125.07 | K139: 120 | L139: 116 | M139: 9.72706
A140: 131 | B140: MARICO | C140: 309.55 | D140: 309.63 | E140: 307.27 | F140: 304.98 | G140: 302.62 | H140: 311.92 | I140: 314.28 | J140: 316.57 | K140: 312 | L140: 307.35 | M140: 10.99876
A141: 132 | B141: MARUTI | C141: 8756.05 | D141: 8765.02 | E141: 8682.03 | F141: 8608.02 | G141: 8525.03 | H141: 8839.03 | I141: 8922.02 | J141: 8996.03 | K141: 8848 | L141: 8691 | M141: 5.21943
A142: 133 | B142: MFSL | C142: 471.35 | D142: 473.35 | E142: 466.70 | F142: 462.05 | G142: 455.40 | H142: 478.00 | I142: 484.65 | J142: 489.30 | K142: 480 | L142: 468.7 | M142: 3.29312
A143: 134 | B143: MINDTREE | C143: 800.85 | D143: 807.02 | E143: 789.03 | F143: 777.22 | G143: 759.23 | H143: 818.83 | I143: 836.82 | J143: 848.63 | K143: 825 | L143: 795.2 | M143: 16.27811
A144: 135 | B144: MOTHERSUMI | C144: 318.8 | D144: 318.97 | E144: 314.93 | F144: 311.07 | G144: 307.03 | H144: 322.83 | I144: 326.87 | J144: 330.73 | K144: 323 | L144: 315.1 | M144: 30.49023
A145: 136 | B145: MPHASIS | C145: 849.8 | D145: 855.03 | E145: 839.77 | F145: 829.73 | G145: 814.47 | H145: 865.07 | I145: 880.33 | J145: 890.37 | K145: 870.3 | L145: 845 | M145: 2.10714
A146: 137 | B146: MUTHOOTFIN | C146: 398.05 | D146: 391.77 | E146: 382.43 | F146: 366.82 | G146: 357.48 | H146: 407.38 | I146: 416.72 | J146: 432.33 | K146: 401.1 | L146: 376.15 | M146: 9.52319
A147: 138 | B147: NATCOPHARM | C147: 744.7 | D147: 738.73 | E147: 731.47 | F147: 718.23 | G147: 710.97 | H147: 751.97 | I147: 759.23 | J147: 772.47 | K147: 746 | L147: 725.5 | M147: 3.71696
A148: 139 | B148: NBCC | C148: 196.15 | D148: 193.20 | E148: 188.50 | F148: 180.85 | G148: 176.15 | H148: 200.85 | I148: 205.55 | J148: 213.20 | K148: 197.9 | L148: 185.55 | M148: 36.64583
A149: 140 | B149: NHPC | C149: 27 | D149: 26.90 | E149: 26.65 | F149: 26.30 | G149: 26.05 | H149: 27.25 | I149: 27.50 | J149: 27.85 | K149: 27.15 | L149: 26.55 | M149: 42.71473
A150: 141 | B150: NMDC | C150: 124.2 | D150: 123.87 | E150: 122.88 | F150: 121.57 | G150: 120.58 | H150: 125.18 | I150: 126.17 | J150: 127.48 | K150: 124.85 | L150: 122.55 | M150: 26.37163
A151: 142 | B151: NTPC | C151: 169.4 | D151: 169.15 | E151: 167.55 | F151: 165.70 | G151: 164.10 | H151: 171.00 | I151: 172.60 | J151: 174.45 | K151: 170.75 | L151: 167.3 | M151: 31.2693
A152: 143 | B152: NATIONALUM | C152: 63.9 | D152: 63.87 | E152: 63.13 | F152: 62.37 | G152: 61.63 | H152: 64.63 | I152: 65.37 | J152: 66.13 | K152: 64.6 | L152: 63.1 | M152: 29.93835
A153: 144 | B153: OBEROIRLTY | C153: 556.95 | D153: 550.12 | E153: 538.83 | F153: 520.72 | G153: 509.43 | H153: 568.23 | I153: 579.52 | J153: 597.63 | K153: 561.4 | L153: 532 | M153: 11.11325
A154: 145 | B154: ONGC | C154: 183.6 | D154: 183.12 | E154: 182.03 | F154: 180.47 | G154: 179.38 | H154: 184.68 | I154: 185.77 | J154: 187.33 | K154: 184.2 | L154: 181.55 | M154: 24.57755
A155: 146 | B155: OIL | C155: 327.2 | D155: 327.10 | E155: 323.50 | F155: 319.80 | G155: 316.20 | H155: 330.80 | I155: 334.40 | J155: 338.10 | K155: 330.7 | L155: 323.4 | M155: 4.16802
A156: 147 | B156: OFSS | C156: 3932.1 | D156: 3924.80 | E156: 3903.60 | F156: 3875.10 | G156: 3853.90 | H156: 3953.30 | I156: 3974.50 | J156: 4003.00 | K156: 3946 | L156: 3896.3 | M156: 0.06765
A157: 148 | B157: PCJEWELLER | C157: 365.1 | D157: 360.97 | E157: 342.13 | F157: 319.17 | G157: 300.33 | H157: 383.93 | I157: 402.77 | J157: 425.73 | K157: 379.8 | L157: 338 | M157: 118.78717
A158: 149 | B158: PIIND | C158: 866.15 | D158: 865.67 | E158: 856.33 | F158: 846.52 | G158: 837.18 | H158: 875.48 | I158: 884.82 | J158: 894.63 | K158: 875 | L158: 855.85 | M158: 0.44984
A159: 150 | B159: PNBHOUSING | C159: 1109.9 | D159: 1115.20 | E159: 1098.40 | F159: 1086.90 | G159: 1070.10 | H159: 1126.70 | I159: 1143.50 | J159: 1155.00 | K159: 1132 | L159: 1103.7 | M159: 1.05033
A160: 151 | B160: PAGEIND | C160: 21901.9 | D160: 21778.27 | E160: 21450.13 | F160: 20998.37 | G160: 20670.23 | H160: 22230.03 | I160: 22558.17 | J160: 23009.93 | K160: 22106.4 | L160: 21326.5 | M160: 0.14801
A161: 152 | B161: PETRONET | C161: 239.35 | D161: 235.87 | E161: 231.73 | F161: 224.12 | G161: 219.98 | H161: 243.48 | I161: 247.62 | J161: 255.23 | K161: 240 | L161: 228.25 | M161: 67.27675
A162: 153 | B162: PIDILITIND | C162: 899.85 | D162: 897.23 | E162: 888.72 | F162: 877.58 | G162: 869.07 | H162: 908.37 | I162: 916.88 | J162: 928.02 | K162: 905.75 | L162: 886.1 | M162: 3.94375
A163: 154 | B163: PEL | C163: 2481.9 | D163: 2457.78 | E163: 2425.72 | F163: 2369.53 | G163: 2337.47 | H163: 2513.97 | I163: 2546.03 | J163: 2602.22 | K163: 2489.85 | L163: 2401.6 | M163: 2.2081
A164: 155 | B164: PFC | C164: 89.85 | D164: 89.30 | E164: 86.75 | F164: 83.65 | G164: 81.10 | H164: 92.40 | I164: 94.95 | J164: 98.05 | K164: 91.85 | L164: 86.2 | M164: 127.9273
A165: 156 | B165: POWERGRID | C165: 195.05 | D165: 195.10 | E165: 193.20 | F165: 191.35 | G165: 189.45 | H165: 196.95 | I165: 198.85 | J165: 200.70 | K165: 197 | L165: 193.25 | M165: 59.51992
A166: 157 | B166: PRESTIGE | C166: 296.25 | D166: 298.57 | E166: 291.28 | F166: 286.32 | G166: 279.03 | H166: 303.53 | I166: 310.82 | J166: 315.78 | K166: 305.85 | L166: 293.6 | M166: 4.1059
A167: 158 | B167: PGHH | C167: 9435.6 | D167: 9403.00 | E167: 9350.00 | F167: 9264.40 | G167: 9211.40 | H167: 9488.60 | I167: 9541.60 | J167: 9627.20 | K167: 9456 | L167: 9317.4 | M167: 0.011
A168: 159 | B168: PNB | C168: 97.95 | D168: 97.97 | E168: 93.28 | F168: 88.62 | G168: 83.93 | H168: 102.63 | I168: 107.32 | J168: 111.98 | K168: 102.65 | L168: 93.3 | M168: 860.99105
A169: 160 | B169: RBLBANK | C169: 467.5 | D169: 468.65 | E169: 461.35 | F169: 455.20 | G169: 447.90 | H169: 474.80 | I169: 482.10 | J169: 488.25 | K169: 475.95 | L169: 462.5 | M169: 29.94206
A170: 161 | B170: RAJESHEXPO | C170: 797.25 | D170: 800.52 | E170: 791.23 | F170: 785.22 | G170: 775.93 | H170: 806.53 | I170: 815.82 | J170: 821.83 | K170: 809.8 | L170: 794.5 | M170: 0.77969
A171: 162 | B171: RELCAPITAL | C171: 438.55 | D171: 436.17 | E171: 429.88 | F171: 421.22 | G171: 414.93 | H171: 444.83 | I171: 451.12 | J171: 459.78 | K171: 442.45 | L171: 427.5 | M171: 55.64942
A172: 163 | B172: RCOM | C172: 23.35 | D172: 23.02 | E172: 22.38 | F172: 21.42 | G172: 20.78 | H172: 23.98 | I172: 24.62 | J172: 25.58 | K172: 23.65 | L172: 22.05 | M172: 809.56215
A173: 164 | B173: RELIANCE | C173: 931.85 | D173: 929.73 | E173: 923.47 | F173: 915.08 | G173: 908.82 | H173: 938.12 | I173: 944.38 | J173: 952.77 | K173: 936 | L173: 921.35 | M173: 50.96825
A174: 165 | B174: RELINFRA | C174: 451.65 | D174: 446.13 | E174: 436.22 | F174: 420.78 | G174: 410.87 | H174: 461.57 | I174: 471.48 | J174: 486.92 | K174: 456.05 | L174: 430.7 | M174: 41.74719
A175: 166 | B175: RPOWER | C175: 39.35 | D175: 39.38 | E175: 38.57 | F175: 37.78 | G175: 36.97 | H175: 40.17 | I175: 40.98 | J175: 41.77 | K175: 40.2 | L175: 38.6 | M175: 59.20433
A176: 167 | B176: RECLTD | C176: 130.25 | D176: 129.25 | E176: 126.50 | F176: 122.75 | G176: 120.00 | H176: 133.00 | I176: 135.75 | J176: 139.50 | K176: 132 | L176: 125.5 | M176: 45.26082
A177: 168 | B177: SRF | C177: 1866.45 | D177: 1866.60 | E177: 1848.40 | F177: 1830.35 | G177: 1812.15 | H177: 1884.65 | I177: 1902.85 | J177: 1920.90 | K177: 1884.8 | L177: 1848.55 | M177: 0.90378
A178: 169 | B178: SHREECEM | C178: 16795.55 | D178: 16563.52 | E178: 16257.03 | F178: 15718.52 | G178: 15412.03 | H178: 17102.03 | I178: 17408.52 | J178: 17947.03 | K178: 16870 | L178: 16025 | M178: 0.17535
A179: 170 | B179: SRTRANSFIN | C179: 1356.5 | D179: 1357.42 | E179: 1345.88 | F179: 1335.27 | G179: 1323.73 | H179: 1368.03 | I179: 1379.57 | J179: 1390.18 | K179: 1368.95 | L179: 1346.8 | M179: 10.17247
A180: 171 | B180: SIEMENS | C180: 1118.95 | D180: 1112.17 | E180: 1098.28 | F180: 1077.62 | G180: 1063.73 | H180: 1132.83 | I180: 1146.72 | J180: 1167.38 | K180: 1126.05 | L180: 1091.5 | M180: 1.43431
A181: 172 | B181: SBIN | C181: 254.7 | D181: 255.57 | E181: 248.73 | F181: 242.77 | G181: 235.93 | H181: 261.53 | I181: 268.37 | J181: 274.33 | K181: 262.4 | L181: 249.6 | M181: 376.47221
A182: 173 | B182: SAIL | C182: 72.6 | D182: 72.72 | E182: 71.03 | F182: 69.47 | G182: 67.78 | H182: 74.28 | I182: 75.97 | J182: 77.53 | K182: 74.4 | L182: 71.15 | M182: 138.28988
A183: 174 | B183: SPARC | C183: 411.25 | D183: 412.60 | E183: 407.20 | F183: 403.15 | G183: 397.75 | H183: 416.65 | I183: 422.05 | J183: 426.10 | K183: 418 | L183: 408.55 | M183: 1.96832
A184: 175 | B184: SUNPHARMA | C184: 523.3 | D184: 520.48 | E184: 515.47 | F184: 507.63 | G184: 502.62 | H184: 528.32 | I184: 533.33 | J184: 541.17 | K184: 525.5 | L184: 512.65 | M184: 47.95084
A185: 176 | B185: SUNTV | C185: 900.25 | D185: 895.42 | E185: 884.83 | F185: 869.42 | G185: 858.83 | H185: 910.83 | I185: 921.42 | J185: 936.83 | K185: 906 | L185: 880 | M185: 13.10159
A186: 177 | B186: SUZLON | C186: 11.55 | D186: 11.53 | E186: 11.32 | F186: 11.08 | G186: 10.87 | H186: 11.77 | I186: 11.98 | J186: 12.22 | K186: 11.75 | L186: 11.3 | M186: 304.07378
A187: 178 | B187: SYNDIBANK | C187: 57.75 | D187: 56.78 | E187: 54.37 | F187: 50.98 | G187: 48.57 | H187: 60.17 | I187: 62.58 | J187: 65.97 | K187: 59.2 | L187: 53.4 | M187: 121.54551
A188: 179 | B188: SYNGENE | C188: 567.2 | D188: 569.22 | E188: 553.98 | F188: 540.77 | G188: 525.53 | H188: 582.43 | I188: 597.67 | J188: 610.88 | K188: 584.45 | L188: 556 | M188: 1.05646
A189: 180 | B189: TV18BRDCST | C189: 63.8 | D189: 63.78 | E189: 62.87 | F189: 61.93 | G189: 61.02 | H189: 64.72 | I189: 65.63 | J189: 66.57 | K189: 64.7 | L189: 62.85 | M189: 81.20319
A190: 181 | B190: TVSMOTOR | C190: 641.6 | D190: 645.18 | E190: 631.92 | F190: 622.23 | G190: 608.97 | H190: 654.87 | I190: 668.13 | J190: 677.82 | K190: 658.45 | L190: 635.5 | M190: 5.88964
A191: 182 | B191: TATACHEM | C191: 691.25 | D191: 692.32 | E191: 686.03 | F191: 680.82 | G191: 674.53 | H191: 697.53 | I191: 703.82 | J191: 709.03 | K191: 698.6 | L191: 687.1 | M191: 6.67251
A192: 183 | B192: TATACOMM | C192: 634.05 | D192: 632.43 | E192: 626.47 | F192: 618.88 | G192: 612.92 | H192: 640.02 | I192: 645.98 | J192: 653.57 | K192: 638.4 | L192: 624.85 | M192: 2.27934
A193: 184 | B193: TCS | C193: 2886.8 | D193: 2899.50 | E193: 2859.30 | F193: 2831.80 | G193: 2791.60 | H193: 2927.00 | I193: 2967.20 | J193: 2994.70 | K193: 2939.7 | L193: 2872 | M193: 440.33577
A194: 185 | B194: TATAGLOBAL | C194: 278.2 | D194: 277.57 | E194: 273.83 | F194: 269.47 | G194: 265.73 | H194: 281.93 | I194: 285.67 | J194: 290.03 | K194: 281.3 | L194: 273.2 | M194: 30.9519
A195: 186 | B195: TATAMTRDVR | C195: 197.1 | D195: 197.32 | E195: 194.98 | F195: 192.87 | G195: 190.53 | H195: 199.43 | I195: 201.77 | J195: 203.88 | K195: 199.65 | L195: 195.2 | M195: 20.19386
A196: 187 | B196: TATAMOTORS | C196: 353.15 | D196: 353.20 | E196: 349.95 | F196: 346.75 | G196: 343.50 | H196: 356.40 | I196: 359.65 | J196: 362.85 | K196: 356.45 | L196: 350 | M196: 61.84241
A197: 188 | B197: TATAPOWER | C197: 81.35 | D197: 81.33 | E197: 80.42 | F197: 79.48 | G197: 78.57 | H197: 82.27 | I197: 83.18 | J197: 84.12 | K197: 82.25 | L197: 80.4 | M197: 50.00216
A198: 189 | B198: TATASTEEL | C198: 628.85 | D198: 625.47 | E198: 617.73 | F198: 606.62 | G198: 598.88 | H198: 636.58 | I198: 644.32 | J198: 655.43 | K198: 633.2 | L198: 614.35 | M198: 104.90405
A199: 190 | B199: TECHM | C199: 619.15 | D199: 619.23 | E199: 613.52 | F199: 607.88 | G199: 602.17 | H199: 624.87 | I199: 630.58 | J199: 636.22 | K199: 624.95 | L199: 613.6 | M199: 23.0696
A200: 191 | B200: RAMCOCEM | C200: 737.15 | D200: 736.38 | E200: 728.57 | F200: 719.98 | G200: 712.17 | H200: 744.97 | I200: 752.78 | J200: 761.37 | K200: 744.2 | L200: 727.8 | M200: 1.45199
A201: 192 | B201: TITAN | C201: 851.95 | D201: 847.32 | E201: 834.63 | F201: 817.32 | G201: 804.63 | H201: 864.63 | I201: 877.32 | J201: 894.63 | K201: 860 | L201: 830 | M201: 27.54435
A202: 193 | B202: TORNTPHARM | C202: 1305.5 | D202: 1307.63 | E202: 1293.92 | F202: 1282.33 | G202: 1268.62 | H202: 1319.22 | I202: 1332.93 | J202: 1344.52 | K202: 1321.35 | L202: 1296.05 | M202: 1.109
A203: 194 | B203: TORNTPOWER | C203: 254.65 | D203: 255.43 | E203: 252.17 | F203: 249.68 | G203: 246.42 | H203: 257.92 | I203: 261.18 | J203: 263.67 | K203: 258.7 | L203: 252.95 | M203: 6.04191
A204: 195 | B204: UPL | C204: 722.8 | D204: 721.55 | E204: 714.20 | F204: 705.60 | G204: 698.25 | H204: 730.15 | I204: 737.50 | J204: 746.10 | K204: 728.9 | L204: 712.95 | M204: 14.52302
A205: 196 | B205: ULTRACEMCO | C205: 4170 | D205: 4173.63 | E205: 4138.17 | F205: 4106.33 | G205: 4070.87 | H205: 4205.47 | I205: 4240.93 | J205: 4272.77 | K205: 4209.1 | L205: 4141.8 | M205: 1.38444
... 30 more rows

Sheet MidCap Intra
L5: Back To Main Page
A6: FOR INTRA DAY TRADING | K6: =Main!B10 -> 2018-03-14
A9: Sr.no | B9: Scrip | C9: CLOSE RATE | D9: Pivot Point | E9: Supports | H9: Resistances
C10: Point | E10: S1 | F10: S2 | G10: S3 | H10: R1 | I10: R2 | J10: R3 | K10: HIGH | L10: LOW | M10: Total Trade Quanity in Lakhs
A11: 1 | B11: 3MINDIA | C11: 20171.7 | D11: 20217.77 | E11: 19954.98 | F11: 19738.27 | G11: 19475.48 | H11: 20434.48 | I11: 20697.27 | J11: 20913.98 | K11: 20480.55 | L11: 20001.05 | M11: 0.00719
A12: 2 | B12: 8KMILES | C12: 706.3 | D12: 709.88 | E12: 698.17 | F12: 690.03 | G12: 678.32 | H12: 718.02 | I12: 729.73 | J12: 737.87 | K12: 721.6 | L12: 701.75 | M12: 1.46943
A13: 3 | B13: ABB | C13: 1410.8 | D13: 1417.55 | E13: 1395.25 | F13: 1379.70 | G13: 1357.40 | H13: 1433.10 | I13: 1455.40 | J13: 1470.95 | K13: 1439.85 | L13: 1402 | M13: 0.38286
A14: 4 | B14: ACC | C14: 1575.35 | D14: 1571.58 | E14: 1561.17 | F14: 1546.98 | G14: 1536.57 | H14: 1585.77 | I14: 1596.18 | J14: 1610.37 | K14: 1582 | L14: 1557.4 | M14: 4.41704
A15: 5 | B15: AIAENG | C15: 1447.9 | D15: 1443.12 | E15: 1432.33 | F15: 1416.77 | G15: 1405.98 | H15: 1458.68 | I15: 1469.47 | J15: 1485.03 | K15: 1453.9 | L15: 1427.55 | M15: 0.08448
A16: 6 | B16: APLAPOLLO | C16: 1984.95 | D16: 1948.32 | E16: 1886.68 | F16: 1788.42 | G16: 1726.78 | H16: 2046.58 | I16: 2108.22 | J16: 2206.48 | K16: 2009.95 | L16: 1850.05 | M16: 0.48359
A17: 7 | B17: AUBANK | C17: 583.35 | D17: 584.27 | E17: 576.03 | F17: 568.72 | G17: 560.48 | H17: 591.58 | I17: 599.82 | J17: 607.13 | K17: 592.5 | L17: 576.95 | M17: 0.8475
A18: 8 | B18: AARTIIND | C18: 1193.9 | D18: 1180.55 | E18: 1161.50 | F18: 1129.10 | G18: 1110.05 | H18: 1212.95 | I18: 1232.00 | J18: 1264.40 | K18: 1199.6 | L18: 1148.15 | M18: 1.12367
A19: 9 | B19: ABAN | C19: 163.3 | D19: 162.55 | E19: 156.75 | F19: 150.20 | G19: 144.40 | H19: 169.10 | I19: 174.90 | J19: 181.45 | K19: 168.35 | L19: 156 | M19: 16.95575
A20: 10 | B20: ADANIENT | C20: 159.75 | D20: 160.42 | E20: 156.33 | F20: 152.92 | G20: 148.83 | H20: 163.83 | I20: 167.92 | J20: 171.33 | K20: 164.5 | L20: 157 | M20: 151.60439
A21: 11 | B21: ADANIPORTS | C21: 385.2 | D21: 385.92 | E21: 380.43 | F21: 375.67 | G21: 370.18 | H21: 390.68 | I21: 396.17 | J21: 400.93 | K21: 391.4 | L21: 381.15 | M21: 21.75696
A22: 12 | B22: ADANIPOWER | C22: 26.7 | D22: 26.57 | E22: 25.93 | F22: 25.17 | G22: 24.53 | H22: 27.33 | I22: 27.97 | J22: 28.73 | K22: 27.2 | L22: 25.8 | M22: 111.66266
A23: 13 | B23: ADANITRANS | C23: 184.4 | D23: 185.67 | E23: 179.33 | F23: 174.27 | G23: 167.93 | H23: 190.73 | I23: 197.07 | J23: 202.13 | K23: 192 | L23: 180.6 | M23: 7.50055
A24: 14 | B24: ABFRL | C24: 150.25 | D24: 148.72 | E24: 145.93 | F24: 141.62 | G24: 138.83 | H24: 153.03 | I24: 155.82 | J24: 160.13 | K24: 151.5 | L24: 144.4 | M24: 2.8439
A25: 15 | B25: ADVENZYMES | C25: 221.5 | D25: 221.83 | E25: 217.67 | F25: 213.83 | G25: 209.67 | H25: 225.67 | I25: 229.83 | J25: 233.67 | K25: 226 | L25: 218 | M25: 1.96651
A26: 16 | B26: AEGISCHEM | C26: 238.25 | D26: 240.08 | E26: 233.67 | F26: 229.08 | G26: 222.67 | H26: 244.67 | I26: 251.08 | J26: 255.67 | K26: 246.5 | L26: 235.5 | M26: 1.49404
A27: 17 | B27: AHLUCONT | C27: 381.2 | D27: 380.75 | E27: 376.50 | F27: 371.80 | G27: 367.55 | H27: 385.45 | I27: 389.70 | J27: 394.40 | K27: 385 | L27: 376.05 | M27: 0.23622
A28: 18 | B28: AJANTPHARM | C28: 1384.95 | D28: 1376.18 | E28: 1357.42 | F28: 1329.88 | G28: 1311.12 | H28: 1403.72 | I28: 1422.48 | J28: 1450.02 | K28: 1394.95 | L28: 1348.65 | M28: 1.32665
A29: 19 | B29: AKZOINDIA | C29: 1851.85 | D29: 1851.17 | E29: 1823.33 | F29: 1794.82 | G29: 1766.98 | H29: 1879.68 | I29: 1907.52 | J29: 1936.03 | K29: 1879 | L29: 1822.65 | M29: 0.30602
A30: 20 | B30: APLLTD | C30: 542.2 | D30: 542.40 | E30: 539.80 | F30: 537.40 | G30: 534.80 | H30: 544.80 | I30: 547.40 | J30: 549.80 | K30: 545 | L30: 540 | M30: 0.07861
A31: 21 | B31: ALKEM | C31: 2197.1 | D31: 2202.00 | E31: 2190.05 | F31: 2183.00 | G31: 2171.05 | H31: 2209.05 | I31: 2221.00 | J31: 2228.05 | K31: 2213.95 | L31: 2194.95 | M31: 0.20999
A32: 22 | B32: ALBK | C32: 47.95 | D32: 47.45 | E32: 44.90 | F32: 41.85 | G32: 39.30 | H32: 50.50 | I32: 53.05 | J32: 56.10 | K32: 50 | L32: 44.4 | M32: 110.59413
A33: 23 | B33: ALLCARGO | C33: 160.3 | D33: 159.43 | E33: 157.07 | F33: 153.83 | G33: 151.47 | H33: 162.67 | I33: 165.03 | J33: 168.27 | K33: 161.8 | L33: 156.2 | M33: 2.94501
A34: 24 | B34: AMARAJABAT | C34: 801.95 | D34: 807.88 | E34: 791.17 | F34: 780.38 | G34: 763.67 | H34: 818.67 | I34: 835.38 | J34: 846.17 | K34: 824.6 | L34: 797.1 | M34: 5.82103
A35: 25 | B35: AMBUJACEM | C35: 238.8 | D35: 240.30 | E35: 236.20 | F35: 233.60 | G35: 229.50 | H35: 242.90 | I35: 247.00 | J35: 249.60 | K35: 244.4 | L35: 237.7 | M35: 19.42169
A36: 26 | B36: ANDHRABANK | C36: 39.5 | D36: 38.23 | E36: 36.27 | F36: 33.03 | G36: 31.07 | H36: 41.47 | I36: 43.43 | J36: 46.67 | K36: 40.2 | L36: 35 | M36: 394.9344
A37: 27 | B37: APARINDS | C37: 756.75 | D37: 756.58 | E37: 745.17 | F37: 733.58 | G37: 722.17 | H37: 768.17 | I37: 779.58 | J37: 791.17 | K37: 768 | L37: 745 | M37: 0.22388
A38: 28 | B38: APOLLOHOSP | C38: 1095.9 | D38: 1105.47 | E38: 1080.43 | F38: 1064.97 | G38: 1039.93 | H38: 1120.93 | I38: 1145.97 | J38: 1161.43 | K38: 1130.5 | L38: 1090 | M38: 3.86569
A39: 29 | B39: APOLLOTYRE | C39: 264.55 | D39: 264.20 | E39: 260.45 | F39: 256.35 | G39: 252.60 | H39: 268.30 | I39: 272.05 | J39: 276.15 | K39: 267.95 | L39: 260.1 | M39: 17.98681
A40: 30 | B40: ARVIND | C40: 399.75 | D40: 400.70 | E40: 395.05 | F40: 390.35 | G40: 384.70 | H40: 405.40 | I40: 411.05 | J40: 415.75 | K40: 406.35 | L40: 396 | M40: 30.48982
A41: 31 | B41: ASHOKLEY | C41: 149.9 | D41: 148.05 | E41: 145.65 | F41: 141.40 | G41: 139.00 | H41: 152.30 | I41: 154.70 | J41: 158.95 | K41: 150.45 | L41: 143.8 | M41: 246.0104
A42: 32 | B42: ASHOKA | C42: 230.05 | D42: 229.55 | E42: 227.20 | F42: 224.35 | G42: 222.00 | H42: 232.40 | I42: 234.75 | J42: 237.60 | K42: 231.9 | L42: 226.7 | M42: 6.04708
A43: 33 | B43: ASIANPAINT | C43: 1140.3 | D43: 1136.17 | E43: 1129.33 | F43: 1118.37 | G43: 1111.53 | H43: 1147.13 | I43: 1153.97 | J43: 1164.93 | K43: 1143 | L43: 1125.2 | M43: 7.1155
A44: 34 | B44: ASTRAZEN | C44: 969.95 | D44: 972.87 | E44: 965.13 | F44: 960.32 | G44: 952.58 | H44: 977.68 | I44: 985.42 | J44: 990.23 | K44: 980.6 | L44: 968.05 | M44: 0.01474
A45: 35 | B45: ASTRAL | C45: 871.75 | D45: 874.27 | E45: 864.53 | F45: 857.32 | G45: 847.58 | H45: 881.48 | I45: 891.22 | J45: 898.43 | K45: 884 | L45: 867.05 | M45: 0.26058
A46: 36 | B46: ATUL | C46: 2629.8 | D46: 2641.93 | E46: 2588.87 | F46: 2547.93 | G46: 2494.87 | H46: 2682.87 | I46: 2735.93 | J46: 2776.87 | K46: 2695 | L46: 2601 | M46: 0.02427
A47: 37 | B47: AUROPHARMA | C47: 581.65 | D47: 582.52 | E47: 576.68 | F47: 571.72 | G47: 565.88 | H47: 587.48 | I47: 593.32 | J47: 598.28 | K47: 588.35 | L47: 577.55 | M47: 22.85767
A48: 38 | B48: AVANTIFEED | C48: 2450.5 | D48: 2408.98 | E48: 2331.52 | F48: 2212.53 | G48: 2135.07 | H48: 2527.97 | I48: 2605.43 | J48: 2724.42 | K48: 2486.45 | L48: 2290 | M48: 3.05626
A49: 39 | B49: DMART | C49: 1337.9 | D49: 1331.57 | E49: 1318.33 | F49: 1298.77 | G49: 1285.53 | H49: 1351.13 | I49: 1364.37 | J49: 1383.93 | K49: 1344.8 | L49: 1312 | M49: 5.29862
A50: 40 | B50: AXISBANK | C50: 531.5 | D50: 527.03 | E50: 519.12 | F50: 506.73 | G50: 498.82 | H50: 539.42 | I50: 547.33 | J50: 559.72 | K50: 534.95 | L50: 514.65 | M50: 78.46232
A51: 41 | B51: BASF | C51: 2040.65 | D51: 2056.28 | E51: 2020.37 | F51: 2000.08 | G51: 1964.17 | H51: 2076.57 | I51: 2112.48 | J51: 2132.77 | K51: 2092.2 | L51: 2036 | M51: 0.087
A52: 42 | B52: BEML | C52: 1106.6 | D52: 1114.58 | E52: 1093.02 | F52: 1079.43 | G52: 1057.87 | H52: 1128.17 | I52: 1149.73 | J52: 1163.32 | K52: 1136.15 | L52: 1101 | M52: 8.78793
A53: 43 | B53: BFUTILITIE | C53: 408.45 | D53: 408.78 | E53: 398.67 | F53: 388.88 | G53: 378.77 | H53: 418.57 | I53: 428.68 | J53: 438.47 | K53: 418.9 | L53: 399 | M53: 6.14329
A54: 44 | B54: BGRENERGY | C54: 109.05 | D54: 108.20 | E54: 106.45 | F54: 103.85 | G54: 102.10 | H54: 110.80 | I54: 112.55 | J54: 115.15 | K54: 109.95 | L54: 105.6 | M54: 0.71085
A55: 45 | B55: BSE | C55: 795.8 | D55: 792.30 | E55: 785.60 | F55: 775.40 | G55: 768.70 | H55: 802.50 | I55: 809.20 | J55: 819.40 | K55: 799 | L55: 782.1 | M55: 1.19371
A56: 46 | B56: BAJAJ-AUTO | C56: 2971.75 | D56: 2976.23 | E56: 2948.47 | F56: 2925.18 | G56: 2897.42 | H56: 2999.52 | I56: 3027.28 | J56: 3050.57 | K56: 3004 | L56: 2952.95 | M56: 2.87288
A57: 47 | B57: BAJAJCORP | C57: 466.05 | D57: 468.20 | E57: 461.10 | F57: 456.15 | G57: 449.05 | H57: 473.15 | I57: 480.25 | J57: 485.20 | K57: 475.3 | L57: 463.25 | M57: 0.67727
A58: 48 | B58: BAJAJELEC | C58: 611.7 | D58: 600.13 | E58: 576.27 | F58: 540.83 | G58: 516.97 | H58: 635.57 | I58: 659.43 | J58: 694.87 | K58: 624 | L58: 564.7 | M58: 13.2194
A59: 49 | B59: BAJFINANCE | C59: 1680.7 | D59: 1681.05 | E59: 1663.25 | F59: 1645.80 | G59: 1628.00 | H59: 1698.50 | I59: 1716.30 | J59: 1733.75 | K59: 1698.85 | L59: 1663.6 | M59: 8.20802
A60: 50 | B60: BAJAJFINSV | C60: 5098.4 | D60: 5078.32 | E60: 5036.68 | F60: 4974.97 | G60: 4933.33 | H60: 5140.03 | I60: 5181.67 | J60: 5243.38 | K60: 5119.95 | L60: 5016.6 | M60: 0.9257
A61: 51 | B61: BAJAJHIND | C61: 10.1 | D61: 10.08 | E61: 9.82 | F61: 9.53 | G61: 9.27 | H61: 10.37 | I61: 10.63 | J61: 10.92 | K61: 10.35 | L61: 9.8 | M61: 26.40608
A62: 52 | B62: BAJAJHLDNG | C62: 2706.3 | D62: 2718.03 | E62: 2692.27 | F62: 2678.23 | G62: 2652.47 | H62: 2732.07 | I62: 2757.83 | J62: 2771.87 | K62: 2743.8 | L62: 2704 | M62: 0.08989
A63: 53 | B63: BALKRISIND | C63: 1049.7 | D63: 1046.12 | E63: 1040.23 | F63: 1030.77 | G63: 1024.88 | H63: 1055.58 | I63: 1061.47 | J63: 1070.93 | K63: 1052 | L63: 1036.65 | M63: 2.5501
A64: 54 | B64: BALLARPUR | C64: 13.05 | D64: 13.02 | E64: 12.73 | F64: 12.42 | G64: 12.13 | H64: 13.33 | I64: 13.62 | J64: 13.93 | K64: 13.3 | L64: 12.7 | M64: 16.30197
A65: 55 | B65: BALMLAWRIE | C65: 224.15 | D65: 225.35 | E65: 222.30 | F65: 220.45 | G65: 217.40 | H65: 227.20 | I65: 230.25 | J65: 232.10 | K65: 228.4 | L65: 223.5 | M65: 0.54085
A66: 56 | B66: BALRAMCHIN | C66: 90.25 | D66: 88.83 | E66: 85.97 | F66: 81.68 | G66: 78.82 | H66: 93.12 | I66: 95.98 | J66: 100.27 | K66: 91.7 | L66: 84.55 | M66: 58.05539
A67: 57 | B67: BANKBARODA | C67: 141.55 | D67: 138.97 | E67: 133.63 | F67: 125.72 | G67: 120.38 | H67: 146.88 | I67: 152.22 | J67: 160.13 | K67: 144.3 | L67: 131.05 | M67: 312.16963
A68: 58 | B68: BANKINDIA | C68: 102.15 | D68: 101.87 | E68: 94.38 | F68: 86.62 | G68: 79.13 | H68: 109.63 | I68: 117.12 | J68: 124.88 | K68: 109.35 | L68: 94.1 | M68: 680.02667
A69: 59 | B69: BATAINDIA | C69: 715.35 | D69: 711.37 | E69: 705.28 | F69: 695.22 | G69: 689.13 | H69: 721.43 | I69: 727.52 | J69: 737.58 | K69: 717.45 | L69: 701.3 | M69: 5.66988
A70: 60 | B70: BERGEPAINT | C70: 246.8 | D70: 246.55 | E70: 244.95 | F70: 243.10 | G70: 241.50 | H70: 248.40 | I70: 250.00 | J70: 251.85 | K70: 248.15 | L70: 244.7 | M70: 3.82305
A71: 61 | B71: BEL | C71: 151.55 | D71: 151.12 | E71: 150.03 | F71: 148.52 | G71: 147.43 | H71: 152.63 | I71: 153.72 | J71: 155.23 | K71: 152.2 | L71: 149.6 | M71: 41.55454
A72: 62 | B72: BHARATFIN | C72: 1056.6 | D72: 1060.63 | E72: 1047.27 | F72: 1037.93 | G72: 1024.57 | H72: 1069.97 | I72: 1083.33 | J72: 1092.67 | K72: 1074 | L72: 1051.3 | M72: 6.92305
A73: 63 | B73: BHARATFORG | C73: 737.75 | D73: 738.98 | E73: 727.77 | F73: 717.78 | G73: 706.57 | H73: 748.97 | I73: 760.18 | J73: 770.17 | K73: 750.2 | L73: 729 | M73: 10.32311
A74: 64 | B74: BHEL | C74: 86.9 | D74: 87.00 | E74: 86.20 | F74: 85.50 | G74: 84.70 | H74: 87.70 | I74: 88.50 | J74: 89.20 | K74: 87.8 | L74: 86.3 | M74: 80.51617
A75: 65 | B75: BPCL | C75: 466.65 | D75: 460.20 | E75: 452.00 | F75: 437.35 | G75: 429.15 | H75: 474.85 | I75: 483.05 | J75: 497.70 | K75: 468.4 | L75: 445.55 | M75: 41.70537
A76: 66 | B76: BHARTIARTL | C76: 426.3 | D76: 425.42 | E76: 421.03 | F76: 415.77 | G76: 411.38 | H76: 430.68 | I76: 435.07 | J76: 440.33 | K76: 429.8 | L76: 420.15 | M76: 51.48679
A77: 67 | B77: INFRATEL | C77: 349 | D77: 345.00 | E77: 340.00 | F77: 331.00 | G77: 326.00 | H77: 354.00 | I77: 359.00 | J77: 368.00 | K77: 350 | L77: 336 | M77: 24.91061
A78: 68 | B78: BHUSANSTL | C78: 42.3 | D78: 42.60 | E78: 40.75 | F78: 39.20 | G78: 37.35 | H78: 44.15 | I78: 46.00 | J78: 47.55 | K78: 44.45 | L78: 41.05 | M78: 36.4766
A79: 69 | B79: BIOCON | C79: 603.8 | D79: 598.82 | E79: 587.28 | F79: 570.77 | G79: 559.23 | H79: 615.33 | I79: 626.87 | J79: 643.38 | K79: 610.35 | L79: 582.3 | M79: 30.84553
A80: 70 | B80: BIRLACORPN | C80: 781.5 | D80: 789.20 | E80: 769.40 | F80: 757.30 | G80: 737.50 | H80: 801.30 | I80: 821.10 | J80: 833.20 | K80: 809 | L80: 777.1 | M80: 0.38037
A81: 71 | B81: BLISSGVS | C81: 183.65 | D81: 184.03 | E81: 181.27 | F81: 178.88 | G81: 176.12 | H81: 186.42 | I81: 189.18 | J81: 191.57 | K81: 186.8 | L81: 181.65 | M81: 0.65708
A82: 72 | B82: BLUEDART | C82: 4182.45 | D82: 4185.82 | E82: 4156.63 | F82: 4130.82 | G82: 4101.63 | H82: 4211.63 | I82: 4240.82 | J82: 4266.63 | K82: 4215 | L82: 4160 | M82: 0.08582
A83: 73 | B83: BLUESTARCO | C83: 792.2 | D83: 793.60 | E83: 786.65 | F83: 781.10 | G83: 774.15 | H83: 799.15 | I83: 806.10 | J83: 811.65 | K83: 800.55 | L83: 788.05 | M83: 0.94395
A84: 74 | B84: BBTC | C84: 1346.75 | D84: 1351.42 | E84: 1326.83 | F84: 1306.92 | G84: 1282.33 | H84: 1371.33 | I84: 1395.92 | J84: 1415.83 | K84: 1376 | L84: 1331.5 | M84: 1.30101
A85: 75 | B85: BOMDYEING | C85: 244.8 | D85: 244.68 | E85: 239.72 | F85: 234.63 | G85: 229.67 | H85: 249.77 | I85: 254.73 | J85: 259.82 | K85: 249.65 | L85: 239.6 | M85: 29.55526
A86: 76 | B86: BRFL | C86: 49.15 | D86: 47.62 | E86: 46.08 | F86: 43.02 | G86: 41.48 | H86: 50.68 | I86: 52.22 | J86: 55.28 | K86: 49.15 | L86: 44.55 | M86: 3.26235
A87: 77 | B87: BOSCHLTD | C87: 18487.9 | D87: 18396.42 | E87: 18292.83 | F87: 18097.77 | G87: 17994.18 | H87: 18591.48 | I87: 18695.07 | J87: 18890.13 | K87: 18500 | L87: 18201.35 | M87: 0.08229
A88: 78 | B88: BRIGADE | C88: 275.2 | D88: 273.72 | E88: 270.98 | F88: 266.77 | G88: 264.03 | H88: 277.93 | I88: 280.67 | J88: 284.88 | K88: 276.45 | L88: 269.5 | M88: 0.30237
A89: 79 | B89: BRITANNIA | C89: 4869.95 | D89: 4865.77 | E89: 4836.53 | F89: 4803.12 | G89: 4773.88 | H89: 4899.18 | I89: 4928.42 | J89: 4961.83 | K89: 4895 | L89: 4832.35 | M89: 1.09033
A90: 80 | B90: CARERATING | C90: 1345.35 | D90: 1345.90 | E90: 1330.45 | F90: 1315.55 | G90: 1300.10 | H90: 1360.80 | I90: 1376.25 | J90: 1391.15 | K90: 1361.35 | L90: 1331 | M90: 0.47185
A91: 81 | B91: CCL | C91: 291.85 | D91: 291.80 | E91: 288.60 | F91: 285.35 | G91: 282.15 | H91: 295.05 | I91: 298.25 | J91: 301.50 | K91: 295 | L91: 288.55 | M91: 0.36177
A92: 82 | B92: CGPOWER | C92: 82.25 | D92: 81.73 | E92: 80.72 | F92: 79.18 | G92: 78.17 | H92: 83.27 | I92: 84.28 | J92: 85.82 | K92: 82.75 | L92: 80.2 | M92: 29.75392
A93: 83 | B93: CRISIL | C93: 1954.1 | D93: 1948.03 | E93: 1931.12 | F93: 1908.13 | G93: 1891.22 | H93: 1971.02 | I93: 1987.93 | J93: 2010.92 | K93: 1964.95 | L93: 1925.05 | M93: 0.17083
A94: 84 | B94: CADILAHC | C94: 390.45 | D94: 390.38 | E94: 384.07 | F94: 377.68 | G94: 371.37 | H94: 396.77 | I94: 403.08 | J94: 409.47 | K94: 396.7 | L94: 384 | M94: 8.99152
A95: 85 | B95: CANFINHOME | C95: 538.55 | D95: 531.85 | E95: 521.70 | F95: 504.85 | G95: 494.70 | H95: 548.70 | I95: 558.85 | J95: 575.70 | K95: 542 | L95: 515 | M95: 16.10243
A96: 86 | B96: CANBK | C96: 252 | D96: 248.87 | E96: 235.98 | F96: 219.97 | G96: 207.08 | H96: 264.88 | I96: 277.77 | J96: 293.78 | K96: 261.75 | L96: 232.85 | M96: 237.87685
A97: 87 | B97: CAPF | C97: 649.25 | D97: 647.02 | E97: 641.23 | F97: 633.22 | G97: 627.43 | H97: 655.03 | I97: 660.82 | J97: 668.83 | K97: 652.8 | L97: 639 | M97: 8.4327
A98: 88 | B98: CAPLIPOINT | C98: 600.1 | D98: 602.32 | E98: 596.13 | F98: 592.17 | G98: 585.98 | H98: 606.28 | I98: 612.47 | J98: 616.43 | K98: 608.5 | L98: 598.35 | M98: 0.26432
A99: 89 | B99: CARBORUNIV | C99: 351.05 | D99: 350.00 | E99: 345.30 | F99: 339.55 | G99: 334.85 | H99: 355.75 | I99: 360.45 | J99: 366.20 | K99: 354.7 | L99: 344.25 | M99: 0.80854
A100: 90 | B100: CASTROLIND | C100: 205.75 | D100: 206.47 | E100: 204.23 | F100: 202.72 | G100: 200.48 | H100: 207.98 | I100: 210.22 | J100: 211.73 | K100: 208.7 | L100: 204.95 | M100: 18.22015
A101: 91 | B101: CEATLTD | C101: 1598.2 | D101: 1582.07 | E101: 1560.18 | F101: 1522.17 | G101: 1500.28 | H101: 1620.08 | I101: 1641.97 | J101: 1679.98 | K101: 1603.95 | L101: 1544.05 | M101: 6.06838
A102: 92 | B102: CENTRALBK | C102: 73.45 | D102: 73.93 | E102: 71.62 | F102: 69.78 | G102: 67.47 | H102: 75.77 | I102: 78.08 | J102: 79.92 | K102: 76.25 | L102: 72.1 | M102: 16.12005
A103: 93 | B103: CENTURYPLY | C103: 326.45 | D103: 325.15 | E103: 322.30 | F103: 318.15 | G103: 315.30 | H103: 329.30 | I103: 332.15 | J103: 336.30 | K103: 328 | L103: 321 | M103: 1.66412
A104: 94 | B104: CENTURYTEX | C104: 1214.6 | D104: 1202.45 | E104: 1184.90 | F104: 1155.20 | G104: 1137.65 | H104: 1232.15 | I104: 1249.70 | J104: 1279.40 | K104: 1220 | L104: 1172.75 | M104: 8.13347
A105: 95 | B105: CERA | C105: 3204.5 | D105: 3203.17 | E105: 3176.33 | F105: 3148.17 | G105: 3121.33 | H105: 3231.33 | I105: 3258.17 | J105: 3286.33 | K105: 3230 | L105: 3175 | M105: 0.0608
A106: 96 | B106: CHAMBLFERT | C106: 161.1 | D106: 160.63 | E106: 158.37 | F106: 155.63 | G106: 153.37 | H106: 163.37 | I106: 165.63 | J106: 168.37 | K106: 162.9 | L106: 157.9 | M106: 5.01901
A107: 97 | B107: CHENNPETRO | C107: 367.75 | D107: 361.58 | E107: 351.77 | F107: 335.78 | G107: 325.97 | H107: 377.57 | I107: 387.38 | J107: 403.37 | K107: 371.4 | L107: 345.6 | M107: 10.74778
A108: 98 | B108: CHOLAFIN | C108: 1446.15 | D108: 1448.32 | E108: 1431.73 | F108: 1417.32 | G108: 1400.73 | H108: 1462.73 | I108: 1479.32 | J108: 1493.73 | K108: 1464.9 | L108: 1433.9 | M108: 1.38429
A109: 99 | B109: CIPLA | C109: 578.75 | D109: 578.93 | E109: 574.97 | F109: 571.18 | G109: 567.22 | H109: 582.72 | I109: 586.68 | J109: 590.47 | K109: 582.9 | L109: 575.15 | M109: 8.01792
A110: 100 | B110: CUB | C110: 184.25 | D110: 182.93 | E110: 181.12 | F110: 177.98 | G110: 176.17 | H110: 186.07 | I110: 187.88 | J110: 191.02 | K110: 184.75 | L110: 179.8 | M110: 19.24267
A111: 101 | B111: COALINDIA | C111: 294.85 | D111: 294.50 | E111: 290.35 | F111: 285.85 | G111: 281.70 | H111: 299.00 | I111: 303.15 | J111: 307.65 | K111: 298.65 | L111: 290 | M111: 63.06692
A112: 102 | B112: COCHINSHIP | C112: 512.55 | D112: 513.68 | E112: 509.87 | F112: 507.18 | G112: 503.37 | H112: 516.37 | I112: 520.18 | J112: 522.87 | K112: 517.5 | L112: 511 | M112: 1.06817
A113: 103 | B113: COFFEEDAY | C113: 292.95 | D113: 293.67 | E113: 287.28 | F113: 281.62 | G113: 275.23 | H113: 299.33 | I113: 305.72 | J113: 311.38 | K113: 300.05 | L113: 288 | M113: 5.34692
A114: 104 | B114: COLPAL | C114: 1044.9 | D114: 1044.28 | E114: 1038.57 | F114: 1032.23 | G114: 1026.52 | H114: 1050.62 | I114: 1056.33 | J114: 1062.67 | K114: 1050 | L114: 1037.95 | M114: 1.78164
A115: 105 | B115: CONCOR | C115: 1241.4 | D115: 1242.50 | E115: 1230.00 | F115: 1218.60 | G115: 1206.10 | H115: 1253.90 | I115: 1266.40 | J115: 1277.80 | K115: 1255 | L115: 1231.1 | M115: 1.90308
A116: 106 | B116: COROMANDEL | C116: 504 | D116: 507.87 | E116: 498.13 | F116: 492.27 | G116: 482.53 | H116: 513.73 | I116: 523.47 | J116: 529.33 | K116: 517.6 | L116: 502 | M116: 1.14688
A117: 107 | B117: CORPBANK | C117: 29.75 | D117: 29.98 | E117: 28.02 | F117: 26.28 | G117: 24.32 | H117: 31.72 | I117: 33.68 | J117: 35.42 | K117: 31.95 | L117: 28.25 | M117: 11.25542
A118: 108 | B118: COX&KINGS | C118: 250.1 | D118: 250.90 | E118: 247.30 | F118: 244.50 | G118: 240.90 | H118: 253.70 | I118: 257.30 | J118: 260.10 | K118: 254.5 | L118: 248.1 | M118: 0.96593
A119: 109 | B119: CROMPTON | C119: 227.1 | D119: 229.25 | E119: 223.35 | F119: 219.60 | G119: 213.70 | H119: 233.00 | I119: 238.90 | J119: 242.65 | K119: 235.15 | L119: 225.5 | M119: 6.04696
A120: 110 | B120: CUMMINSIND | C120: 773.75 | D120: 775.67 | E120: 766.33 | F120: 758.92 | G120: 749.58 | H120: 783.08 | I120: 792.42 | J120: 799.83 | K120: 785 | L120: 768.25 | M120: 2.57696
A121: 111 | B121: CYIENT | C121: 628.2 | D121: 627.07 | E121: 622.13 | F121: 616.07 | G121: 611.13 | H121: 633.13 | I121: 638.07 | J121: 644.13 | K121: 632 | L121: 621 | M121: 0.41469
A122: 112 | B122: DBREALTY | C122: 55.5 | D122: 54.87 | E122: 53.23 | F122: 50.97 | G122: 49.33 | H122: 57.13 | I122: 58.77 | J122: 61.03 | K122: 56.5 | L122: 52.6 | M122: 7.30598
A123: 113 | B123: DBCORP | C123: 326.05 | D123: 324.42 | E123: 321.93 | F123: 317.82 | G123: 315.33 | H123: 328.53 | I123: 331.02 | J123: 335.13 | K123: 326.9 | L123: 320.3 | M123: 0.22975
A124: 114 | B124: DCBBANK | C124: 163.45 | D124: 163.47 | E124: 160.73 | F124: 158.02 | G124: 155.28 | H124: 166.18 | I124: 168.92 | J124: 171.63 | K124: 166.2 | L124: 160.75 | M124: 17.92853
A125: 115 | B125: DCMSHRIRAM | C125: 495.65 | D125: 492.22 | E125: 482.48 | F125: 469.32 | G125: 459.58 | H125: 505.38 | I125: 515.12 | J125: 528.28 | K125: 501.95 | L125: 479.05 | M125: 1.1681
A126: 116 | B126: DLF | C126: 219.9 | D126: 219.38 | E126: 215.42 | F126: 210.93 | G126: 206.97 | H126: 223.87 | I126: 227.83 | J126: 232.32 | K126: 223.35 | L126: 214.9 | M126: 64.33609
A127: 117 | B127: DABUR | C127: 325.15 | D127: 327.52 | E127: 321.98 | F127: 318.82 | G127: 313.28 | H127: 330.68 | I127: 336.22 | J127: 339.38 | K127: 333.05 | L127: 324.35 | M127: 26.1847
A128: 118 | B128: DALMIABHA | C128: 2869.35 | D128: 2872.52 | E128: 2847.03 | F128: 2824.72 | G128: 2799.23 | H128: 2894.83 | I128: 2920.32 | J128: 2942.63 | K128: 2898 | L128: 2850.2 | M128: 1.94967
A129: 119 | B129: DEEPAKFERT | C129: 336.9 | D129: 331.90 | E129: 324.80 | F129: 312.70 | G129: 305.60 | H129: 344.00 | I129: 351.10 | J129: 363.20 | K129: 339 | L129: 319.8 | M129: 2.25763
A130: 120 | B130: DELTACORP | C130: 314.15 | D130: 315.75 | E130: 306.65 | F130: 299.15 | G130: 290.05 | H130: 323.25 | I130: 332.35 | J130: 339.85 | K130: 324.85 | L130: 308.25 | M130: 20.90397
A131: 121 | B131: DEN | C131: 93.1 | D131: 93.33 | E131: 91.97 | F131: 90.83 | G131: 89.47 | H131: 94.47 | I131: 95.83 | J131: 96.97 | K131: 94.7 | L131: 92.2 | M131: 2.94401
A132: 122 | B132: DENABANK | C132: 19.4 | D132: 19.20 | E132: 18.60 | F132: 17.80 | G132: 17.20 | H132: 20.00 | I132: 20.60 | J132: 21.40 | K132: 19.8 | L132: 18.4 | M132: 27.62322
A133: 123 | B133: DHFL | C133: 516.15 | D133: 517.45 | E133: 509.30 | F133: 502.45 | G133: 494.30 | H133: 524.30 | I133: 532.45 | J133: 539.30 | K133: 525.6 | L133: 510.6 | M133: 51.71004
A134: 124 | B134: DHANUKA | C134: 588.65 | D134: 589.82 | E134: 581.88 | F134: 575.12 | G134: 567.18 | H134: 596.58 | I134: 604.52 | J134: 611.28 | K134: 597.75 | L134: 583.05 | M134: 0.13433
A135: 125 | B135: DBL | C135: 980.15 | D135: 981.05 | E135: 972.10 | F135: 964.05 | G135: 955.10 | H135: 989.10 | I135: 998.05 | J135: 1006.10 | K135: 990 | L135: 973 | M135: 3.59231
A136: 126 | B136: DISHTV | C136: 66.6 | D136: 66.30 | E136: 65.15 | F136: 63.70 | G136: 62.55 | H136: 67.75 | I136: 68.90 | J136: 70.35 | K136: 67.45 | L136: 64.85 | M136: 18.82238
A137: 127 | B137: DIVISLAB | C137: 1035.45 | D137: 1031.15 | E137: 1012.30 | F137: 989.15 | G137: 970.30 | H137: 1054.30 | I137: 1073.15 | J137: 1096.30 | K137: 1050 | L137: 1008 | M137: 8.39762
A138: 128 | B138: LALPATHLAB | C138: 908.3 | D138: 907.92 | E138: 901.48 | F138: 894.67 | G138: 888.23 | H138: 914.73 | I138: 921.17 | J138: 927.98 | K138: 914.35 | L138: 901.1 | M138: 0.34945
A139: 129 | B139: DRREDDY | C139: 2181.5 | D139: 2172.30 | E139: 2150.45 | F139: 2119.40 | G139: 2097.55 | H139: 2203.35 | I139: 2225.20 | J139: 2256.25 | K139: 2194.15 | L139: 2141.25 | M139: 5.19269
A140: 130 | B140: DREDGECORP | C140: 664.7 | D140: 666.43 | E140: 659.52 | F140: 654.33 | G140: 647.42 | H140: 671.62 | I140: 678.53 | J140: 683.72 | K140: 673.35 | L140: 661.25 | M140: 1.55196
A141: 131 | B141: EIDPARRY | C141: 300.05 | D141: 299.60 | E141: 297.20 | F141: 294.35 | G141: 291.95 | H141: 302.45 | I141: 304.85 | J141: 307.70 | K141: 302 | L141: 296.75 | M141: 0.74313
A142: 132 | B142: EIHOTEL | C142: 169.25 | D142: 170.45 | E142: 167.05 | F142: 164.85 | G142: 161.45 | H142: 172.65 | I142: 176.05 | J142: 178.25 | K142: 173.85 | L142: 168.25 | M142: 0.87317
A143: 133 | B143: EDELWEISS | C143: 272.1 | D143: 269.92 | E143: 265.53 | F143: 258.97 | G143: 254.58 | H143: 276.48 | I143: 280.87 | J143: 287.43 | K143: 274.3 | L143: 263.35 | M143: 11.73281
A144: 134 | B144: EICHERMOT | C144: 28849.35 | D144: 28607.12 | E144: 28294.23 | F144: 27739.12 | G144: 27426.23 | H144: 29162.23 | I144: 29475.12 | J144: 30030.23 | K144: 28920 | L144: 28052 | M144: 0.41271
A145: 135 | B145: EMAMILTD | C145: 1063.15 | D145: 1066.72 | E145: 1056.43 | F145: 1049.72 | G145: 1039.43 | H145: 1073.43 | I145: 1083.72 | J145: 1090.43 | K145: 1077 | L145: 1060 | M145: 0.93156
A146: 136 | B146: ENDURANCE | C146: 1295.6 | D146: 1292.03 | E146: 1269.07 | F146: 1242.53 | G146: 1219.57 | H146: 1318.57 | I146: 1341.53 | J146: 1368.07 | K146: 1315 | L146: 1265.5 | M146: 1.01631
A147: 137 | B147: ENGINERSIN | C147: 167.1 | D147: 166.33 | E147: 163.47 | F147: 159.83 | G147: 156.97 | H147: 169.97 | I147: 172.83 | J147: 176.47 | K147: 169.2 | L147: 162.7 | M147: 20.20407
A148: 138 | B148: EQUITAS | C148: 141.7 | D148: 141.50 | E148: 139.50 | F148: 137.30 | G148: 135.30 | H148: 143.70 | I148: 145.70 | J148: 147.90 | K148: 143.5 | L148: 139.3 | M148: 14.80862
A149: 139 | B149: EROSMEDIA | C149: 179.9 | D149: 179.45 | E149: 176.90 | F149: 173.90 | G149: 171.35 | H149: 182.45 | I149: 185.00 | J149: 188.00 | K149: 182 | L149: 176.45 | M149: 7.59895
A150: 140 | B150: ESCORTS | C150: 854.4 | D150: 856.25 | E150: 847.80 | F150: 841.20 | G150: 832.75 | H150: 862.85 | I150: 871.30 | J150: 877.90 | K150: 864.7 | L150: 849.65 | M150: 6.26822
A151: 141 | B151: ESSELPACK | C151: 252.95 | D151: 253.60 | E151: 251.20 | F151: 249.45 | G151: 247.05 | H151: 255.35 | I151: 257.75 | J151: 259.50 | K151: 256 | L151: 251.85 | M151: 0.13871
A152: 142 | B152: EVEREADY | C152: 366.15 | D152: 362.08 | E152: 357.17 | F152: 348.18 | G152: 343.27 | H152: 371.07 | I152: 375.98 | J152: 384.97 | K152: 367 | L152: 353.1 | M152: 1.53017
A153: 143 | B153: EXIDEIND | C153: 214.5 | D153: 214.50 | E153: 212.50 | F153: 210.50 | G153: 208.50 | H153: 216.50 | I153: 218.50 | J153: 220.50 | K153: 216.5 | L153: 212.5 | M153: 13.44277
A154: 144 | B154: FEDERALBNK | C154: 96.35 | D154: 95.77 | E154: 94.18 | F154: 92.02 | G154: 90.43 | H154: 97.93 | I154: 99.52 | J154: 101.68 | K154: 97.35 | L154: 93.6 | M154: 135.41557
A155: 145 | B155: FINCABLES | C155: 709.55 | D155: 706.93 | E155: 700.62 | F155: 691.68 | G155: 685.37 | H155: 715.87 | I155: 722.18 | J155: 731.12 | K155: 713.25 | L155: 698 | M155: 1.21027
A156: 146 | B156: FINPIPE | C156: 656.65 | D156: 651.05 | E156: 643.10 | F156: 629.55 | G156: 621.60 | H156: 664.60 | I156: 672.55 | J156: 686.10 | K156: 659 | L156: 637.5 | M156: 0.45823
A157: 147 | B157: FSL | C157: 49.65 | D157: 49.60 | E157: 48.90 | F157: 48.15 | G157: 47.45 | H157: 50.35 | I157: 51.05 | J157: 51.80 | K157: 50.3 | L157: 48.85 | M157: 50.5013
A158: 148 | B158: FCONSUMER | C158: 60.1 | D158: 57.38 | E158: 54.42 | F158: 48.73 | G158: 45.77 | H158: 63.07 | I158: 66.03 | J158: 71.72 | K158: 60.35 | L158: 51.7 | M158: 321.9055
A159: 149 | B159: FLFL | C159: 389.65 | D159: 392.92 | E159: 381.83 | F159: 374.02 | G159: 362.93 | H159: 400.73 | I159: 411.82 | J159: 419.63 | K159: 404 | L159: 385.1 | M159: 0.80728
A160: 150 | B160: GAIL | C160: 455.95 | D160: 451.32 | E160: 444.63 | F160: 433.32 | G160: 426.63 | H160: 462.63 | I160: 469.32 | J160: 480.63 | K160: 458 | L160: 440 | M160: 27.79069
A161: 151 | B161: GEPIL | C161: 830.05 | D161: 837.47 | E161: 819.68 | F161: 809.32 | G161: 791.53 | H161: 847.83 | I161: 865.62 | J161: 875.98 | K161: 855.25 | L161: 827.1 | M161: 0.07089
A162: 152 | B162: GET&D | C162: 386.8 | D162: 387.42 | E162: 383.43 | F162: 380.07 | G162: 376.08 | H162: 390.78 | I162: 394.77 | J162: 398.13 | K162: 391.4 | L162: 384.05 | M162: 0.22984
A163: 153 | B163: GHCL | C163: 267.15 | D163: 267.27 | E163: 262.23 | F163: 257.32 | G163: 252.28 | H163: 272.18 | I163: 277.22 | J163: 282.13 | K163: 272.3 | L163: 262.35 | M163: 1.72864
A164: 154 | B164: GMRINFRA | C164: 17.55 | D164: 17.50 | E164: 17.25 | F164: 16.95 | G164: 16.70 | H164: 17.80 | I164: 18.05 | J164: 18.35 | K164: 17.75 | L164: 17.2 | M164: 264.97276
A165: 155 | B165: GVKPIL | C165: 16.1 | D165: 15.93 | E165: 15.77 | F165: 15.43 | G165: 15.27 | H165: 16.27 | I165: 16.43 | J165: 16.77 | K165: 16.1 | L165: 15.6 | M165: 18.76513
A166: 156 | B166: GDL | C166: 213.65 | D166: 211.42 | E166: 208.03 | F166: 202.42 | G166: 199.03 | H166: 217.03 | I166: 220.42 | J166: 226.03 | K166: 214.8 | L166: 205.8 | M166: 0.71918
A167: 157 | B167: GATI | C167: 102.9 | D167: 102.62 | E167: 101.33 | F167: 99.77 | G167: 98.48 | H167: 104.18 | I167: 105.47 | J167: 107.03 | K167: 103.9 | L167: 101.05 | M167: 7.224
A168: 158 | B168: GILLETTE | C168: 6608.25 | D168: 6604.35 | E168: 6559.00 | F168: 6509.75 | G168: 6464.40 | H168: 6653.60 | I168: 6698.95 | J168: 6748.20 | K168: 6649.7 | L168: 6555.1 | M168: 0.03078
A169: 159 | B169: GSKCONS | C169: 6625.45 | D169: 6675.58 | E169: 6551.17 | F169: 6476.88 | G169: 6352.47 | H169: 6749.87 | I169: 6874.28 | J169: 6948.57 | K169: 6800 | L169: 6601.3 | M169: 0.1336
A170: 160 | B170: GLAXO | C170: 2269.3 | D170: 2269.77 | E170: 2249.53 | F170: 2229.77 | G170: 2209.53 | H170: 2289.53 | I170: 2309.77 | J170: 2329.53 | K170: 2290 | L170: 2250 | M170: 0.09145
A171: 161 | B171: GLENMARK | C171: 538.15 | D171: 537.37 | E171: 533.78 | F171: 529.42 | G171: 525.83 | H171: 541.73 | I171: 545.32 | J171: 549.68 | K171: 540.95 | L171: 533 | M171: 5.01265
A172: 162 | B172: GODFRYPHLP | C172: 873.25 | D172: 861.97 | E172: 845.23 | F172: 817.22 | G172: 800.48 | H172: 889.98 | I172: 906.72 | J172: 934.73 | K172: 878.7 | L172: 833.95 | M172: 1.55122
A173: 163 | B173: GODREJCP | C173: 1092.45 | D173: 1088.18 | E173: 1080.27 | F173: 1068.08 | G173: 1060.17 | H173: 1100.37 | I173: 1108.28 | J173: 1120.47 | K173: 1096.1 | L173: 1076 | M173: 2.88849
A174: 164 | B174: GODREJIND | C174: 547.55 | D174: 543.08 | E174: 536.47 | F174: 525.38 | G174: 518.77 | H174: 554.17 | I174: 560.78 | J174: 571.87 | K174: 549.7 | L174: 532 | M174: 3.69094
A175: 165 | B175: GODREJPROP | C175: 763.4 | D175: 761.17 | E175: 737.33 | F175: 711.27 | G175: 687.43 | H175: 787.23 | I175: 811.07 | J175: 837.13 | K175: 785 | L175: 735.1 | M175: 1.57756
A176: 166 | B176: GRANULES | C176: 109.9 | D176: 109.92 | E176: 107.98 | F176: 106.07 | G176: 104.13 | H176: 111.83 | I176: 113.77 | J176: 115.68 | K176: 111.85 | L176: 108 | M176: 16.48683
A177: 167 | B177: GESHIP | C177: 359.05 | D177: 357.77 | E177: 353.78 | F177: 348.52 | G177: 344.53 | H177: 363.03 | I177: 367.02 | J177: 372.28 | K177: 361.75 | L177: 352.5 | M177: 0.32677
A178: 168 | B178: GREAVESCOT | C178: 119 | D178: 119.12 | E178: 118.08 | F178: 117.17 | G178: 116.13 | H178: 120.03 | I178: 121.07 | J178: 121.98 | K178: 120.15 | L178: 118.2 | M178: 4.6016
A179: 169 | B179: GREENPLY | C179: 326 | D179: 325.23 | E179: 322.77 | F179: 319.53 | G179: 317.07 | H179: 328.47 | I179: 330.93 | J179: 334.17 | K179: 327.7 | L179: 322 | M179: 0.36844
A180: 170 | B180: GRUH | C180: 556.5 | D180: 554.50 | E180: 550.00 | F180: 543.50 | G180: 539.00 | H180: 561.00 | I180: 565.50 | J180: 572.00 | K180: 559 | L180: 548 | M180: 3.08068
A181: 171 | B181: GUJALKALI | C181: 709.6 | D181: 709.15 | E181: 695.50 | F181: 681.40 | G181: 667.75 | H181: 723.25 | I181: 736.90 | J181: 751.00 | K181: 722.8 | L181: 695.05 | M181: 0.63618
A182: 172 | B182: GUJFLUORO | C182: 782.9 | D182: 781.60 | E182: 776.35 | F182: 769.80 | G182: 764.55 | H182: 788.15 | I182: 793.40 | J182: 799.95 | K182: 786.85 | L182: 775.05 | M182: 0.32403
A183: 173 | B183: GUJGASLTD | C183: 849.7 | D183: 851.97 | E183: 845.23 | F183: 840.77 | G183: 834.03 | H183: 856.43 | I183: 863.17 | J183: 867.63 | K183: 858.7 | L183: 847.5 | M183: 0.115
A184: 174 | B184: GMDCLTD | C184: 128.5 | D184: 129.27 | E184: 126.53 | F184: 124.57 | G184: 121.83 | H184: 131.23 | I184: 133.97 | J184: 135.93 | K184: 132 | L184: 127.3 | M184: 1.98398
A185: 175 | B185: GNFC | C185: 416.8 | D185: 412.47 | E185: 406.43 | F185: 396.07 | G185: 390.03 | H185: 422.83 | I185: 428.87 | J185: 439.23 | K185: 418.5 | L185: 402.1 | M185: 9.30425
A186: 176 | B186: GPPL | C186: 140.05 | D186: 140.60 | E186: 138.20 | F186: 136.35 | G186: 133.95 | H186: 142.45 | I186: 144.85 | J186: 146.70 | K186: 143 | L186: 138.75 | M186: 3.04938
A187: 177 | B187: GSFC | C187: 123.9 | D187: 123.43 | E187: 121.67 | F187: 119.43 | G187: 117.67 | H187: 125.67 | I187: 127.43 | J187: 129.67 | K187: 125.2 | L187: 121.2 | M187: 14.86987
A188: 178 | B188: GSPL | C188: 195.8 | D188: 195.87 | E188: 193.93 | F188: 192.07 | G188: 190.13 | H188: 197.73 | I188: 199.67 | J188: 201.53 | K188: 197.8 | L188: 194 | M188: 3.85439
A189: 179 | B189: GULFOILLUB | C189: 946.35 | D189: 939.77 | E189: 927.93 | F189: 909.52 | G189: 897.68 | H189: 958.18 | I189: 970.02 | J189: 988.43 | K189: 951.6 | L189: 921.35 | M189: 0.22765
A190: 180 | B190: HCL-INSYS | C190: 54.65 | D190: 54.88 | E190: 53.27 | F190: 51.88 | G190: 50.27 | H190: 56.27 | I190: 57.88 | J190: 59.27 | K190: 56.5 | L190: 53.5 | M190: 28.28807
A191: 181 | B191: HCLTECH | C191: 957 | D191: 957.20 | E191: 945.40 | F191: 933.80 | G191: 922.00 | H191: 968.80 | I191: 980.60 | J191: 992.20 | K191: 969 | L191: 945.6 | M191: 12.56754
A192: 182 | B192: HDFCBANK | C192: 1860.25 | D192: 1866.67 | E192: 1848.58 | F192: 1836.92 | G192: 1818.83 | H192: 1878.33 | I192: 1896.42 | J192: 1908.08 | K192: 1884.75 | L192: 1855 | M192: 12.8105
A193: 183 | B193: HSIL | C193: 411.45 | D193: 409.82 | E193: 406.63 | F193: 401.82 | G193: 398.63 | H193: 414.63 | I193: 417.82 | J193: 422.63 | K193: 413 | L193: 405 | M193: 0.41267
A194: 184 | B194: HTMEDIA | C194: 86.65 | D194: 86.88 | E194: 85.82 | F194: 84.98 | G194: 83.92 | H194: 87.72 | I194: 88.78 | J194: 89.62 | K194: 87.95 | L194: 86.05 | M194: 1.72935
A195: 185 | B195: HATHWAY | C195: 33.35 | D195: 33.65 | E195: 32.60 | F195: 31.85 | G195: 30.80 | H195: 34.40 | I195: 35.45 | J195: 36.20 | K195: 34.7 | L195: 32.9 | M195: 6.53591
A196: 186 | B196: HATSUN | C196: 729.9 | D196: 729.68 | E196: 726.37 | F196: 722.83 | G196: 719.52 | H196: 733.22 | I196: 736.53 | J196: 740.07 | K196: 733 | L196: 726.15 | M196: 0.1278
A197: 187 | B197: HAVELLS | C197: 514.3 | D197: 512.10 | E197: 505.45 | F197: 496.60 | G197: 489.95 | H197: 520.95 | I197: 527.60 | J197: 536.45 | K197: 518.75 | L197: 503.25 | M197: 11.85899
A198: 188 | B198: HEIDELBERG | C198: 151.4 | D198: 151.35 | E198: 148.30 | F198: 145.20 | G198: 142.15 | H198: 154.45 | I198: 157.50 | J198: 160.60 | K198: 154.4 | L198: 148.25 | M198: 2.4351
A199: 189 | B199: HERITGFOOD | C199: 704.3 | D199: 699.37 | E199: 691.98 | F199: 679.67 | G199: 672.28 | H199: 711.68 | I199: 719.07 | J199: 731.38 | K199: 706.75 | L199: 687.05 | M199: 0.13565
A200: 190 | B200: HEROMOTOCO | C200: 3701.2 | D200: 3700.98 | E200: 3672.22 | F200: 3643.23 | G200: 3614.47 | H200: 3729.97 | I200: 3758.73 | J200: 3787.72 | K200: 3729.75 | L200: 3672 | M200: 2.3365
A201: 191 | B201: HEXAWARE | C201: 384.3 | D201: 382.35 | E201: 373.10 | F201: 361.90 | G201: 352.65 | H201: 393.55 | I201: 402.80 | J201: 414.00 | K201: 391.6 | L201: 371.15 | M201: 13.3523
A202: 192 | B202: HFCL | C202: 27.6 | D202: 27.53 | E202: 26.92 | F202: 26.23 | G202: 25.62 | H202: 28.22 | I202: 28.83 | J202: 29.52 | K202: 28.15 | L202: 26.85 | M202: 73.17714
A203: 193 | B203: HIMATSEIDE | C203: 346.65 | D203: 341.38 | E203: 333.77 | F203: 320.88 | G203: 313.27 | H203: 354.27 | I203: 361.88 | J203: 374.77 | K203: 349 | L203: 328.5 | M203: 0.30133
A204: 194 | B204: HINDALCO | C204: 226.15 | D204: 225.53 | E204: 223.12 | F204: 220.08 | G204: 217.67 | H204: 228.57 | I204: 230.98 | J204: 234.02 | K204: 227.95 | L204: 222.5 | M204: 99.90633
A205: 195 | B205: HCC | C205: 31.65 | D205: 31.60 | E205: 31.10 | F205: 30.55 | G205: 30.05 | H205: 32.15 | I205: 32.65 | J205: 33.20 | K205: 32.1 | L205: 31.05 | M205: 60.28133
A206: 196 | B206: HINDCOPPER | C206: 65.85 | D206: 65.90 | E206: 64.55 | F206: 63.25 | G206: 61.90 | H206: 67.20 | I206: 68.55 | J206: 69.85 | K206: 67.25 | L206: 64.6 | M206: 21.08466
... 306 more rows

Sheet Bulk Deals
E6: Back To Main Page
A7: Subject : | B7: BULK DEAL | D7: =Main!B10 -> 2018-03-14
A9: Date | B9: Scrip code | C9: Scrip Name | D9: Client Name | E9: Buy / Sell | F9: Quantity Traded | G9: Trade Price / Wt.Avg.trade price | H9: Exchange
A10: 2018-03-13 | B10: 540697 | C10: AMFL | D10: MITHALAL KACHARALAL PRAJAPATI | E10: BUY | F10: 160,000 | G10: 11.25 | H10: BSE
A11: 2018-03-13 | B11: 541006 | C11: ANGEL | D11: GUINESS SECURITIES LIMITED | E11: BUY | F11: 136,000 | G11: 27.63 | H11: BSE
A12: 2018-03-13 | B12: 530723 | C12: ASITCFIN | D12: LUO SHIXIN | E12: SELL | F12: 30,000 | G12: 71.5 | H12: BSE
A13: 2018-03-13 | B13: 534535 | C13: BGPL | D13: SUNIL SOHANLALJI AJMERA | E13: SELL | F13: 61,832 | G13: 2.49 | H13: BSE
A14: 2018-03-13 | B14: 534535 | C14: BGPL | D14: BP FINTRADE PRIVATE LIMITED | E14: BUY | F14: 50,000 | G14: 2.49 | H14: BSE
A15: 2018-03-13 | B15: 540903 | C15: CRPRISK | D15: SHREE MALLIKARJUN TRAD INVEST PRIVATE LIMITED | E15: SELL | F15: 44,000 | G15: 59.9 | H15: BSE
A16: 2018-03-13 | B16: 540903 | C16: CRPRISK | D16: SHREE MALLIKARJUN TRAD INVEST PRIVATE LIMITED | E16: BUY | F16: 104,000 | G16: 59.41 | H16: BSE
A17: 2018-03-13 | B17: 539884 | C17: DARSHANORNA | D17: VIVIDOFFSET PRINTERS PRIVATELIMITED | E17: BUY | F17: 50,000 | G17: 87 | H17: BSE
A18: 2018-03-13 | B18: 539884 | C18: DARSHANORNA | D18: SHANKAR GROWTH FUND LIMITED | E18: SELL | F18: 50,000 | G18: 87 | H18: BSE
A19: 2018-03-13 | B19: 539884 | C19: DARSHANORNA | D19: J G SECURITIES PVT LTD | E19: SELL | F19: 50,000 | G19: 87 | H19: BSE
A20: 2018-03-13 | B20: 539884 | C20: DARSHANORNA | D20: J G SECURITIES PVT LTD | E20: BUY | F20: 50,000 | G20: 87 | H20: BSE
A21: 2018-03-13 | B21: 533264 | C21: ESL | D21: SCIIL STEEL CAST IRON INVESTMENTS (CYPRUS) LIMITED | E21: SELL | F21: 15,105,260 | G21: 2.31 | H21: BSE
A22: 2018-03-13 | B22: 539839 | C22: FRANKLIN | D22: ENRICH CONSULTING PRIVATELIMITED | E22: BUY | F22: 104,000 | G22: 49.4 | H22: BSE
A23: 2018-03-13 | B23: 539839 | C23: FRANKLIN | D23: ENRICH CONSULTING PRIVATE LIMITED | E23: BUY | F23: 88,000 | G23: 48.55 | H23: BSE
A24: 2018-03-13 | B24: 539839 | C24: FRANKLIN | D24: MSB E TRADE SECURITIES LIMITED | E24: SELL | F24: 104,000 | G24: 47.16 | H24: BSE
A25: 2018-03-13 | B25: 539839 | C25: FRANKLIN | D25: MSB E TRADE SECURITIES LIMITED | E25: BUY | F25: 96,000 | G25: 46.98 | H25: BSE
A26: 2018-03-13 | B26: 533104 | C26: GLOBUSSPR | D26: NAISHADH JAWAHAR PALEJA | E26: SELL | F26: 150,000 | G26: 122.6 | H26: BSE
A27: 2018-03-13 | B27: 533104 | C27: GLOBUSSPR | D27: NITIKET INVESTMENT PRIVATE LIMITED | E27: BUY | F27: 148,500 | G27: 122.6 | H27: BSE
A28: 2018-03-13 | B28: 532951 | C28: GSS | D28: KHUSHBOO ANAND BHAYANI | E28: SELL | F28: 115,166 | G28: 54.39 | H28: BSE
A29: 2018-03-13 | B29: 532951 | C29: GSS | D29: KHUSHBOO ANAND BHAYANI | E29: BUY | F29: 115,166 | G29: 55.57 | H29: BSE
A30: 2018-03-13 | B30: 533506 | C30: INVENTURE | D30: JAYNEEL SECURITIES PRIVATE LIMITED | E30: BUY | F30: 500,000 | G30: 22.98 | H30: BSE
A31: 2018-03-13 | B31: 540526 | C31: IRBINVIT | D31: DB INTERNATIONAL (ASIA) LIMITED | E31: SELL | F31: 6,405,000 | G31: 82.75 | H31: BSE
A32: 2018-03-13 | B32: 540526 | C32: IRBINVIT | D32: NOMURA SINGAPORE LIMITED | E32: BUY | F32: 6,405,000 | G32: 82.75 | H32: BSE
A33: 2018-03-13 | B33: 539679 | C33: KAPILRAJ | D33: AJAY DHIRAJLAL NATHWANI | E33: SELL | F33: 78,049 | G33: 19.9 | H33: BSE
A34: 2018-03-13 | B34: 539679 | C34: KAPILRAJ | D34: AJAY DHIRAJLAL NATHWANI | E34: BUY | F34: 57,049 | G34: 19.9 | H34: BSE
A35: 2018-03-13 | B35: 539679 | C35: KAPILRAJ | D35: DEEPAK PARSHARAM SALVI | E35: SELL | F35: 42,412 | G35: 19.9 | H35: BSE
A36: 2018-03-13 | B36: 539679 | C36: KAPILRAJ | D36: DEEPAK PARSHARAM SALVI | E36: BUY | F36: 42,412 | G36: 19.83 | H36: BSE
A37: 2018-03-13 | B37: 540953 | C37: KENVI | D37: VIVIDOFFSET PRINTERS PRIVATELIMITED | E37: BUY | F37: 147,000 | G37: 18.43 | H37: BSE
A38: 2018-03-13 | B38: 531328 | C38: KRETTOSYS | D38: TEJAS BABULAL SHAH | E38: SELL | F38: 100,000 | G38: 32.15 | H38: BSE
A39: 2018-03-13 | B39: 540192 | C39: LKPSEC | D39: FINEONE MULTITRADE PRIVATE LIMITED | E39: SELL | F39: 1,080,000 | G39: 20.25 | H39: BSE
A40: 2018-03-13 | B40: 540192 | C40: LKPSEC | D40: INDIA MAX INVESTMENT FUND LIMITED | E40: BUY | F40: 1,079,000 | G40: 20.25 | H40: BSE
A41: 2018-03-13 | B41: 511551 | C41: MONARCH | D41: INDO WEBSEC LTD | E41: SELL | F41: 350,000 | G41: 56.02 | H41: BSE
A42: 2018-03-13 | B42: 539311 | C42: NFIL | D42: NEERAJ RAJENDRAKUMAR AGRAWAL | E42: SELL | F42: 220,605 | G42: 14.4 | H42: BSE
A43: 2018-03-13 | B43: 539311 | C43: NFIL | D43: KAMLESH MOTTYBHAI PATEL | E43: BUY | F43: 87,482 | G43: 14.4 | H43: BSE
A44: 2018-03-13 | B44: 539311 | C44: NFIL | D44: NIMESH GANPATBHAI PARMAR | E44: BUY | F44: 65,000 | G44: 14.4 | H44: BSE
A45: 2018-03-13 | B45: 539311 | C45: NFIL | D45: SANJAYKUMAR VINODBHAI RATHOD | E45: BUY | F45: 65,000 | G45: 14.4 | H45: BSE
A46: 2018-03-13 | B46: 517554 | C46: NHCFOODS | D46: HARSHA RAJESHBHAI JHAVERI | E46: BUY | F46: 60,000 | G46: 14.9 | H46: BSE
A47: 2018-03-13 | B47: 517554 | C47: NHCFOODS | D47: AARAV FINANCIAL SERVICES PRIVATE LIMITED | E47: SELL | F47: 60,000 | G47: 14.9 | H47: BSE
A48: 2018-03-13 | B48: 532986 | C48: NIRAJ | D48: DILEEP KUMAR SINGH | E48: SELL | F48: 79,258 | G48: 33.65 | H48: BSE
A49: 2018-03-13 | B49: 532986 | C49: NIRAJ | D49: MALA SINHA | E49: SELL | F49: 6,014 | G49: 32.43 | H49: BSE
A50: 2018-03-13 | B50: 532986 | C50: NIRAJ | D50: MALA SINHA | E50: BUY | F50: 166,655 | G50: 34.07 | H50: BSE
A51: 2018-03-13 | B51: 539273 | C51: PECOS | D51: DINESH KAUSHIK | E51: BUY | F51: 15,000 | G51: 69.67 | H51: BSE
A52: 2018-03-13 | B52: 540404 | C52: PRIME | D52: JOYNET DEVLOPERS LLP | E52: BUY | F52: 46,000 | G52: 188.78 | H52: BSE
A53: 2018-03-13 | B53: 540404 | C53: PRIME | D53: ACHINTYA SECURITIES PVT. LTD. | E53: SELL | F53: 36,000 | G53: 189.79 | H53: BSE
A54: 2018-03-13 | B54: 540404 | C54: PRIME | D54: ACHINTYA SECURITIES PVT. LTD. | E54: BUY | F54: 36,000 | G54: 188.96 | H54: BSE
A55: 2018-03-13 | B55: 500337 | C55: PRIMESECU | D55: CHETAN RASIKLAL SHAH | E55: SELL | F55: 260,000 | G55: 43.38 | H55: BSE
A56: 2018-03-13 | B56: 540796 | C56: RATNABHUMI | D56: TIA ENTERPRISES PRIVATE LIMITED | E56: SELL | F56: 78,000 | G56: 33.04 | H56: BSE
A57: 2018-03-13 | B57: 530419 | C57: SUMEDHA | D57: RAMDOOT REALTORS PVT LTD | E57: SELL | F57: 50,000 | G57: 50.73 | H57: BSE
A58: 2018-03-13 | B58: 530419 | C58: SUMEDHA | D58: RAMDOOT REALTORS PVT LTD | E58: BUY | F58: 50,000 | G58: 52.11 | H58: BSE
A59: 2018-03-13 | B59: 530419 | C59: SUMEDHA | D59: PARTH INFIN BROKERS PVT. LTD. | E59: SELL | F59: 98,693 | G59: 51.93 | H59: BSE
A60: 2018-03-13 | B60: 530419 | C60: SUMEDHA | D60: PARTH INFIN BROKERS PVT. LTD. | E60: BUY | F60: 123,019 | G60: 51.07 | H60: BSE
A61: 2018-03-13 | B61: 538464 | C61: TPROJECT | D61: MANIVASAGAM SHAKTHIRATHNA | E61: SELL | F61: 300,000 | G61: 34.23 | H61: BSE
A62: 2018-03-13 | B62: 513063 | C62: TRANSFRE | D62: AJAY HANUMAN PRASAD KHEMKA | E62: SELL | F62: 50,000 | G62: 22.25 | H62: BSE
A63: 2018-03-13 | B63: 513063 | C63: TRANSFRE | D63: SHIVSWAROOP JAGMOHANLAL GUPTA | E63: BUY | F63: 50,000 | G63: 22.25 | H63: BSE
A64: 2018-03-13 | B64: 539402 | C64: VAL | D64: MUKESH BABULAL SHAH | E64: SELL | F64: 92,000 | G64: 19.41 | H64: BSE
A65: 2018-03-13 | B65: 539402 | C65: VAL | D65: AMAR MUKESH SHAH | E65: SELL | F65: 40,000 | G65: 19.5 | H65: BSE
A66: 2018-03-13 | B66: 539402 | C66: VAL | D66: SHRI RAVINDRA MEDIA VENTURES PRIVATE LIMITED | E66: BUY | F66: 132,000 | G66: 19.5 | H66: BSE
A67: 2018-03-13 | B67: 538598 | C67: VISHAL | D67: SHANTI EXPORTS PVT LTD | E67: BUY | F67: 264,500 | G67: 666.73 | H67: BSE
A68: 2018-03-13 | B68: AIFL | C68: Ashapura Inti Fashion Ltd | D68: HARSHAD HIRJI THAKKAR | E68: BUY | F68: 130,000 | G68: 463.84 | H68: NSE
A69: 2018-03-13 | B69: BANKA | C69: Banka BioLoo Limited | D69: SANJAY KUMAR BANKA | E69: BUY | F69: 31,200 | G69: 114.69 | H69: NSE
A70: 2018-03-13 | B70: CKPLEISURE | C70: CKP Leisure Limited | D70: MANJEET SINGH | E70: BUY | F70: 248,000 | G70: 29.75 | H70: NSE
A71: 2018-03-13 | B71: CKPLEISURE | C71: CKP Leisure Limited | D71: NIKHIL SATISH PORE | E71: BUY | F71: 252,000 | G71: 29.75 | H71: NSE
A72: 2018-03-13 | B72: CKPPRODUCT | C72: CKP Products Limited | D72: NIKHIL SATISH PORE | E72: BUY | F72: 72,000 | G72: 107.07 | H72: NSE
A73: 2018-03-13 | B73: CKPPRODUCT | C73: CKP Products Limited | D73: OVERSKUD MULTI ASSET MANAGEMENT PRIVATE LIMITED | E73: BUY | F73: 33,000 | G73: 77.06 | H73: NSE
A74: 2018-03-13 | B74: GEEKAYWIRE | C74: Geekay Wires Limited | D74: ARYAMAN CAPITAL MARKETS LIMITED | E74: BUY | F74: 60,000 | G74: 36 | H74: NSE
A75: 2018-03-13 | B75: GSS | C75: GSS Infotech Limited | D75: AGARWAL RITU | E75: BUY | F75: 470,379 | G75: 55.6 | H75: NSE
A76: 2018-03-13 | B76: GSS | C76: GSS Infotech Limited | D76: KHUSHBOO ANAND BHAYANI | E76: BUY | F76: 140,082 | G76: 56.63 | H76: NSE
A77: 2018-03-13 | B77: HINDCON | C77: Hindcon Chemicals Limited | D77: J.N.B.SIDHU FINANCE PRIVATE LIMITED | E77: BUY | F77: 64,000 | G77: 28 | H77: NSE
A78: 2018-03-13 | B78: INVENTURE | C78: Inventure Gro & Sec Ltd | D78: JAYNEEL SECURITIES PRIVATE LIMITED | E78: BUY | F78: 500,000 | G78: 22.98 | H78: NSE
A79: 2018-03-13 | B79: JINDCOT | C79: Jindal Cotex Ltd | D79: PURAN CHAND CHOUDHARY | E79: BUY | F79: 400000 | G79: 7 | H79: NSE
A80: 2018-03-13 | B80: JINDCOT | C80: Jindal Cotex Ltd | D80: REAL MARKETING PVT LTD | E80: BUY | F80: 247500 | G80: 7 | H80: NSE
A81: 2018-03-13 | B81: KOTARISUG | C81: Kothari Sugars And Chemic | D81: SHAH MANISH J | E81: BUY | F81: 750000 | G81: 13 | H81: NSE
A82: 2018-03-13 | B82: PGEL | C82: PG Electroplast Ltd | D82: AGARWAL RITU | E82: BUY | F82: 95132 | G82: 258.8 | H82: NSE
A83: 2018-03-13 | B83: PGEL | C83: PG Electroplast Ltd | D83: AJAY SURENDRABHAI PATEL | E83: BUY | F83: 165000 | G83: 258.19 | H83: NSE
A84: 2018-03-13 | B84: SAMTEL | C84: Samtel Color Ltd. | D84: BP FINTRADE PRIVATE LIMITED | E84: BUY | F84: 764881 | G84: 0.15 | H84: NSE
A85: 2018-03-13 | B85: SHYAMCENT | C85: Shyam Century Ferrous Ltd | D85: MAHABIR PRASAD AGARWAL & SONS (HUF) | E85: BUY | F85: 4000000 | G85: 10 | H85: NSE
A86: 2018-03-13 | B86: SIMPLEX | C86: Simplex Projects Limited | D86: NEELAM AGARWAL | E86: BUY | F86: 86012 | G86: 23.2 | H86: NSE
A87: 2018-03-13 | B87: WEBELSOLAR | C87: Websol Energy System Ltd | D87: SNOWTEX INVESTMENTS LTD | E87: BUY | F87: 135000 | G87: 98.67 | H87: NSE
A88: 2018-03-13 | B88: BANKA | C88: Banka BioLoo Limited | D88: ARYAMAN CAPITAL MARKETS LIMITED | E88: SELL | F88: 28800 | G88: 115 | H88: NSE
A89: 2018-03-13 | B89: CKPLEISURE | C89: CKP Leisure Limited | D89: DINESH B SHAH HUF NO II | E89: SELL | F89: 268000 | G89: 29.75 | H89: NSE
A90: 2018-03-13 | B90: CKPLEISURE | C90: CKP Leisure Limited | D90: USHA DINESH SHAH | E90: SELL | F90: 200000 | G90: 29.75 | H90: NSE
A91: 2018-03-13 | B91: CKPPRODUCT | C91: CKP Products Limited | D91: CHANDRA PARKASH | E91: SELL | F91: 72000 | G91: 106.86 | H91: NSE
A92: 2018-03-13 | B92: CKPPRODUCT | C92: CKP Products Limited | D92: KANODIA GROUP | E92: SELL | F92: 30000 | G92: 75 | H92: NSE
A93: 2018-03-13 | B93: CKPPRODUCT | C93: CKP Products Limited | D93: OVERSKUD MULTI ASSET MANAGEMENT PRIVATE LIMITED | E93: SELL | F93: 3000 | G93: 97.7 | H93: NSE
A94: 2018-03-13 | B94: GEEKAYWIRE | C94: Geekay Wires Limited | D94: OVERSKUD MULTI ASSET MANAGEMENT PRIVATE LIMITED | E94: SELL | F94: 60000 | G94: 36 | H94: NSE
A95: 2018-03-13 | B95: GSS | C95: GSS Infotech Limited | D95: AGARWAL RITU | E95: SELL | F95: 470379 | G95: 56.49 | H95: NSE
A96: 2018-03-13 | B96: GSS | C96: GSS Infotech Limited | D96: KHUSHBOO ANAND BHAYANI | E96: SELL | F96: 140082 | G96: 56.69 | H96: NSE
A97: 2018-03-13 | B97: GSS | C97: GSS Infotech Limited | D97: REAL MARKETING PVT LTD | E97: SELL | F97: 222839 | G97: 52.39 | H97: NSE
A98: 2018-03-13 | B98: JINDCOT | C98: Jindal Cotex Ltd | D98: LTS INVESTMENT FUND LTD | E98: SELL | F98: 1150000 | G98: 7 | H98: NSE
A99: 2018-03-13 | B99: KOTARISUG | C99: Kothari Sugars And Chemic | D99: DARSHAN FINANCIAL SERVICES PVT LTD | E99: SELL | F99: 750000 | G99: 13 | H99: NSE
A100: 2018-03-13 | B100: PGEL | C100: PG Electroplast Ltd | D100: AGARWAL RITU | E100: SELL | F100: 95132 | G100: 261.17 | H100: NSE
A101: 2018-03-13 | B101: PGEL | C101: PG Electroplast Ltd | D101: EL DORADO BIOTECH PVT LTD | E101: SELL | F101: 165000 | G101: 258.19 | H101: NSE
A102: 2018-03-13 | B102: RMCL | C102: Radha Madhav Corporation | D102: DIYA INFRACOM PVT LTD. | E102: SELL | F102: 337609 | G102: 27.5 | H102: NSE
A103: 2018-03-13 | B103: SAMTEL | C103: Samtel Color Ltd. | D103: EXPORT IMPORT BANK OF INDIA | E103: SELL | F103: 2581697 | G103: 0.17 | H103: NSE
A104: 2018-03-13 | B104: SHYAMCENT | C104: Shyam Century Ferrous Ltd | D104: MITTU AGARWAL | E104: SELL | F104: 4000000 | G104: 10 | H104: NSE
A105: 2018-03-13 | B105: SIMPLEX | C105: Simplex Projects Limited | D105: ANITA AGARWAL | E105: SELL | F105: 86012 | G105: 23.2 | H105: NSE
A106: 2018-03-13 | B106: TARMAT | C106: Tarmat Limited | D106: KUNAL KIRTI KOTHARI | E106: SELL | F106: 57662 | G106: 47.36 | H106: NSE
A107: 2018-03-13 | B107: TCS | C107: Tata Consultancy Serv Ltd | D107: TATA SONS LIMITED | E107: SELL | F107: 20599356 | G107: 2876.46 | H107: NSE
A108: 2018-03-13 | B108: TCS | C108: Tata Consultancy Serv Ltd | D108: TATA SONS LTD | E108: SELL | F108: 10669644 | G108: 2872.19 | H108: NSE
A109: 2018-03-13 | B109: TRANSWIND | C109: Transwind Infra Limited | D109: ILABEN BIPINKUMAR NADIYA | E109: SELL | F109: 56000 | G109: 35.9 | H109: NSE
A110: 2018-03-13 | B110: WEBELSOLAR | C110: Websol Energy System Ltd | D110: SNOWTEX INVESTMENTS LTD | E110: SELL | F110: 88000 | G110: 95.38 | H110: NSE

Sheet Call Tracker (Equity & F&O)
N5: Back To Main Page
A6: Retail Research Technical Calls & Fundamental Performance Report for the month of March -2018
N7: =Main!B10 -> 2018-03-14
B8: Positional Call
A9: Sr.no | B9: Date | D9: Company | E9: Rec | F9: Rec Price | G9: Stop Loss*** | H9: Call Closed At | I9: Target | J9: Remark | L9: Profit / Loss per Share | M9: Gain / Loss % | N9: Status | O9: Closed Date | P9: NSE Closed Price
A10: 1 | B10: 2018-02-05 | D10: UPL | E10: Buy | F10: 710-718 | G10: 684 | I10: 770-800 | J10: Open | P10: =VLOOKUP(D10,Sheet2!$A$1:M2107,6,0) -> 722.8 | S10: H
A11: 2 | B11: 2018-02-09 | D11: HINDUNILVR | E11: Buy | F11: 1330-1334 | G11: 1275 | I11: 1450 | J11: Open | P11: =VLOOKUP(D11,Sheet2!$A$1:M2108,6,0) -> 1320.55 | S11: A
A12: 3 | B12: 2018-02-12 | D12: ITC | E12: Buy | F12: 271-272 | G12: 250 | I12: 310 | J12: Open | P12: =VLOOKUP(D12,Sheet2!$A$1:M2109,6,0) -> 269.45 | S12: P
A13: 4 | B13: 2018-02-12 | D13: WIPRO | E13: Buy | F13: 287 | G13: 272 | H13: 297.5 | I13: 310-315 | J13: Profit of Rs.10.5/- | L13: =H13-F13-K13 -> 10.5 | M13: =L13/F13 -> 3.66% | N13: Successful | O13: 2018-03-13 | S13: R
A14: 5 | B14: 2018-02-14 | D14: COLPAL | E14: Buy | F14: 1097.5 | G14: 1050 | H14: 1041 | I14: 1200 | J14: Loss of Rs.56.5/- | L14: -56.5 | M14: -5.15% | N14: Unsuccessful | O14: 2018-03-06 | S14: R
A15: 6 | B15: 2018-02-14 | D15: GLENMARK | E15: Buy | F15: 533.5 | G15: 510 | H15: 550 | I15: 580 | J15: Profit of Rs.16.5/- | L15: =H15-F15-K15 -> 16.5 | M15: =L15/F15 -> 3.09% | N15: Successful | O15: 2018-03-01 | S15: R
A16: 7 | B16: 2018-02-15 | D16: CADILAHC | E16: Buy | F16: 415 | G16: 394 | H16: 392 | I16: 450-460 | J16: Loss of Rs.23/- | L16: -23 | M16: -5.54% | N16: Unsuccessful | O16: 2018-03-06 | S16: H
A17: 8 | B17: 2018-02-20 | D17: ALLCARGO | E17: Buy | F17: 176.5 | G17: 167 | H17: 182.75 | I17: 195 | J17: Profit of Rs.6.25/- | L17: =H17-F17-K17 -> 6.25 | M17: =L17/F17 -> 3.54% | N17: Successful | O17: 2018-03-01 | S17: R
A18: 9 | B18: 2018-02-22 | D18: SBIN | E18: Buy | F18: 270.5 | G18: 257 | H18: 270 | I18: 295-300 | J18: Loss of Rs.0.5/- | L18: =H18-F18-K18 -> -0.5 | M18: =L18/F18 -> -0.18% | N18: Unsuccessful | O18: 2018-03-05 | S18: H
A19: 10 | B19: 2018-02-26 | D19: DALMIABHA | E19: Buy | F19: 2693 | G19: 2600 | H19: 2775 | I19: 2900 | J19: Profit of Rs.82/- | L19: 82 | M19: 3.04% | N19: Successful | O19: 2018-03-01 | S19: R
A20: 11 | B20: 2018-02-28 | D20: SUNPHARMA | E20: Buy | F20: 544 | G20: 515 | H20: 561 | I20: 600 | J20: Profit of Rs.17/- | L20: =H20-F20-K20 -> 17 | M20: =L20/F20 -> 3.13% | N20: Successful | O20: 2018-03-06 | S20: R
A21: 12 | B21: 2018-03-01 | D21: IGL | E21: Buy | F21: 303.75 | G21: 288 | H21: 314.5 | I21: 320-325 | J21: Profit of Rs.10.75/- | L21: =H21-F21-K21 -> 10.75 | M21: =L21/F21 -> 3.54% | N21: Successful | O21: 2018-03-06 | S21: H
A22: 13 | B22: 2018-03-01 | D22: BATAINDIA | E22: Buy | F22: 730-735 | G22: 704 | I22: 785 | J22: Open | P22: =VLOOKUP(D22,Sheet2!$A$1:M2119,6,0) -> 715.35 | S22: R
A23: 14 | B23: 2018-03-05 | D23: VRLLOG | E23: Buy | F23: 405-408 | G23: 395 | I23: 430 | J23: Open | P23: =VLOOKUP(D23,Sheet2!$A$1:M2120,6,0) -> 402.9 | S23: R
A24: 15 | B24: 2018-03-07 | D24: ENGINERSIN | E24: Buy | F24: 161.5 | G24: 154 | H24: 166.5 | I24: 175-180 | J24: Profit of Rs.5/- | L24: =H24-F24-K24 -> 5 | M24: =L24/F24 -> 3.10% | N24: Successful | O24: 2018-03-13 | S24: H
A25: 16 | B25: 2018-03-07 | D25: ASHOKLEY | E25: Sell | F25: 142 | G25: 149 | H25: 149 | I25: 127 | J25: Loss of Rs.7/- | L25: =F25-H25 -> -7 | M25: =L25/F25 -> -4.93% | N25: Unsuccessful | O25: 2018-03-13 | S25: R
A26: 17 | B26: 2018-03-08 | D26: INDIGO | E26: Buy | F26: 1278 | G26: 1240 | H26: 1318 | I26: 1360 | J26: Profit of Rs.40/- | L26: =H26-F26-K26 -> 40 | M26: =L26/F26 -> 3.13% | N26: Successful | O26: 2018-03-12 | S26: R
A27: 18 | B27: 2018-03-08 | D27: CADILAHC | E27: Buy | F27: 383-387 | G27: 367 | I27: 420 | J27: Open | P27: =VLOOKUP(D27,Sheet2!$A$1:M2124,6,0) -> 390.45 | S27: R
A28: 19 | B28: 2018-03-12 | D28: ADANIPORTS | E28: Sell | F28: 384-388 | G28: 405 | I28: 360 | J28: Open | P28: =VLOOKUP(D28,Sheet2!$A$1:M2125,6,0) -> 385.2 | S28: H
A29: 20 | B29: 2018-03-12 | D29: MINDTREE | E29: Sell | F29: 827 | G29: 872 | H29: 802.5 | I29: 780-760 | J29: Profit of Rs.24.5/- | L29: =F29-H29 -> 24.5 | M29: =L29/F29 -> 2.96% | N29: Successful | O29: 2018-03-13 | S29: H
A30: 21 | B30: 2018-03-13 | D30: BANKBARODA | E30: Buy | F30: 134.5 | G30: 128 | H30: 141.25 | I30: 145 | J30: Profit of Rs.6.75/- | L30: =H30-F30-K30 -> 6.75 | M30: =L30/F30 -> 5.02% | N30: Successful | O30: 2018-03-13 | S30: H
A31: 22 | B31: 2018-03-13 | D31: LUPIN | E31: Buy | F31: 770-774 | G31: 732 | I31: 850 | J31: Open | S31: R
A32: 23 | B32: 2018-03-13 | D32: TATASTEEL | E32: Sell | F32: 625-630 | G32: 655 | I32: 580 | J32: Open | S32: H
A38: CLBS = Closing Basis *** | F38: Reinitiated $
A39: Dividend adjusted <> | F39: Revised stoploss #
A41: Master Trade High Risk
A42: Sr.no | B42: Date | D42: Company | E42: Rec | F42: Rec Price | G42: Stop Loss | H42: Call Closed At | I42: Target | J42: Remark | L42: Profit / Loss per share | M42: Gain / Loss per Lot | N42: Lot | O42: Status | P42: Closed Date
A43: 1 | B43: 2018-03-01 | D43: ICICIBANK MAR FUT | E43: Sell | F43: 311 | G43: 315 | H43: 306.8 | I43: 300 | J43: Profit of Rs.4.2/- | L43: =F43-H43 -> 4.2 | M43: =L43*N43 -> 11550 | N43: 2750 | O43: Successful | P43: 2018-03-01 | S43: H
A44: 2 | B44: 2018-03-06 | D44: HINDALCO MAR FUT | E44: Sell | F44: 232.3 | G44: 236 | H44: 229.3 | I44: 225 | J44: Profit of Rs.3/- | L44: =F44-H44 -> 3 | M44: =L44*N44 -> 10500 | N44: 3500 | O44: Successful | P44: 2018-03-06 | S44: H
A45: 3 | B45: 2018-03-07 | D45: INFY MAR FUT | E45: Sell | F45: 1147.5 | G45: 1166 | H45: 1166 | I45: 1120 | J45: Loss of Rs.18.5/- | L45: =F45-H45 -> -18.5 | M45: =L45*N45 -> -11100 | N45: 600 | O45: Unsuccessful | P45: 2018-03-08 | S45: H
A46: 4 | B46: 2018-03-07 | D46: NIFTY MAR FUT | E46: Buy | F46: 10205 | G46: 10120 | H46: 10285 | I46: 10380-10400 | J46: Profit of Rs.80/- | L46: =H46-F46 -> 80 | M46: =L46*N46 -> 6000 | N46: 75 | O46: Successful | P46: 2018-03-09 | S46: A
A48: Master Trade Medium Risk
A49: Sr.no | B49: Date | D49: Company | E49: Rec | F49: Rec Price | G49: Stop Loss | H49: Call Closed At | I49: Target | J49: Remark | L49: Profit/Loss per lot | M49: Gain / Loss per Lot | N49: Lot | O49: Status | P49: Closed Date
A50: 1 | B50: 2018-03-08 | D50: BANKNIFTY 8 Mar 24300 CE | E50: Buy | F50: 32 | H50: 60 | I50: 75 | J50: Profit of Rs.28/- | L50: =H50-F50 -> 28 | M50: =L50*N50 -> 1120 | N50: 40 | O50: Successful | P50: 2018-03-08 | S50: A
A51: 2 | B51: 2018-03-13 | D51: TECHM MAR 610 PE | E51: Buy | F51: 9 | G51: 4.5 | H51: 11.9 | I51: 20-25 | J51: Profit of Rs.2.9/- | L51: =H51-F51 -> 2.9 | M51: =L51*N51 -> 3480 | N51: 1200 | O51: Successful | P51: 2018-03-13 | S51: H
B55: Smart Delivery Trade
A56: Sr.no | B56: Date | D56: Company | E56: Rec | F56: Rec Price | G56: Stop Loss*** | H56: Call Closed At | I56: Target | J56: Remark | L56: Profit / Loss per Share | M56: Gain / Loss % | N56: Status | O56: Closed Date | P56: NSE Closed Price
A57: 1 | B57: 2018-02-15 | D57: ACC | E57: Buy$ | F57: 1585 | G57: 1520 | I57: 1750 | J57: Open | P57: =VLOOKUP(D57,Sheet2!$A$1:M2140,6,0) -> 1575.35 | S57: R
A58: 2 | B58: 2018-02-26 | D58: HDFC | E58: Buy | F58: 1833 | G58: 1780 | H58: 1869.5 | I58: 1950 | J58: Profit of Rs.36.5/- | L58: =H58-F58-K58 -> 36.5 | M58: =L58/F58 -> 1.99% | N58: Successful | O58: 2018-03-13 | S58: R
A59: 3 | B59: 2018-02-27 | D59: NBCC | E59: Buy | F59: 199 | G59: 190 | H59: 188.5 | I59: 210-215 | J59: Loss of Rs.10.5/- | L59: =H59-F59-K59 -> -10.5 | M59: =L59/F59 -> -5.28% | N59: Unsuccessful | O59: 2018-03-07 | P59: =VLOOKUP(D59,Sheet2!$A$1:M2144,6,0) -> 196.15 | S59: H
A60: 4 | B60: 2018-02-28 | D60: AMBUJACEM | E60: Buy | F60: 250.5 | G60: 238 | H60: 238 | I60: 270-275 | J60: Loss of Rs.12.5/- | L60: -12.5 | M60: -4.99% | N60: Unsuccessful | O60: 2018-03-07 | P60: =VLOOKUP(D60,Sheet2!$A$1:M2145,6,0) -> 238.8 | S60: H
A61: 5 | B61: 2018-03-05 | D61: BAJAJ-AUTO | E61: Buy | F61: 2980-3000 | G61: 2930 | I61: 3100-3150 | J61: Open | P61: =VLOOKUP(D61,Sheet2!$A$1:M2144,6,0) -> 2971.75 | S61: H
A62: 6 | B62: 2018-03-07 | D62: MCLEODRUSS | E62: Buy | F62: 153-155 | G62: 149 | I62: 164 | J62: Open | P62: =VLOOKUP(D62,Sheet2!$A$1:M2145,6,0) -> 151.1 | S62: R
A63: 7 | B63: 2018-03-07 | D63: LT | E63: Buy | F63: 1285 | G63: 1240 | H63: 1321 | I63: 1370-1400 | J63: Profit of Rs.36/- | L63: =H63-F63-K63 -> 36 | M63: =L63/F63 -> 2.80% | N63: Successful | O63: 2018-03-13 | S63: H
A64: 8 | B64: 2018-03-08 | D64: GAIL | E64: Buy | F64: 436 | G64: 424 | H64: 447.5 | I64: 455-460 | J64: Profit of Rs.11.5/- | L64: =H64-F64-K64 -> 11.5 | M64: =L64/F64 -> 2.64% | N64: Successful | O64: 2018-03-12 | S64: H
A65: 9 | B65: 2018-03-08 | D65: RAYMOND | E65: Buy | F65: 902.5 | G65: 875 | H65: 924.5 | I65: 950 | J65: Profit of Rs.22/- | L65: =H65-F65-K65 -> 22 | M65: =L65/F65 -> 2.44% | N65: Successful | O65: 2018-03-12 | S65: R
A66: 10 | B66: 2018-03-09 | D66: HINDALCO | E66: Buy | F66: 223-225 | G66: 217 | I66: 235 | J66: Open | P66: =VLOOKUP(D66,Sheet2!$A$1:M2149,6,0) -> 226.15 | S66: R
A67: 11 | B67: 2018-03-09 | D67: DLF | E67: Buy | F67: 216.5 | G67: 209 | H67: 222.5 | I67: 230-235 | J67: Profit of Rs.6/- | L67: =H67-F67-K67 -> 6 | M67: =L67/F67 -> 2.77% | N67: Successful | O67: 2018-03-13 | S67: H
A68: 12 | B68: 2018-03-12 | D68: MOTHERSUMI | E68: Buy | F68: 316-319 | G68: 307 | I68: 335 | J68: Open | P68: =VLOOKUP(D68,Sheet2!$A$1:M2151,6,0) -> 318.8 | S68: R
A69: 13 | B69: 2018-03-12 | D69: IGL | E69: Buy | F69: 300-302 | G69: 288 | I69: 320-325 | J69: Open | P69: =VLOOKUP(D69,Sheet2!$A$1:M2152,6,0) -> 303.6 | S69: H
A70: 14 | B70: 2018-03-13 | D70: PETRONET | E70: Buy | F70: 235-236 | G70: 228 | I70: 245-250 | J70: Open | P70: =VLOOKUP(D70,Sheet2!$A$1:M2153,6,0) -> 239.35 | S70: H
A71: 15 | B71: 2018-03-13 | D71: KANSAINER | E71: Buy | F71: 497-501 | G71: 484 | I71: 530 | J71: Open | P71: =VLOOKUP(D71,Sheet2!$A$1:M2154,6,0) -> 504.8 | S71: R
A72: 16 | B72: 2018-03-13 | D72: HEIDELBERG | E72: Buy | F72: 151-152 | G72: 145 | I72: 165 | J72: Open | P72: =VLOOKUP(D72,Sheet2!$A$1:M2155,6,0) -> 151.4 | S72: H
A73: 17 | B73: 2018-03-13 | D73: TVSMOTOR | E73: Buy | F73: 633-636 | G73: 615 | I73: 665-670 | J73: Open | P73: =VLOOKUP(D73,Sheet2!$A$1:M2156,6,0) -> 641.6 | S73: R
A80: CLBS = Closing Basis *** | F80: Reinitiated $
A81: Dividend adjusted <> | F81: Revised stoploss #
A84: Techno -Funda (positional)
A85: Sr.no | B85: Date | D85: Company | E85: Rec | F85: Rec Price | G85: Stop Loss*** | H85: Call Closed At | I85: Target | J85: Remark | L85: Profit / Loss per Share | M85: Gain / Loss % | N85: Status | O85: Closed Date | P85: NSE Closed Price
A86: 1 | B86: 2018-03-05 | D86: NILKAMAL | E86: Buy | F86: 1640-1660 | G86: 1520 | I86: 1850-1900 | J86: Open | P86: =VLOOKUP(D86,Sheet2!$A$1:M2155,6,0) -> 1681.75 | S86: H
A87: CLBS = Closing Basis *** | F87: Reinitiated $
A88: Dividend adjusted <> | F88: Revised stoploss #
B92: Momentum Call
A93: Sr.no | B93: Date | D93: Company | E93: Rec | F93: Rec Price | G93: Stop Loss | H93: Call Closed At | I93: Target | J93: Remark | L93: Profit / Loss per Share/Lot | M93: Gain / Loss % | N93: Gain / Loss per Lot | O93: Lot | P93: Status | Q93: Closed Date | R93: NSE Closed Price
A94: 1 | B94: 2018-02-28 | D94: PVR | E94: Buy | F94: 1320-1326 | G94: 1295 | I94: 1360 | J94: Open | S94: R
A95: 2 | B95: 2018-03-05 | D95: BOMDYEING | E95: Buy | F95: 256.5 | G95: 249 | H95: 264.5 | I95: 268-270 | J95: Profit of Rs.8/- | L95: =H95-F95-K95 -> 8 | M95: =L95/F95 -> 3.12% | P95: Successful | Q95: 2018-03-05 | S95: R
A96: 3 | B96: 2018-03-05 | D96: SUDARSCHEM | E96: Buy | F96: 432.5 | G96: 418 | H96: 442 | I96: 450-455 | J96: Profit of Rs.9.5/- | L96: =H96-F96-K96 -> 9.5 | M96: =L96/F96 -> 2.20% | P96: Successful | Q96: 2018-03-05 | S96: H
A97: 4 | B97: 2018-03-13 | D97: BFUTILITIE | E97: Buy | F97: 407 | G97: 395 | H97: 418.5 | I97: 425 | J97: Profit of Rs.11.50/- | L97: =H97-F97-K97 -> 11.5 | M97: 2.83% | P97: Successful | Q97: 2018-03-13 | S97: R
A98: 5 | B98: 2018-03-13 | D98: RAIN | E98: Buy | F98: 395-396 | G98: 386 | I98: 415 | J98: Open | S98: R
A101: CLBS = Closing Basis *** | F101: Reinitiated $
A102: Dividend adjusted <> | F102: Revised stoploss #
B106: Quick Pick Intraday
A107: Sr.no | B107: Date | D107: Company | E107: Rec | F107: Rec Price | G107: Stop Loss*** | H107: Call Closed At | I107: Target | J107: Remark | L107: Profit / Loss per Share | M107: Gain / Loss % | N107: Status | O107: Closed Date
B115: Investment Idea
A116: Sr.no | B116: Date | D116: Company | E116: Rec | F116: Rec Price | G116: Point of Review | H116: Close Rate | I116: Target | J116: Remark | L116: Profit / Loss per Share | M116: Gain / Loss % | N116: Status | O116: Closed Date
A117: 1 | B117: 2013-11-01 | D117: L&T Finance Holding | E117: Accu | F117: 82.00 | G117: - | H117: 100 | I117: 100.00 | J117: Target Achieved | L117: =H117-F117-K117 -> 18.00 | M117: =L117/F117 -> 21.95% | N117: Successful | O117: 2016-10-14
A118: 2 | B118: 2014-06-04 | D118: Finolex Inds | E118: Buy | F118: 257.00 | G118: - | H118: 300 | I118: 300.00 | J118: Target Achieved | L118: 43.00 | M118: 16.73% | N118: Successful | O118: 2014-07-02
A119: =1+A118 -> 3 | B119: 2014-07-08 | D119: JK Cement | E119: Buy | F119: 393.00 | G119: - | H119: 468 | I119: 468.00 | J119: Target Achieved | L119: 75.00 | M119: 19.08% | N119: Successful | O119: 2014-08-12
A120: 4 | B120: 2014-08-06 | D120: Finolex Cables | E120: Buy | F120: 205.00 | G120: - | H120: 275 | I120: 250.00 | J120: Target Achieved | L120: 70.00 | M120: 34.15% | N120: Successful | O120: 2014-11-19
A121: 5 | B121: 2014-09-04 | D121: Exide Inds | E121: Buy | F121: 162.00 | G121: - | H121: 190 | I121: 190.00 | J121: Target Achieved | L121: 28.00 | M121: 17.28% | N121: Successful | O121: 2015-01-02
A122: 6 | B122: 2014-09-04 | D122: Deepak Nitrite | E122: Buy | F122: 75.00 | G122: - | H122: 91.5 | I122: 95-100 | J122: Profit of Rs.16.50/- | L122: 16.50 | M122: 22.00% | N122: Successful | O122: 2014-11-11
A123: 7 | B123: 2014-10-01 | D123: Mercks | E123: Buy | F123: 850.00 | G123: - | H123: 982.5 | I123: 1050.00 | J123: Profit of Rs.132.50/- | L123: 132.50 | M123: 15.59% | N123: Successful | O123: 2015-02-04
A124: 8 | B124: 2014-10-01 | D124: Grindwell Norton | E124: Buy | F124: 475.00 | G124: - | H124: 515 | I124: 600.00 | J124: Profit of Rs.40/- | L124: 40.00 | M124: 8.42% | N124: Successful | O124: 2014-10-27
A125: 9 | B125: 2014-10-01 | D125: Snowman Logistics | E125: Buy | F125: 86.00 | G125: - | H125: 99 | I125: 140.00 | J125: Profit of Rs.13.00/- | L125: 13.00 | M125: 15.12% | N125: Successful | O125: 2014-10-27
A126: 10 | B126: 2014-10-14 | D126: Birla Corp | E126: Buy | F126: 496.60 | G126: - | H126: 621 | I126: 580.00 | J126: Target Achieved | L126: 124.40 | M126: 25.05% | N126: Successful | O126: 2016-08-23
A127: 11 | B127: 2014-10-14 | D127: Ultratech Cem | E127: Buy | F127: 2481.90 | G127: - | H127: 2840 | I127: 2870.00 | J127: Profit of Rs.358.10/- | L127: 358.10 | M127: 14.43% | N127: Successful | O127: 2015-01-13
A128: =1+A125 -> 10 | B128: 2014-10-16 | D128: Sintex Inds | E128: Buy | F128: 84.50 | G128: - | H128: 93 | I128: 110.00 | J128: Profit of Rs.8.50/- | L128: 8.50 | M128: 10.06% | N128: Successful | O128: 2014-10-27
A129: =1+A128 -> 11 | B129: 2014-10-16 | D129: HSIL | E129: Buy | F129: 401.00 | G129: - | H129: 428 | I129: 450.00 | J129: Profit of Rs.27.00/- | L129: 27.00 | M129: 6.73% | N129: Successful | O129: 2015-01-16
A130: 12 | B130: 2014-10-16 | D130: Eveready Inds | E130: Buy | F130: 101.00 | G130: - | H130: 112 | I130: 120.00 | J130: Profit of Rs.11.00/- | L130: 11.00 | M130: 10.89% | N130: Successful | O130: 2014-10-27
A131: 13 | B131: 2014-11-11 | D131: Pennar Inds | E131: Buy | F131: 59.00 | G131: - | H131: 76 | I131: 76.00 | J131: Target Achieved | L131: 17.00 | M131: 28.81% | N131: Successful | O131: 2017-10-24
A132: 14 | B132: 2014-11-11 | D132: Snowman Logistics | E132: Buy | F132: 99.00 | G132: - | H132: 120 | I132: 120.00 | J132: Profit of Rs.21/- | L132: 21.00 | M132: 21.21% | N132: Successful | O132: 2014-11-17
A133: 15 | B133: 2014-11-13 | D133: Dharamsi Morarji Chem | E133: Buy | F133: 22.00 | G133: - | H133: 33.55 | I133: 32.00 | J133: Profit of Rs 11.55/- | L133: 11.55 | M133: 52.50% | N133: Successful | O133: 2015-07-03
A134: 16 | B134: 2014-12-03 | D134: Tatachem | E134: Buy | F134: 440.00 | G134: - | H134: 520 | I134: 520.00 | J134: Profit of Rs 80.00/- | L134: 80.00 | M134: 18.18% | N134: Successful | O134: 2015-07-23
A135: 17 | B135: 2014-12-03 | D135: Advanta | E135: Buy | F135: 360.00 | G135: - | H135: 427 | I135: 425.00 | J135: Profit of Rs.67.00/- | L135: 67.00 | M135: 18.61% | N135: Successful | O135: 2015-02-23
A136: 18 | B136: 2015-01-08 | D136: GDL | E136: Buy | F136: 360.00 | G136: - | H136: 455 | I136: 420.00 | J136: Profit of Rs.95.00/- | L136: 95.00 | M136: 26.39% | N136: Successful | O136: 2015-01-20
A137: 19 | B137: 2015-01-08 | D137: NRB Bearing | E137: Buy | F137: 130.00 | H137: 175.5 | I137: 165.00 | J137: Profit of Rs 45.50/- | L137: 45.50 | M137: 35.00% | N137: Successful | O137: 2017-12-19
A138: 20 | B138: 2015-02-05 | D138: GSFC | E138: Accu | F138: 98.00 | H138: 120 | I138: 120.00 | J138: Target Achieved | L138: 22.00 | M138: 22.45% | N138: Successful | O138: 2017-01-18
A139: 21 | B139: 2015-02-05 | D139: Sundrmfast | E139: Accu | F139: 196.00 | H139: 262 | I139: 255.00 | J139: Target Achieved | L139: 66.00 | M139: 33.67% | N139: Successful | O139: 2016-08-17
A140: 22 | B140: 2015-03-04 | D140: GPPL | E140: Accu | F140: 230-240 | I140: 280-285 | J140: Open
A141: 23 | B141: 2015-03-04 | D141: ORIENTCEM | E141: Accu | F141: 185.00 | H141: 224 | I141: 220-225 | J141: Target Achieved | L141: =H141-F141-K141 -> 39.00 | M141: =L141/F141 -> 21.08% | N141: Successful | O141: 2016-10-04
A142: 24 | B142: 2015-03-27 | D142: PFS | E142: Accu | F142: 49-50 | I142: 67.00 | J142: Open
A143: 25 | B143: 2015-03-30 | D143: Walchandnagar Ind Ltd | E143: Accu | F143: 183.50 | H143: 219 | I143: 218.00 | J143: Profit of Rs.35.50/- | L143: =H143-F143-K143 -> 35.50 | M143: =L143/F143 -> 19.35% | N143: Successful | O143: 2015-04-09
A144: 26 | B144: 2015-04-20 | D144: Kalpataru Power Transmission Ltd | E144: Accu | F144: =(227+237)/2 -> 232.00 | H144: 298 | I144: 298.00 | J144: Target Achieved | L144: 66.00 | M144: 28.45% | N144: Successful | O144: 2017-03-29
A145: 27 | B145: 2015-05-04 | D145: Mastek Ltd | E145: Buy | F145: 385.00 | H145: =212.5+331 -> 543.5 | I145: 510.00 | J145: Profit of Rs 158.50/- | L145: 158.50 | M145: 41.17% | N145: Successful | O145: 2015-08-19
A146: 28 | B146: 2015-05-04 | D146: Suprajit Eng | E146: Buy | F146: 115.50 | H146: 146 | I146: 142.00 | J146: Profit of Rs 30.50/- | L146: 30.50 | M146: 26.41% | N146: Successful | O146: 2015-07-17
A147: 29 | B147: 2015-05-27 | D147: TCI | E147: Buy | F147: 237.50 | H147: 279.5 | I147: 278.00 | J147: Target Achieved | L147: 42.00 | M147: 17.68% | N147: Successful | O147: 2015-08-06
A148: 30 | B148: 2015-06-19 | D148: HSIL | E148: Accu | F148: 340.00 | H148: 448 | I148: 448.00 | J148: Target Achieved | L148: 108.00 | M148: 31.76% | N148: Successful | O148: 2017-10-10
A149: 31 | B149: 2015-07-06 | D149: Capital First | E149: Accu | F149: 390.00 | H149: 460 | I149: 460.00 | J149: Target Achieved | L149: 70.00 | M149: 17.95% | N149: Successful | O149: 2016-04-18
A150: 32 | B150: 2015-07-10 | D150: Dolphin OffShore | E150: Accu | F150: 118-127 | I150: 172.00 | J150: Open
A151: 33 | B151: 2015-08-03 | D151: Allcargo logistics | E151: Accu | F151: 297.50 | H151: 350 | I151: 360.00 | J151: Profit of Rs 52.50/- | L151: =H151-F151-K151 -> 52.50 | M151: =L151/F151 -> 17.65% | N151: Successful | O151: 2015-08-16
A152: 34 | B152: 2015-08-03 | D152: Camline Fine | E152: Accu | F152: 115.50 | H152: 149 | I152: 140.00 | J152: Profit of Rs 33.50/- | L152: 33.50 | M152: 29.00% | N152: Successful | O152: 2017-01-05
A153: 35 | B153: 2015-09-04 | D153: TCI | E153: Accu | F153: 226.00 | H153: 292 | I153: 292.00 | J153: Target Achieved | L153: 66.00 | M153: 29.20% | N153: Successful | O153: 2015-10-09
A154: 36 | B154: 2015-09-07 | D154: Kalpataru Power Transmission Ltd | E154: Accu | F154: 232.50 | H154: 312.5 | I154: 310.00 | J154: Target Achieved | L154: 80.00 | M154: 34.41% | N154: Successful | O154: 2017-03-29
A155: 37 | B155: 2015-09-21 | D155: LLOYD ELECTRIC & ENG LTD | E155: Accu | F155: 196.50 | H155: 238 | I155: 238.00 | J155: Target Achieved | L155: 41.50 | M155: 21.12% | N155: Successful | O155: 2015-10-14
A156: 38 | B156: 2015-09-24 | D156: L&T Finance Holding | E156: Accu | F156: 65.00 | H156: 82 | I156: 82.00 | J156: Target Achieved | L156: 17.00 | M156: 26.15% | N156: Successful | O156: 2016-07-27
A157: 39 | B157: 2015-10-14 | D157: KEC International ltd | E157: Accu | F157: 144.00 | H157: 182.5 | I157: 181.00 | J157: Target Achieved | L157: 38.50 | M157: 26.74% | N157: Successful | O157: 2017-03-23
A158: 40 | B158: 2015-10-14 | D158: Gruh Finance | E158: Accu | F158: 264.00 | H158: 311 | I158: 311.00 | J158: Target Achieved | L158: 47.00 | M158: 17.80% | N158: Successful | O158: 2016-08-22
A159: 41 | B159: 2015-11-10 | D159: Pidilitind | E159: Buy | F159: 549.50 | H159: 630 | I159: 630.00 | J159: Target Achieved | L159: 80.50 | M159: 14.65% | N159: Successful | O159: 2016-02-19
A160: 42 | B160: 2015-12-04 | D160: Zensar Technology | E160: Accu | F160: 1020-1035 | I160: 1250.00 | J160: Open
A161: 43 | B161: 2015-12-29 | D161: Vinati Organics Ltd | E161: Accu | F161: 465.00 | H161: 540 | I161: 540.00 | J161: Target Achieved | L161: =H161-F161-K161 -> 75.00 | M161: =L161/F161 -> 16.13% | N161: Successful | O161: 2016-06-09
A162: 44 | B162: 2016-01-11 | D162: GSFC | E162: Buy | F162: 81.00 | H162: 110 | I162: 110.00 | J162: Target Achieved | L162: 29.00 | M162: 35.80% | N162: Successful | O162: 2017-01-10
A163: 45 | B163: 2016-01-13 | D163: SSWL | E163: Buy | F163: 417.50 | H163: 547 | I163: 535.00 | J163: Target Achieved | L163: 129.50 | M163: 31.02% | N163: Successful | O163: 2016-07-27
A164: 46 | B164: 2016-02-08 | D164: Persistent System Ltd | E164: Accu | F164: 650.00 | H164: 800 | I164: 800.00 | J164: Target Achieved | L164: =H164-F164-K164 -> 150.00 | M164: =L164/F164 -> 23.08% | N164: Successful | O164: 2018-02-23
A165: 47 | B165: 2016-03-04 | D165: UPL | E165: Accu | F165: 437.50 | H165: 504.5 | I165: 522.00 | J165: Profit of Rs.67/- | L165: 67.00 | M165: 15.31% | N165: Successful | O165: 2016-04-20
A166: 48 | B166: 2016-03-09 | D166: Ashoka Buildcon Ltd | E166: Accu | F166: 189.50 | H166: 218 | I166: 218.00 | J166: Target Achieved | L166: 28.50 | M166: 15.04% | N166: Successful | O166: 2017-10-26
A167: 49 | B167: 2016-04-11 | D167: PTC INDIA FIN SERV LTD | E167: Accu | F167: 36-37 | I167: 60.00 | J167: Open
A168: 50 | B168: 2016-04-12 | D168: CAMLINFINE $ | E168: Accu | F168: 93.00 | H168: 149 | I168: 140.00 | J168: Profit of Rs 56/- | L168: =H168-F168-K168 -> 56.00 | M168: =L168/F168 -> 60.22% | N168: Successful | O168: 2017-01-05
A169: 51 | B169: 2016-04-12 | D169: Greaves Cotton Ltd. | E169: Accu | F169: 130.00 | H169: 150 | I169: 150-155 | J169: Target Achieved | L169: 20.00 | M169: 15.38% | N169: Successful | O169: 2016-07-13
A170: 52 | B170: 2016-04-13 | D170: DHFL | E170: Accu | F170: 196.00 | H170: 299 | I170: 299.00 | J170: Target Achieved | L170: 103.00 | M170: 52.55% | N170: Successful | O170: 2016-09-07
A171: 53 | B171: 2016-04-13 | D171: Magma | E171: Accu | F171: 88.00 | H171: 103 | I171: 103.00 | J171: Target Achieved | L171: 15.00 | M171: 17.05% | N171: Successful | O171: 2016-06-09
A172: 54 | B172: 2016-05-02 | D172: KEC International ltd $ | E172: Accu | F172: 127.50 | H172: 148 | I172: 148-150 | J172: Target Achieved | L172: 20.50 | M172: 16.08% | N172: Successful | O172: 2016-07-13
A173: 55 | B173: 2016-05-03 | D173: Mindtree | E173: Accu | F173: 675.00 | H173: 815 | I173: 790-800 | J173: Target Achieved | L173: 140.00 | M173: 20.74% | N173: Successful | O173: 2018-02-23
A174: 56 | B174: 2016-06-01 | D174: Atulauto | E174: Accu | F174: 495-505 | I174: 565-570 | J174: Open
A175: 57 | B175: 2016-06-06 | D175: TRITURBINE | E175: Accu | F175: 110.00 | H175: 126.5 | I175: 125.00 | J175: Profit of Rs.16.50/- | L175: =H175-F175-K175 -> 16.50 | M175: =L175/F175 -> 15.00% | N175: Successful | O175: 2016-07-01
A176: 58 | B176: 2016-06-17 | D176: Pennar Industries Ltd | E176: Accu | F176: 44 | H176: 64.50 | I176: 69.50 | J176: Part profit of Rs.20.50/- | L176: =H176-F176-K176 -> 20.50 | M176: =L176/F176 -> 47% | N176: Successful | O176: 2017-08-30
A177: 59 | B177: 2016-06-28 | D177: EVEREADY INDS. IND. LTD. | E177: Accu | F177: 262.50 | H177: 340 | I177: 333.00 | J177: Profit of Rs.77.50/- | L177: =H177-F177-K177 -> 77.50 | M177: =L177/F177 -> 29.52% | N177: Successful | O177: 2017-10-09
A178: 60 | B178: 2016-06-28 | D178: FIEM INDUSTRIES LIMITED | E178: Accu | F178: 840.00 | H178: 1230 | I178: 1230.00 | J178: Target Achieved | L178: =H178-F178-K178 -> 390.00 | M178: =L178/F178 -> 46.43% | N178: Successful | O178: 2016-10-06
A179: 61 | B179: 2016-07-05 | D179: Bajaj Corp Ltd | E179: Accu | F179: 395 | H179: 468.50 | I179: 510.00 | J179: Part profit of Rs.73.50/- | L179: =H179-F179-K179 -> 73.50 | M179: =L179/F179 -> 19% | N179: Successful | O179: 2017-08-30
A180: 62 | B180: 2016-08-02 | D180: GPPL $ | E180: Buy | F180: 167-172 | I180: 198-200 | J180: Open
A181: 63 | B181: 2016-08-04 | D181: WONDERLA HOLIDAYS LTD | E181: Accu | F181: 395-405 | I181: 475.00 | J181: Open
A182: 64 | B182: 2016-08-11 | D182: CAMLINFINE | E182: Accu | F182: 86.50 | H182: 130 | I182: 130.00 | J182: Profit of Rs.43.50/- | L182: =H182-F182-K182 -> 43.50 | M182: =L182/F182 -> 50.29% | N182: Successful | O182: 2017-12-22
A183: 65 | B183: 2016-08-18 | D183: GRANULES | E183: Accu | F183: 133.5 | H183: 126.50 | I183: 178.00 | J183: Exit | L183: -7.00 | M183: -5.24% | N183: Unsuccessful | O183: 2016-09-02
A184: 66 | B184: 2016-08-31 | D184: VA TECH WABAG | E184: Accu | F184: 560.00 | H184: 725 | I184: 725.00 | J184: Target Achieved | L184: 165.00 | M184: 29.46% | N184: Successful | O184: 2016-03-27
A185: 67 | B185: 2016-09-01 | D185: SKIPPER LIMITED | E185: Accu | F185: 160.50 | H185: 210 | I185: 210.00 | J185: Target Achieved | L185: 49.50 | M185: 30.84% | N185: Successful | O185: 2017-05-16
A186: 68 | B186: 2016-10-03 | D186: IFB Industries | E186: Accu | F186: 430.00 | H186: 596 | I186: 575.00 | J186: Profit of Rs.166/- | L186: 166.00 | M186: 38.60% | N186: Successful | O186: 2017-02-03
A187: 69 | B187: 2016-10-14 | D187: ASIANTILES | E187: Accu | F187: 280.00 | H187: 345 | I187: 345.00 | J187: Target Achieved | L187: 65.00 | M187: 23.21% | N187: Successful | O187: 2017-03-20
A188: 70 | B188: 2016-10-14 | D188: DEEPIND | E188: Accu | F188: 245.00 | H188: 325.5 | I188: 330.00 | J188: Profit of Rs.80.5/- | L188: 80.50 | M188: 32.86% | N188: Successful | O188: 2017-02-03
A189: 71 | B189: 2016-10-17 | D189: DCBBANK | E189: Accu | F189: 125.00 | H189: 160 | I189: 160.00 | J189: Target Achieved | L189: 35.00 | M189: 28.00% | N189: Successful | O189: 2017-03-09
A190: 72 | B190: 2016-10-17 | D190: ORIENTREF | E190: Accu | F190: 114.00 | H190: 145 | I190: 145.00 | J190: Target Achieved | L190: =H190-F190-K190 -> 31.00 | M190: =L190/F190 -> 27.19% | N190: Successful | O190: 2017-05-04
A191: 73 | B191: 2016-10-17 | D191: GANECOS | E191: Accu | F191: 212.00 | H191: 280 | I191: 276.00 | J191: Profit of Rs.68/- | L191: =H191-F191-K191 -> 68.00 | M191: =L191/F191 -> 32.08% | N191: Successful | O191: 2017-05-03
A192: 74 | B192: 2016-11-04 | D192: NBCC | E192: Accu | F192: 155.00 | H192: 210 | I192: 210.00 | J192: Profit of Rs.55/- | L192: =H192-F192-K192 -> 55.00 | M192: =L192/F192 -> 35.48% | N192: Successful | O192: 2017-07-28
A193: 75 | B193: 2016-12-06 | D193: PRECAM | E193: Accu | F193: 148-153 | I193: 174.00 | J193: Open
A194: 76 | B194: 2016-12-08 | D194: INFRATEL | E194: Accu | F194: 380.00 | H194: 478 | I194: 468.00 | J194: Target Achieved | L194: =H194-F194-K194 -> 98.00 | M194: =L194/F194 -> 25.79% | N194: Successful | O194: 2017-10-17
A195: 77 | B195: 2016-12-30 | D195: GODREJPROP | E195: Accu | F195: 305.00 | H195: 375 | I195: 375.00 | J195: Target Achieved | L195: 70.00 | M195: 22.95% | N195: Successful | O195: 2017-02-02
A196: 78 | B196: 2017-01-04 | D196: DEEPAKNTR | E196: Accu | F196: 99.50 | H196: 158 | I196: 158.00 | J196: Target Achieved | L196: 58.50 | M196: 58.79% | N196: Successful | O196: 2017-06-12
A197: 79 | B197: 2017-02-20 | D197: SUBROS | E197: Accu | F197: 202.50 | H197: 234 | I197: 234.00 | J197: Target Achieved | L197: 31.50 | M197: 15.56% | N197: Successful | O197: 2017-04-11
A198: 80 | B198: 2017-02-20 | D198: RECLTD | E198: Accu | F198: 140.50 | H198: 220 | I198: 220.00 | J198: Target Achieved | L198: 79.50 | M198: 56.58% | N198: Successful | O198: 2017-05-09
A199: 81 | B199: 2017-03-24 | D199: VRLLOG | E199: Accu | F199: 300.50 | H199: 417.5 | I199: 420.00 | J199: Profit of Rs.117/- | L199: 117.00 | M199: 38.94% | N199: Successful | O199: 2017-12-01
A200: 82 | B200: 2017-03-24 | D200: FIEMIND | E200: Accu | F200: 850.00 | H200: 1042.5 | I200: 1023.00 | J200: Profit of Rs 192.50/- | L200: 192.50 | M200: 22.65% | N200: Successful | O200: 2017-04-05
A201: 83 | B201: 2017-04-05 | D201: RATNAMANI | E201: Accu | F201: 785.00 | H201: 930 | I201: 920.00 | J201: Profit of Rs.145/- | L201: 145.00 | M201: 18.47% | N201: Successful | O201: 2017-08-29
A202: 84 | B202: 2017-04-06 | D202: ZEEMEDIA | E202: Accu | F202: 39-41 | I202: 60.00 | J202: Open
A203: 85 | B203: 2017-04-12 | D203: DABUR | E203: Accu | F203: 289.50 | H203: 354 | I203: 360.00 | J203: Profit of Rs.64.5/- | L203: =H203-F203-K203 -> 64.50 | M203: =L203/F203 -> 22.28% | N203: Successful | O203: 2017-11-01
A204: 86 | B204: 2017-04-20 | D204: KPRMILL | E204: Accu | F204: 700.00 | H204: 840 | I204: 840.00 | J204: Profit of Rs.140/- | L204: =H204-F204-K204 -> 140.00 | M204: =L204/F204 -> 20.00% | N204: Successful | O204: 2017-06-07
A205: 87 | B205: 2017-05-22 | D205: GREAVESCOT | E205: Accu | F205: 153-158 | I205: 190.00 | J205: Open
A206: 88 | B206: 2017-06-01 | D206: ESSELPACK | E206: Accu | F206: 260 | H206: 311.00 | I206: 340.00 | J206: Part profit of Rs.51/- | L206: =H206-F206-K206 -> 51.00 | M206: =L206/F206 -> 20% | N206: Successful | O206: 2017-11-17
A207: 89 | B207: 2017-06-15 | D207: KEI | E207: Accu | F207: 214.50 | H207: 262 | I207: 262.00 | J207: Profit of Rs.47.5/- | L207: 47.50 | M207: 22.14% | N207: Successful | O207: 2017-08-30
A208: 90 | B208: 2017-07-17 | D208: MAYURUNIQ | E208: Accu | F208: 370.00 | H208: 447.5 | I208: 450.00 | J208: Target Achieved | L208: 77.50 | M208: 20.95% | N208: Successful | O208: 2017-10-27
A209: 91 | B209: 2017-07-27 | D209: RAMCOCEM | E209: Accu | F209: 657.50 | H209: 825 | I209: 820.00 | J209: Target Achieved | L209: 167.50 | M209: 25.48% | N209: Successful | O209: 2017-12-21
A210: 92 | B210: 2017-08-17 | D210: FINPIPE | E210: Accu | F210: 605.00 | H210: 750 | I210: 750.00 | J210: Profit of Rs.145/- | L210: 145.00 | M210: 23.97% | N210: Successful | O210: 2017-10-19
A211: 93 | B211: 2017-09-01 | D211: SHK | E211: Accu | F211: 255 | H211: 307.50 | I211: 320.00 | J211: Part profit of Rs.52.5/- | L211: 52.50 | M211: 21% | N211: Successful | O211: 2017-12-29
A212: 94 | B212: 2017-09-19 | D212: SKIPPER | E212: Accu | F212: 215.00 | H212: 258 | I212: 258.00 | J212: Target Achieved | L212: 43.00 | M212: 20.00% | N212: Successful | O212: 2017-11-01
A213: 95 | B213: 2017-09-20 | D213: CAMLINFINE | E213: Accu | F213: 75.00 | H213: 90 | I213: 90.00 | J213: Profit of Rs.15.00/- | L213: 15.00 | M213: 20.00% | N213: Successful | O213: 2017-10-11
A214: 96 | B214: 2017-10-03 | D214: GNA | E214: Accu | F214: 315.00 | H214: 392 | I214: 384.00 | J214: Profit of Rs.77/- | L214: 77.00 | M214: 24.44% | N214: Successful | O214: 2017-10-09
A215: 97 | B215: 2017-10-05 | D215: NOCIL | E215: Accu | F215: 145.00 | H215: 179 | I215: 180.00 | J215: Profit of Rs.34/- | L215: 34.00 | M215: 23.45% | N215: Successful | O215: 2017-10-17
A216: 98 | B216: 2017-10-06 | D216: CENTURYPLY | E216: Accu | F216: 256.00 | H216: 323 | I216: 320.00 | J216: Target Achieved | L216: 67.00 | M216: 26.17% | N216: Successful | O216: 2017-11-28
A217: 99 | B217: 2017-10-09 | D217: RECLTD | E217: Accu | F217: 152.5 | H217: 183.50 | I217: 210.00 | J217: Part Profit of Rs.31/- | L217: 31.00 | M217: 20% | N217: Successful | O217: 2017-11-03
A218: 100 | B218: 2017-10-09 | D218: EIHOTEL | E218: Accu | F218: 137.50 | H218: 184 | I218: 183.00 | J218: Profit of Rs.46.5/- | L218: 46.50 | M218: 33.82% | N218: Successful | O218: 2018-01-08
A219: 101 | B219: 2017-10-10 | D219: BOROSIL | E219: Accu | F219: 895.00 | H219: 1122.5 | I219: 1078.00 | J219: Profit of Rs.227.5/- | L219: 227.50 | M219: 25.42% | N219: Successful | O219: 2018-01-17
A220: 102 | B220: 2017-10-10 | D220: NRBBEARING | E220: Accu | F220: 125.50 | H220: 158 | I220: 155.00 | J220: Profit of Rs.32.5/- | L220: 32.50 | M220: 25.90% | N220: Successful | O220: 2017-11-28
A221: 103 | B221: 2017-10-12 | D221: CYIENT | E221: Accu | F221: 525.00 | H221: 629 | I221: 629.00 | J221: Target Achieved | L221: 104.00 | M221: 19.81% | N221: Successful | O221: 2018-01-19
A222: 104 | B222: 2017-11-07 | D222: HATSUN | E222: Accu | F222: 740.00 | H222: 892.5 | I222: 900.00 | J222: Profit of Rs.152.5/- | L222: 152.50 | M222: 20.61% | N222: Successful | O222: 2017-11-13
A223: 105 | B223: 2017-12-04 | D223: SANGHIIND | E223: Accu | F223: 118.50 | H223: 143.5 | I223: 145.00 | J223: Profit of Rs.25/- | L223: 25.00 | M223: 21.10% | N223: Successful | O223: 2017-12-28
A224: 106 | B224: 2017-12-05 | D224: ALLCARGO | E224: Accu | F224: 177.5 | H224: 215.00 | I224: 230.00 | J224: Part Profit of Rs.37.5/- | L224: 37.50 | M224: 21% | N224: Successful | O224: 2017-12-27
A225: 107 | B225: 2017-12-21 | D225: KAJARIACER | E225: Accu | F225: 710-720 | I225: 872.00 | J225: Open
A226: 108 | B226: 2017-12-29 | D226: GNA | E226: Accu | F226: 430-440 | I226: 539.00 | J226: Open
A227: 109 | B227: 2017-12-29 | D227: ZENSARTECH | E227: Accu | F227: 880-890 | I227: 1084.00 | J227: Open
A228: 110 | B228: 2018-02-07 | D228: KAJARIACER | E228: Accu | F228: 595-605 | I228: 872.00 | J228: Open
A229: 111 | B229: 2018-02-07 | D229: GREAVESCOT | E229: Accu | F229: 130-132 | I229: 190.00 | J229: Open
A230: 112 | B230: 2018-02-27 | D230: MOLDTKPAC | E230: Accu | F230: 320-330 | I230: 398.00 | J230: Open
A231: 113 | B231: 2018-03-05 | D231: LICHSGFIN | E231: Accu | F231: 505-515 | I231: 672.00 | J231: Open
A232: 114 | B232: 2018-03-08 | D232: KAJARIACER | E232: Accu | F232: 535-540 | I232: 872.00 | J232: Open
F235: Reinitiated $
A237: Disclaimer:
A238: This document has been prepared by the Retail Research Desk of Asit C Mehta
A239: Investment Intermediates Ltd. and is meant for use of the recipient only
A240: and is not for circulation. This document is not to be reported or
... 6 more rows

Sheet Call Tracker (Currency) (hidden)
A1: Master Trade High Risk
A2: Sr.no | B2: Date | C2: Company | D2: Rec | E2: Rec Price | F2: Stop Loss | G2: Call Closed At | H2: Target | I2: Remark | K2: Profit / Loss per share | L2: Gain / Loss per Lot | M2: Lot | N2: Status | O2: Closed Date
A3: 1 | B3: 2017-05-08 | C3: USDINR MAY FUT | D3: Buy | E3: 64.3935 | F3: 64.29 | G3: 64.66 | H3: 64.59 | I3: Profit of Rs.0.27/- | K3: 0.27 | L3: 266.5 | M3: 1000 | N3: Successful | O3: 2017-05-09 | R3: P
A4: 2 | B4: 2017-05-08 | C4: USDINR JUN FUT | D4: Buy | E4: 64.6535 | F4: 64.45 | G4: 64.965 | H4: 65.05 | I4: Profit of Rs 0.31/- | K4: 0.31 | L4: 311.5 | M4: 1000 | N4: Successful | O4: 2017-05-09 | R4: P
A5: 3 | B5: 2017-05-09 | C5: EUROINR MAY FUT | D5: Sell | E5: 70.65 | F5: 70.8 | G5: 70.07 | H5: 70.4 | I5: Profit of Rs 0.58/- | K5: 0.58 | L5: 580 | M5: 1000 | N5: Successful | O5: 2017-05-12 | R5: P
A6: 4 | B6: 2017-05-09 | C6: GBPINR MAY FUT | D6: Buy | E6: 83.774 | F6: 83.37 | G6: 83.37 | H6: 84.77 | I6: Loss of Rs 0.40/- | K6: -0.40 | L6: -404 | M6: 1000 | N6: Unsuccessful | O6: 2017-05-11 | R6: P
A7: 5 | B7: 2017-05-11 | C7: USDINR MAY FUT | D7: Buy | E7: 64.6555 | F7: 64.55 | G7: 64.55 | H7: 64.86 | I7: Loss of Rs.0.1055/- | K7: -0.1055 | L7: =K7*M7 -> -105.50 | M7: 1000 | N7: Unsuccessful | O7: 2017-05-11 | R7: P
A8: 6 | B8: 2017-05-15 | C8: USDINR MAY FUT | D8: Buy | E8: 64.2275 | F8: 64.08 | G8: 64.46 | H8: 64.48 | I8: Profit of Rs 0.23/- | K8: 0.23 | L8: 232.5 | M8: 1000 | N8: Successful | O8: 2017-05-18 | R8: P
A9: 7 | B9: 2017-05-19 | C9: USDINR MAY FUT | D9: Sell | E9: 64.83 | F9: 65 | G9: 65 | H9: 64.5 | I9: Loss of Rs.0.17/- | K9: -0.17 | L9: -170 | M9: 1000 | N9: Unsuccessful | O9: 2017-05-19 | R9: P
A10: 8 | B10: 2017-05-23 | C10: USDINR MAY FUT | D10: Buy | E10: 64.83 | F10: 64.62 | G10: 64.95 | H10: 65.2 | I10: Profit of Rs 0.12/- | K10: 0.12 | L10: 120 | M10: 1000 | N10: Successful | O10: 2017-05-24 | R10: P
A11: 9 | B11: 2017-05-25 | C11: USDINR MAY FUT | D11: Buy | E11: 64.57 | F11: 64.25 | G11: 64.56 | H11: 65 | I11: Loss of Rs.0.01/- | K11: -0.01 | L11: -10 | M11: 1000 | N11: Neutral | O11: 2017-05-29 | R11: P
A12: 10 | B12: 2017-05-30 | C12: USDINR JUN FUT | D12: Buy | E12: 64.9125 | F12: 64.71 | G12: 64.71 | H12: 65.31 | I12: Loss of Rs.0.20/- | K12: -0.20 | L12: -202.5 | M12: 1000 | N12: Unsuccessful | O12: 2017-05-31 | R12: P
A13: 11 | B13: 2017-06-01 | C13: USDINR JUN FUT | D13: Buy | E13: 64.655 | F13: 64.45 | G13: 64.45 | H13: 65.05 | I13: Loss of Rs.0.20/- | K13: =G13-E13 -> -0.20 | L13: =K13*M13 -> -205 | M13: 1000.00 | N13: Unsuccessful | O13: 2017-06-08 | R13: P
A14: 12 | B14: 2017-06-12 | C14: USDINR JUN FUT | D14: Buy | E14: 64.45 | F14: 64 | G14: 64.7625 | H14: 65.2 | I14: Profit of Rs 0.31/- | K14: 0.31 | L14: 312.5 | M14: 1000 | N14: Successful | O14: 2017-06-16
A15: 13 | B15: 2017-06-16 | C15: USDINR JUN FUT | D15: Buy | E15: 64.51 | F15: 64.2 | G15: 64.7 | H15: 65.11 | I15: Profit of Rs 0.19/- | K15: 0.19 | L15: 190 | M15: 1000 | N15: Successful | O15: 2017-06-21
A16: 14 | B16: 2017-06-22 | C16: USDINR JUN FUT | D16: Buy | E16: 64.56 | F16: 64.2 | G16: 64.2 | H16: 65.1 | I16: Loss of Rs.0.36/- | K16: -0.36 | L16: -360 | M16: 1000.00 | N16: Unsuccessful | O16: 2017-06-30
A17: 15 | B17: 2017-07-10 | C17: USDINR JUL FUT | D17: Buy | E17: 64.67 | F17: 64.4 | G17: 64.4 | H17: 65.15 | I17: Loss of Rs.0.27/- | K17: -0.27 | L17: -270 | M17: 1000.00 | N17: Unsuccessful | O17: 2017-07-31
A18: 16 | B18: 2017-08-02 | C18: USDINR AUG FUT | D18: Buy | E18: 64.235 | F18: 63.98 | G18: 63.98 | H18: 64.75 | I18: Loss of Rs.0.26/- | K18: -0.26 | L18: -255 | M18: 1000.00 | N18: Unsuccessful | O18: 2017-08-02
A19: 17 | B19: 2017-08-08 | C19: USDINR AUG FUT | D19: Buy | E19: 63.9425 | F19: 63.6 | G19: 64.15 | H19: 64.5 | I19: Profit of Rs 0.21/- | K19: 0.21 | L19: 207.5 | M19: 1000 | N19: Successful | O19: 2017-08-10
A20: 18 | B20: 2017-08-22 | C20: USDINR AUG FUT | D20: Buy | E20: 64.1175 | F20: 63.9 | G20: 64.01 | H20: 64.5 | I20: Loss of Rs.0.11/- | K20: =G20-E20 -> -0.11 | L20: =K20*M20 -> -107.5 | M20: 1000.00 | N20: Unsuccessful | O20: 2017-08-29
A21: 19 | B21: 2017-09-01 | C21: USDINR SEP FUT | D21: Buy | E21: 64.1 | F21: 63.8 | G21: 64.205 | H21: 64.7 | I21: Profit of Rs 0.11/- | K21: 0.11 | L21: 105 | M21: 1000 | N21: Successful | O21: 2017-09-01
A22: 20 | B22: 2017-09-04 | C22: USDINR SEP FUT | D22: Buy | E22: 64.095 | F22: 63.8 | G22: 64.195 | H22: 64.7 | I22: Profit of Rs 0.10/- | K22: 0.10 | L22: =K22*M22 -> 100 | M22: 1000 | N22: Successful | O22: 2017-09-04
A23: 21 | B23: 2017-09-05 | C23: USDINR SEP FUT | D23: Buy | E23: 64.25 | F23: 64 | G23: 64.355 | H23: 64.75 | I23: Profit of Rs 0.11/- | K23: =G23-E23 -> 0.11 | L23: =K23*M23 -> 105 | M23: 1000 | N23: Successful | O23: 2017-09-06
A24: 22 | B24: 2017-09-06 | C24: USDINR SEP FUT | D24: Sell | E24: 64.365 | F24: 64.5 | G24: 64.265 | H24: 64 | I24: Profit of Rs 0.10/- | K24: =E24-G24 -> 0.10 | L24: 100 | M24: 1000 | N24: Successful | O24: 2017-09-06
A25: 23 | B25: 2017-09-07 | C25: USDINR SEP FUT | D25: Buy | E25: 64.145 | F25: 63.9 | G25: 64.2565 | H25: 64.65 | I25: Profit of Rs 0.11/- | K25: =G25-E25 -> 0.11 | L25: =K25*M25 -> 111.5 | M25: 1000 | N25: Successful | O25: 2017-09-14
A26: 24 | B26: 2017-09-11 | C26: JPYINR SEP FUT | D26: Sell | E26: 59.0285 | F26: 59.25 | G26: 58.645 | H26: 58.5 | I26: Profit of Rs 0.38/- | K26: =E26-G26 -> 0.38 | L26: 383.5 | M26: 1000 | N26: Successful | O26: 2017-09-12
A27: 25 | B27: 2017-09-14 | C27: USDINR SEP FUT | D27: Buy | E27: 64.145 | F27: 63.95 | G27: 64.26 | H27: 64.5 | I27: Profit of Rs 0.12/- | K27: =G27-E27 -> 0.12 | L27: 115 | M27: 1000 | N27: Successful | O27: 2017-09-19
A28: 26 | B28: 2017-09-20 | C28: USDINR SEP FUT | D28: Buy | E28: 64.3515 | F28: 64.15 | G28: 64.57 | H28: 64.75 | I28: Profit of Rs 0.22/- | K28: =G28-E28 -> 0.22 | L28: =K28*M28 -> 218.5 | M28: 1000 | N28: Successful | O28: 2017-09-21
A29: 27 | B29: 2017-09-21 | C29: USDINR SEP FUT | D29: Sell | E29: 64.795 | F29: 65.05 | G29: 65.05 | H29: 64.4 | I29: Loss of Rs.0.17/- | K29: -0.17 | L29: -170 | M29: 1000.00 | N29: Unsuccessful | O29: 2017-09-22
A30: 28 | B30: 2017-09-25 | C30: USDINR SEP FUT | D30: Buy | E30: 64.77 | F30: 64.4 | G30: 64.92 | H30: 65.1 | I30: Profit of Rs 0.15/- | K30: =G30-E30 -> 0.15 | L30: =K30*M30 -> 150 | M30: 1000 | N30: Successful | O30: 2017-09-25
A31: 29 | B31: 2017-09-25 | C31: USDINR SEP FUT | D31: Sell | E31: 65.1077 | F31: 65.3 | G31: 65.3 | H31: 64.5 | I31: Loss of Rs.0.19/- | K31: -0.19 | L31: -190 | M31: 1000.00 | N31: Unsuccessful | O31: 2017-09-26
A32: 30 | B32: 2017-09-27 | C32: USDINR SEP FUT | D32: Sell | E32: 65.7225 | F32: 65.83 | G32: 65.7 | H32: 65.52 | I32: Profit of Rs 0.02/- | K32: =E32-G32 -> 0.02 | L32: =K32*M32 -> 22.5 | M32: 1000 | N32: Neutral | O32: 2017-09-27
A33: 31 | B33: 2017-09-27 | C33: USDINR OCT FUT | D33: Sell | E33: 66 | F33: 66.5 | G33: 65.895 | H33: 65 | I33: Profit of Rs 0.11/- | K33: =E33-G33 -> 0.11 | L33: 105 | M33: 1000 | N33: Successful | O33: 2017-09-27
A34: 32 | B34: 2017-09-28 | C34: USDINR OCT FUT | D34: Sell | E34: 66.075 | F34: 66.3 | G34: 65.96 | H34: 65.4 | I34: Profit of Rs 0.12/- | K34: =E34-G34 -> 0.12 | L34: =K34*M34 -> 115 | M34: 1000 | N34: Successful | O34: 2017-09-28
A35: 33 | B35: 2017-09-29 | C35: GBPINR OCT fut | D35: Buy | E35: 87.745 | F35: 87.5 | G35: 87.84 | H35: 88.25 | I35: Profit of Rs 0.09/- | K35: =G35-E35 -> 0.09 | L35: 95 | M35: 1000 | N35: Successful | O35: 2017-09-29
A36: 34 | B36: 2017-09-29 | C36: USDINR OCT FUT | D36: Buy | E36: 65.514 | F36: 65.25 | G36: 65.85 | H36: 66 | I36: Profit of Rs 0.34/- | K36: 0.34 | L36: =K36*M36 -> 336 | M36: 1000 | N36: Successful | O36: 2017-10-03
A37: 35 | B37: 2017-10-09 | C37: USDINR OCT FUT | D37: Buy | E37: 65.48 | F37: 65.23 | G37: 65.5775 | H37: 65.95 | I37: Profit of Rs 0.10/- | K37: =G37-E37 -> 0.10 | L37: =K37*M37 -> 97.5 | M37: 1000 | N37: Successful | O37: 2017-10-09
A38: 36 | B38: 2017-10-10 | C38: USDINR OCT FUT | D38: Buy | E38: 65.41 | F38: 65.15 | G38: 65.5075 | H38: 66 | I38: Profit of Rs 0.10/- | K38: 0.10 | L38: 97.5 | M38: 1000 | N38: Successful | O38: 2017-10-10
A39: 37 | B39: 2017-10-11 | C39: USDINR OCT FUT | D39: Buy | E39: 65.38 | F39: 65.13 | G39: 65.13 | H39: 65.88 | I39: Loss of Rs.0.25/- | K39: -0.25 | L39: -250 | M39: 1000.00 | N39: Unsuccessful | O39: 2017-10-13
A40: 38 | B40: 2017-10-16 | C40: USDINR OCT FUT | D40: Buy | E40: 64.7925 | F40: 64.54 | G40: 64.905 | H40: 65.3 | I40: Profit of Rs 0.11/- | K40: =G40-E40 -> 0.11 | L40: =K40*M40 -> 112.5 | M40: 1000 | N40: Successful | O40: 2017-10-17
A41: 39 | B41: 2017-10-23 | C41: USDINR OCT FUT | D41: Buy | E41: 65.115 | F41: 64.85 | G41: 65.21 | H41: 65.5 | I41: Profit of Rs 0.09/- | K41: =G41-E41 -> 0.09 | L41: =K41*M41 -> 95 | M41: 1000 | N41: Successful | O41: 2017-10-25
A42: 40 | B42: 2017-10-23 | C42: JPYINR OCT FUT | D42: Buy | E42: 57.285 | F42: 57.03 | G42: 57.38 | H42: 58.4 | I42: Profit of Rs 0.10/- | K42: =G42-E42 -> 0.10 | L42: =K42*M42 -> 95 | M42: 1000 | N42: Successful | O42: 2017-10-23
A43: 41 | B43: 2017-10-26 | C43: USDINR OCT FUT | D43: Buy | E43: 64.755 | F43: 64.5 | G43: 64.87 | H43: 65.25 | I43: Profit of Rs 0.12/- | K43: 0.12 | L43: 115 | M43: 1000 | N43: Successful | O43: 2017-10-25
A44: 42 | B44: 2017-10-30 | C44: USDINR NOV FUT | D44: Buy | E44: 65.035 | F44: 64.79 | G44: 64.79 | H44: 65.5 | I44: Loss of Rs.0.24/- | K44: -0.24 | L44: -245 | M44: 1000.00 | N44: Unsuccessful | O44: 2017-11-01
A45: 43 | B45: 2017-11-01 | C45: JPYINR NOV FUT | D45: Buy | E45: 56.9875 | F45: 56.73 | G45: 57.0959 | H45: 57.5 | I45: Profit of Rs 0.11/- | K45: =G45-E45 -> 0.11 | L45: =K45*M45 -> 108.4 | M45: 1000 | N45: Successful | O45: 2017-11-07
A46: 44 | B46: 2017-11-02 | C46: USDINR NOV FUT | D46: Buy | E46: 64.7838 | F46: 64.5 | G46: 64.89 | H46: 65.25 | I46: Profit of Rs 0.11/- | K46: =G46-E46 -> 0.11 | L46: =K46*M46 -> 106.2 | M46: 1000 | N46: Successful | O46: 2017-11-06
A47: 45 | B47: 2017-11-08 | C47: USDINR NOV FUT | D47: Buy | E47: 65.1363 | F47: 64.8375 | G47: 65.235 | H47: 65.73 | I47: Profit of Rs 0.10/- | K47: =G47-E47 -> 0.10 | L47: =K47*M47 -> 98.7 | M47: 1000 | N47: Successful | O47: 2017-11-10
A48: 46 | B48: 2017-11-08 | C48: GBPINR NOV FUT | D48: Buy | E48: 85.4983 | F48: 85.25 | G48: 85.6 | H48: 86 | I48: Profit of Rs 0.10/- | K48: =G48-E48 -> 0.10 | L48: =K48*M48 -> 101.7 | M48: 1000 | N48: Successful | O48: 2017-11-09
A49: 47 | B49: 2017-11-16 | C49: EURINR NOV FUT | D49: Buy | E49: 76.8975 | F49: 76.3975 | G49: 76.3975 | H49: 77.8975 | I49: Loss of Rs.0.50/- | K49: =G49-E49 -> -0.50 | L49: -500 | M49: 1000.00 | N49: Unsuccessful | O49: 2017-11-01
A50: 48 | B50: 2017-11-16 | C50: JPYINR NOV FUT | D50: Buy | E50: 57.6625 | F50: 57.2675 | G50: 57.8075 | H50: 58.6675 | I50: Profit of Rs 0.14/- | K50: =G50-E50 -> 0.14 | L50: =K50*M50 -> 145 | M50: 1000 | N50: Successful | O50: 2017-11-17
A51: 49 | B51: 2017-11-22 | C51: EURINR NOV FUT | D51: Buy | E51: 76.175 | F51: 75.95 | G51: 76.335 | H51: 76.6 | I51: Profit of Rs 0.16/- | K51: 0.16 | L51: =K51*M51 -> 160 | M51: 1000 | N51: Successful | O51: 2017-11-22
A52: 50 | B52: 2017-11-22 | C52: USDINR NOV FUT | D52: Buy | E52: 64.87 | F52: 64.5 | G52: 64.5 | H52: 65.5 | I52: Loss of Rs.0.37/- | K52: -0.37 | L52: -370 | M52: 1000.00 | N52: Unsuccessful | O52: 2017-11-27
A53: 51 | B53: 2017-11-28 | C53: GBPINR DEC FUT | D53: Buy | E53: 86.17 | F53: 85.85 | G53: 86.46 | H53: 87 | I53: Profit of Rs 0.29/- | K53: 0.29 | L53: =K53*M53 -> 290 | M53: 1000 | N53: Successful | O53: 2017-11-29
A54: 52 | B54: 2017-11-28 | C54: JPYINR DEC FUT | D54: Buy | E54: 58.16 | F54: 57.85 | G54: 57.85 | H54: 58.6 | I54: Loss of Rs.0.31/- | K54: -0.31 | L54: -310 | M54: 1000.00 | N54: Unsuccessful | O54: 2017-11-29
A55: 53 | B55: 2017-11-28 | C55: USDINR DEC FUT | D55: Buy | E55: 64.63 | F55: 64.13 | G55: 64.13 | H55: 65.63 | I55: Loss of Rs.0.50/- | K55: -0.50 | L55: =K55*M55 -> -500 | M55: 1000.00 | N55: Unsuccessful | O55: 2017-12-15
A56: 54 | B56: 2017-11-28 | C56: EURINR DEC FUT | D56: Buy | E56: 76.93 | F56: 76.43 | G56: 76.43 | H56: 77.93 | I56: Loss of Rs.0.50/- | K56: =G56-E56 -> -0.50 | L56: =K56*M56 -> -500 | M56: 1000.00 | N56: Unsuccessful | O56: 2017-11-29
A57: 55 | B57: 2017-12-12 | C57: EURINR DEC FUT | D57: Buy | E57: 76.105 | F57: 75.7 | G57: 76.27 | H57: 76.8 | I57: Profit of Rs 0.16/- | K57: =G57-E57 -> 0.16 | L57: 165 | M57: 1000 | N57: Successful | O57: 2017-12-14
A58: 56 | B58: 2017-12-12 | C58: JPYINR DEC FUT | D58: Buy | E58: 56.975 | F58: 56.7 | G58: 57.21 | H58: 57.6 | I58: Profit of Rs 0.23/- | K58: =G58-E58 -> 0.23 | L58: =K58*M58 -> 235 | M58: 1000 | N58: Successful | O58: 2017-12-14

Sheet Sheet2 (hidden)
A1: SYMBOL | B1: SERIES | C1: OPEN | D1: HIGH | E1: LOW | F1: CLOSE | G1: LAST | H1: PREVCLOSE | I1: TOTTRDQTY | J1: TOTTRDVAL | K1: TIMESTAMP | L1: TOTALTRADES | M1: ISIN
A2: 20MICRONS | B2: EQ | C2: 47.4 | D2: 53.75 | E2: 47.05 | F2: 51.5 | G2: 51.05 | H2: 46.85 | I2: 908151 | J2: 46576907 | K2: 2018-03-13 | L2: 6924 | M2: INE144J01027
A3: 3IINFOTECH | B3: EQ | C3: 5.25 | D3: 5.4 | E3: 5.15 | F3: 5.35 | G3: 5.35 | H3: 5.15 | I3: 2243805 | J3: 11842830.65 | K3: 2018-03-13 | L3: 1131 | M3: INE748C01020
A4: 3MINDIA | B4: EQ | C4: 20199 | D4: 20480.55 | E4: 20001.05 | F4: 20171.7 | G4: 20101 | H4: 20108.5 | I4: 719 | J4: 14542711.45 | K4: 2018-03-13 | L4: 336 | M4: INE470A01017
A5: 63MOONS | B5: EQ | C5: 79.15 | D5: 82.5 | E5: 77.8 | F5: 81.3 | G5: 81.45 | H5: 79.75 | I5: 245040 | J5: 19826068.4 | K5: 2018-03-13 | L5: 2730 | M5: INE111B01023
A6: 8KMILES | B6: EQ | C6: 710 | D6: 721.6 | E6: 701.75 | F6: 706.3 | G6: 707 | H6: 705.8 | I6: 146943 | J6: 104706461 | K6: 2018-03-13 | L6: 6387 | M6: INE650K01021
A7: A2ZINFRA | B7: EQ | C7: 29.95 | D7: 30.75 | E7: 29.65 | F7: 29.95 | G7: 29.95 | H7: 30.05 | I7: 1566035 | J7: 47472827.25 | K7: 2018-03-13 | L7: 2432 | M7: INE619I01012
A8: AARTIDRUGS | B8: EQ | C8: 529.05 | D8: 544 | E8: 525.35 | F8: 542.1 | G8: 544 | H8: 533 | I8: 25343 | J8: 13517100.25 | K8: 2018-03-13 | L8: 1815 | M8: INE767A01016
A9: AARTIIND | B9: EQ | C9: 1160.05 | D9: 1199.6 | E9: 1148.15 | F9: 1193.9 | G9: 1196 | H9: 1156.55 | I9: 112367 | J9: 132691281.1 | K9: 2018-03-13 | L9: 8360 | M9: INE769A01020
A10: AARVEEDEN | B10: EQ | C10: 44.2 | D10: 46.1 | E10: 44.2 | F10: 45.9 | G10: 46 | H10: 44.25 | I10: 14914 | J10: 676587.1 | K10: 2018-03-13 | L10: 100 | M10: INE273D01019
A11: ABAN | B11: EQ | C11: 156 | D11: 168.35 | E11: 156 | F11: 163.3 | G11: 162.7 | H11: 157.55 | I11: 1695575 | J11: 277150855.5 | K11: 2018-03-13 | L11: 17200 | M11: INE421A01028
A12: ABB | B12: EQ | C12: 1438.6 | D12: 1439.85 | E12: 1402 | F12: 1410.8 | G12: 1409.5 | H12: 1433.6 | I12: 38286 | J12: 54372528 | K12: 2018-03-13 | L12: 4278 | M12: INE117A01022
A13: ABBOTINDIA | B13: EQ | C13: 5630.1 | D13: 5699.65 | E13: 5552.3 | F13: 5611.3 | G13: 5619.5 | H13: 5651.45 | I13: 2163 | J13: 12129963.2 | K13: 2018-03-13 | L13: 694 | M13: INE358A01014
A14: ABCAPITAL | B14: EQ | C14: 153 | D14: 154.45 | E14: 152.5 | F14: 153.15 | G14: 153 | H14: 152.9 | I14: 2045253 | J14: 313831849.6 | K14: 2018-03-13 | L14: 15153 | M14: INE674K01013
A15: ABFRL | B15: EQ | C15: 145 | D15: 151.5 | E15: 144.4 | F15: 150.25 | G15: 151.5 | H15: 145.05 | I15: 284390 | J15: 42169520.15 | K15: 2018-03-13 | L15: 18409 | M15: INE647O01011
A16: ACC | B16: EQ | C16: 1575.15 | D16: 1582 | E16: 1557.4 | F16: 1575.35 | G16: 1568 | H16: 1559.9 | I16: 441704 | J16: 694249722 | K16: 2018-03-13 | L16: 20462 | M16: INE012A01025
A17: ACCELYA | B17: EQ | C17: 1332.75 | D17: 1353 | E17: 1332.05 | F17: 1342.8 | G17: 1343 | H17: 1332.95 | I17: 1798 | J17: 2409757.25 | K17: 2018-03-13 | L17: 356 | M17: INE793A01012
A18: ACE | B18: EQ | C18: 173 | D18: 182.5 | E18: 172.3 | F18: 181.5 | G18: 182 | H18: 173.3 | I18: 870618 | J18: 155510016 | K18: 2018-03-13 | L18: 9131 | M18: INE731H01025
A19: ADANIENT | B19: EQ | C19: 162.05 | D19: 164.5 | E19: 157 | F19: 159.75 | G19: 160 | H19: 162.25 | I19: 15160439 | J19: 2429560645 | K19: 2018-03-13 | L19: 68756 | M19: INE423A01024
A20: ADANIPORTS | B20: EQ | C20: 387 | D20: 391.4 | E20: 381.15 | F20: 385.2 | G20: 386 | H20: 386.6 | I20: 2175696 | J20: 841969915.9 | K20: 2018-03-13 | L20: 27859 | M20: INE742F01042
A21: ADANIPOWER | B21: EQ | C21: 26.15 | D21: 27.2 | E21: 25.8 | F21: 26.7 | G21: 26.8 | H21: 26.35 | I21: 11166266 | J21: 298101290.9 | K21: 2018-03-13 | L21: 23042 | M21: INE814H01011
A22: ADANITRANS | B22: EQ | C22: 180.6 | D22: 192 | E22: 180.6 | F22: 184.4 | G22: 185.4 | H22: 185.3 | I22: 750055 | J22: 139377533.7 | K22: 2018-03-13 | L22: 18325 | M22: INE931S01010
A23: ADFFOODS | B23: EQ | C23: 224.2 | D23: 229 | E23: 223.55 | F23: 225.1 | G23: 224.45 | H23: 224.3 | I23: 205391 | J23: 46397839.15 | K23: 2018-03-13 | L23: 3430 | M23: INE982B01019
A24: ADHUNIK | B24: EQ | C24: 4.1 | D24: 4.2 | E24: 4 | F24: 4.05 | G24: 4 | H24: 4.1 | I24: 276607 | J24: 1130879.5 | K24: 2018-03-13 | L24: 91 | M24: INE400H01019
A25: ADHUNIKIND | B25: EQ | C25: 65 | D25: 66.4 | E25: 63.5 | F25: 65.95 | G25: 65.5 | H25: 64.4 | I25: 92641 | J25: 6058845.45 | K25: 2018-03-13 | L25: 166 | M25: INE452L01012
A26: ADLABS | B26: EQ | C26: 49.95 | D26: 52.25 | E26: 49.65 | F26: 51.6 | G26: 52.05 | H26: 49.8 | I26: 123165 | J26: 6314255.95 | K26: 2018-03-13 | L26: 928 | M26: INE172N01012
A27: ADORWELD | B27: EQ | C27: 395.15 | D27: 408 | E27: 394.1 | F27: 401.9 | G27: 399 | H27: 398.1 | I27: 13521 | J27: 5440513.05 | K27: 2018-03-13 | L27: 594 | M27: INE045A01017
A28: ADSL | B28: EQ | C28: 21.4 | D28: 21.8 | E28: 20.55 | F28: 21.35 | G28: 21.5 | H28: 21.55 | I28: 32968 | J28: 689814.95 | K28: 2018-03-13 | L28: 137 | M28: INE102I01027
A29: ADVANIHOTR | B29: EQ | C29: 60.9 | D29: 60.9 | E29: 58.9 | F29: 60 | G29: 59.9 | H29: 59.3 | I29: 11808 | J29: 709354.95 | K29: 2018-03-13 | L29: 79 | M29: INE199C01026
A30: ADVENZYMES | B30: EQ | C30: 222 | D30: 226 | E30: 218 | F30: 221.5 | G30: 221 | H30: 220.7 | I30: 196651 | J30: 43603152.95 | K30: 2018-03-13 | L30: 4050 | M30: INE837H01020
A31: AEGISCHEM | B31: EQ | C31: 243.85 | D31: 246.5 | E31: 235.5 | F31: 238.25 | G31: 238.3 | H31: 242.95 | I31: 149404 | J31: 35994809.4 | K31: 2018-03-13 | L31: 4301 | M31: INE208C01025
A32: AFL | B32: EQ | C32: 56.85 | D32: 56.85 | E32: 54.75 | F32: 56 | G32: 56 | H32: 56.35 | I32: 4085 | J32: 228217.4 | K32: 2018-03-13 | L32: 38 | M32: INE020G01017
A33: AGCNET | B33: EQ | C33: 116 | D33: 116 | E33: 113.25 | F33: 114.35 | G33: 114.1 | H33: 115.8 | I33: 2080 | J33: 238218.3 | K33: 2018-03-13 | L33: 31 | M33: INE676A01019
A34: AGLSL | B34: EQ | C34: 100 | D34: 102.3 | E34: 96.1 | F34: 97.75 | G34: 97 | H34: 100.45 | I34: 8718 | J34: 872534.35 | K34: 2018-03-13 | L34: 64 | M34: INE517U01013
A35: AGRITECH | B35: EQ | C35: 132.35 | D35: 138.95 | E35: 130.5 | F35: 135.95 | G35: 136.1 | H35: 132.85 | I35: 61839 | J35: 8361891.9 | K35: 2018-03-13 | L35: 1358 | M35: INE449G01018
A36: AHLUCONT | B36: EQ | C36: 377.95 | D36: 385 | E36: 376.05 | F36: 381.2 | G36: 384.5 | H36: 373.25 | I36: 23622 | J36: 8982732.7 | K36: 2018-03-13 | L36: 641 | M36: INE758C01029
A37: AHLWEST | B37: EQ | C37: 261.1 | D37: 267.7 | E37: 260 | F37: 264.1 | G37: 264.05 | H37: 265 | I37: 630 | J37: 165668.1 | K37: 2018-03-13 | L37: 37 | M37: INE915K01010
A38: AIAENG | B38: EQ | C38: 1453.9 | D38: 1453.9 | E38: 1427.55 | F38: 1447.9 | G38: 1444 | H38: 1442.95 | I38: 8448 | J38: 12185083.7 | K38: 2018-03-13 | L38: 1714 | M38: INE212H01026
A39: AIFL | B39: EQ | C39: 471 | D39: 479.75 | E39: 462 | F39: 466.8 | G39: 465 | H39: 469.2 | I39: 297574 | J39: 138991598.3 | K39: 2018-03-13 | L39: 3298 | M39: INE428O01016
A40: AJANTPHARM | B40: EQ | C40: 1355.5 | D40: 1394.95 | E40: 1348.65 | F40: 1384.95 | G40: 1374.35 | H40: 1353.2 | I40: 132665 | J40: 182157160.9 | K40: 2018-03-13 | L40: 6690 | M40: INE031B01049
A41: AJMERA | B41: EQ | C41: 238 | D41: 242 | E41: 236.6 | F41: 240.15 | G41: 240.3 | H41: 237.85 | I41: 78117 | J41: 18768620.45 | K41: 2018-03-13 | L41: 1528 | M41: INE298G01027
A42: AKSHARCHEM | B42: EQ | C42: 639.95 | D42: 639.95 | E42: 626.45 | F42: 632.6 | G42: 638 | H42: 636.25 | I42: 2218 | J42: 1405822.35 | K42: 2018-03-13 | L42: 214 | M42: INE542B01011
A43: AKSHOPTFBR | B43: EQ | C43: 32.3 | D43: 34 | E43: 32.3 | F43: 33.75 | G43: 33.95 | H43: 32.55 | I43: 808065 | J43: 27035999.75 | K43: 2018-03-13 | L43: 2586 | M43: INE523B01011
A44: AKZOINDIA | B44: EQ | C44: 1848.7 | D44: 1879 | E44: 1822.65 | F44: 1851.85 | G44: 1847.45 | H44: 1830.45 | I44: 30602 | J44: 57027982.3 | K44: 2018-03-13 | L44: 3279 | M44: INE133A01011
A45: ALANKIT | B45: EQ | C45: 48.45 | D45: 49.95 | E45: 47 | F45: 49.45 | G45: 47.95 | H45: 47.6 | I45: 1334086 | J45: 65742288.5 | K45: 2018-03-13 | L45: 2478 | M45: INE914E01040
A46: ALBK | B46: EQ | C46: 44.4 | D46: 50 | E46: 44.4 | F46: 47.95 | G46: 48.05 | H46: 45.4 | I46: 11059413 | J46: 530070011.9 | K46: 2018-03-13 | L46: 29441 | M46: INE428A01015
A47: ALEMBICLTD | B47: EQ | C47: 61.7 | D47: 63.4 | E47: 61.5 | F47: 62.75 | G47: 62.75 | H47: 60.7 | I47: 1320467 | J47: 82901208.95 | K47: 2018-03-13 | L47: 7307 | M47: INE426A01027
A48: ALICON | B48: EQ | C48: 573 | D48: 591.5 | E48: 566.05 | F48: 575.35 | G48: 575 | H48: 575.2 | I48: 1848 | J48: 1074733 | K48: 2018-03-13 | L48: 124 | M48: INE062D01024
A49: ALKALI | B49: EQ | C49: 77.4 | D49: 81 | E49: 77.4 | F49: 77.5 | G49: 77.5 | H49: 78.2 | I49: 5582 | J49: 441591.75 | K49: 2018-03-13 | L49: 128 | M49: INE773I01017
A50: ALKEM | B50: EQ | C50: 2200.2 | D50: 2213.95 | E50: 2194.95 | F50: 2197.1 | G50: 2195 | H50: 2204.2 | I50: 20999 | J50: 46162446.7 | K50: 2018-03-13 | L50: 2532 | M50: INE540L01014
A51: ALKYLAMINE | B51: EQ | C51: 608.85 | D51: 611 | E51: 601.1 | F51: 609.85 | G51: 605 | H51: 603.15 | I51: 2868 | J51: 1747142.45 | K51: 2018-03-13 | L51: 97 | M51: INE150B01021
A52: ALLCARGO | B52: EQ | C52: 156.2 | D52: 161.8 | E52: 156.2 | F52: 160.3 | G52: 160.5 | H52: 155.8 | I52: 294501 | J52: 47140137.4 | K52: 2018-03-13 | L52: 5276 | M52: INE418H01029
A53: ALLSEC | B53: EQ | C53: 348.85 | D53: 354 | E53: 346.8 | F53: 352.1 | G53: 353 | H53: 345.1 | I53: 23580 | J53: 8276522 | K53: 2018-03-13 | L53: 265 | M53: INE835G01018
A54: ALMONDZ | B54: EQ | C54: 24.1 | D54: 24.4 | E54: 23.85 | F54: 24.3 | G54: 24.4 | H54: 23.25 | I54: 10396 | J54: 249884.9 | K54: 2018-03-13 | L54: 38 | M54: INE326B01027
A55: ALOKTEXT | B55: EQ | C55: 3 | D55: 3.15 | E55: 2.9 | F55: 3.15 | G55: 3.15 | H55: 3 | I55: 5001844 | J55: 15456856.6 | K55: 2018-03-13 | L55: 1065 | M55: INE270A01011
A56: ALPA | B56: EQ | C56: 40.4 | D56: 42.25 | E56: 40 | F56: 40.1 | G56: 40 | H56: 41.4 | I56: 25577 | J56: 1047017.3 | K56: 2018-03-13 | L56: 180 | M56: INE385I01010
A57: ALPHAGEO | B57: EQ | C57: 754.7 | D57: 774 | E57: 746.5 | F57: 766.4 | G57: 768 | H57: 746.45 | I57: 25362 | J57: 19330587.5 | K57: 2018-03-13 | L57: 1446 | M57: INE137C01018
A58: ALPSINDUS | B58: EQ | C58: 3.95 | D58: 4.05 | E58: 3.95 | F58: 3.95 | G58: 3.95 | H58: 4.1 | I58: 11555 | J58: 46012.7 | K58: 2018-03-13 | L58: 37 | M58: INE093B01015
A59: AMARAJABAT | B59: EQ | C59: 818 | D59: 824.6 | E59: 797.1 | F59: 801.95 | G59: 801.95 | H59: 813.55 | I59: 582103 | J59: 472169454.5 | K59: 2018-03-13 | L59: 15370 | M59: INE885A01032
A60: AMBER | B60: EQ | C60: 1138 | D60: 1192.4 | E60: 1131.5 | F60: 1181.6 | G60: 1185.1 | H60: 1125.35 | I60: 188498 | J60: 218759332.1 | K60: 2018-03-13 | L60: 12147 | M60: INE371P01015
A61: AMBIKCO | B61: EQ | C61: 1315 | D61: 1339 | E61: 1305.8 | F61: 1325.05 | G61: 1318 | H61: 1305.7 | I61: 2644 | J61: 3487725.45 | K61: 2018-03-13 | L61: 252 | M61: INE540G01014
A62: AMBUJACEM | B62: EQ | C62: 242.05 | D62: 244.4 | E62: 237.7 | F62: 238.8 | G62: 238.8 | H62: 240.85 | I62: 1942169 | J62: 467551612.9 | K62: 2018-03-13 | L62: 31732 | M62: INE079A01024
A63: AMDIND | B63: EQ | C63: 42.2 | D63: 42.45 | E63: 38.25 | F63: 38.5 | G63: 38.45 | H63: 41.55 | I63: 128036 | J63: 5099144.75 | K63: 2018-03-13 | L63: 887 | M63: INE005I01014
A64: AMJLAND | B64: EQ | C64: 26.4 | D64: 27 | E64: 24.75 | F64: 25.55 | G64: 25.35 | H64: 26.05 | I64: 15036 | J64: 382184.95 | K64: 2018-03-13 | L64: 236 | M64: INE606A01024
A65: AMRUTANJAN | B65: EQ | C65: 560 | D65: 567.9 | E65: 547.25 | F65: 562.95 | G65: 567.9 | H65: 552.4 | I65: 3470 | J65: 1935662.75 | K65: 2018-03-13 | L65: 240 | M65: INE098F01023
A66: AMTEKAUTO | B66: EQ | C66: 27.35 | D66: 27.35 | E66: 25.55 | F66: 26 | G66: 26.1 | H66: 26.05 | I66: 1848090 | J66: 49287444.05 | K66: 2018-03-13 | L66: 6445 | M66: INE130C01021
A67: ANANTRAJ | B67: EQ | C67: 50.6 | D67: 53.25 | E67: 50.35 | F67: 52.35 | G67: 52.25 | H67: 51 | I67: 1436822 | J67: 74945384.95 | K67: 2018-03-13 | L67: 4520 | M67: INE242C01024
A68: ANDHRABANK | B68: EQ | C68: 35.25 | D68: 40.2 | E68: 35 | F68: 39.5 | G68: 40.1 | H68: 35.95 | I68: 39493440 | J68: 1511407612 | K68: 2018-03-13 | L68: 64630 | M68: INE434A01013
A69: ANDHRACEMT | B69: EQ | C69: 9.75 | D69: 10.1 | E69: 9.55 | F69: 9.95 | G69: 9.9 | H69: 9.75 | I69: 104474 | J69: 1040646.1 | K69: 2018-03-13 | L69: 302 | M69: INE666E01012
A70: ANDHRSUGAR | B70: EQ | C70: 453.55 | D70: 458.6 | E70: 444 | F70: 447.85 | G70: 449.2 | H70: 454.7 | I70: 28953 | J70: 12997255 | K70: 2018-03-13 | L70: 860 | M70: INE715B01013
A71: ANGIND | B71: EQ | C71: 4.9 | D71: 5.1 | E71: 4.8 | F71: 5.1 | G71: 5.1 | H71: 4.9 | I71: 21309 | J71: 106707.05 | K71: 2018-03-13 | L71: 55 | M71: INE017D01010
A72: ANIKINDS | B72: EQ | C72: 34.45 | D72: 35.2 | E72: 34 | F72: 34.2 | G72: 34 | H72: 34.7 | I72: 7918 | J72: 272691.8 | K72: 2018-03-13 | L72: 107 | M72: INE087B01017
A73: ANSALAPI | B73: EQ | C73: 18.25 | D73: 19.35 | E73: 18.1 | F73: 19.35 | G73: 19.35 | H73: 18.45 | I73: 67025 | J73: 1276040.85 | K73: 2018-03-13 | L73: 258 | M73: INE436A01026
A74: ANSALHSG | B74: EQ | C74: 20 | D74: 20.7 | E74: 19.3 | F74: 20.25 | G74: 20.2 | H74: 20 | I74: 72252 | J74: 1461769.45 | K74: 2018-03-13 | L74: 354 | M74: INE880B01015
A75: APARINDS | B75: EQ | C75: 751.15 | D75: 768 | E75: 745 | F75: 756.75 | G75: 751.1 | H75: 753.8 | I75: 22388 | J75: 16858450.3 | K75: 2018-03-13 | L75: 814 | M75: INE372A01015
A76: APCL | B76: EQ | C76: 182.9 | D76: 186 | E76: 179.95 | F76: 184.75 | G76: 186 | H76: 178.1 | I76: 4535 | J76: 836123.35 | K76: 2018-03-13 | L76: 91 | M76: INE071F01012
A77: APCOTEXIND | B77: EQ | C77: 500 | D77: 511 | E77: 500 | F77: 509.4 | G77: 509.8 | H77: 501.6 | I77: 8884 | J77: 4511712.65 | K77: 2018-03-13 | L77: 298 | M77: INE116A01024
A78: APEX | B78: EQ | C78: 649.4 | D78: 699.9 | E78: 648 | F78: 678.85 | G78: 680 | H78: 653.35 | I78: 579913 | J78: 394197361.4 | K78: 2018-03-13 | L78: 17431 | M78: INE346W01013
A79: APLAPOLLO | B79: EQ | C79: 1852 | D79: 2009.95 | E79: 1850.05 | F79: 1984.95 | G79: 1970.95 | H79: 1885.15 | I79: 48359 | J79: 94406028.2 | K79: 2018-03-13 | L79: 4029 | M79: INE702C01019
A80: APLLTD | B80: EQ | C80: 545 | D80: 545 | E80: 540 | F80: 542.2 | G80: 540.05 | H80: 543.25 | I80: 7861 | J80: 4264815.55 | K80: 2018-03-13 | L80: 606 | M80: INE901L01018
A81: APOLLO | B81: EQ | C81: 275 | D81: 284.5 | E81: 275 | F81: 280.1 | G81: 279.5 | H81: 277.35 | I81: 69146 | J81: 19407492.35 | K81: 2018-03-13 | L81: 2098 | M81: INE713T01010
A82: APOLLOHOSP | B82: EQ | C82: 1130 | D82: 1130.5 | E82: 1090 | F82: 1095.9 | G82: 1096.5 | H82: 1129.65 | I82: 386569 | J82: 429007456 | K82: 2018-03-13 | L82: 20097 | M82: INE437A01024
A83: APOLLOTYRE | B83: EQ | C83: 260.1 | D83: 267.95 | E83: 260.1 | F83: 264.55 | G83: 264.1 | H83: 262.15 | I83: 1798681 | J83: 476780466.7 | K83: 2018-03-13 | L83: 20494 | M83: INE438A01022
A84: APOLSINHOT | B84: EQ | C84: 1443.5 | D84: 1443.5 | E84: 1390 | F84: 1437.9 | G84: 1440 | H84: 1381.45 | I84: 88 | J84: 125731 | K84: 2018-03-13 | L84: 28 | M84: INE451F01016
A85: APTECHT | B85: EQ | C85: 292.1 | D85: 316 | E85: 292.1 | F85: 308.9 | G85: 309.9 | H85: 292.85 | I85: 1134535 | J85: 347758585.8 | K85: 2018-03-13 | L85: 16865 | M85: INE266F01018
A86: ARCHIDPLY | B86: EQ | C86: 81.4 | D86: 85 | E86: 80.5 | F86: 84 | G86: 84 | H86: 82.55 | I86: 41772 | J86: 3490425.4 | K86: 2018-03-13 | L86: 490 | M86: INE877I01016
A87: ARCHIES | B87: EQ | C87: 34.5 | D87: 35.45 | E87: 34.25 | F87: 34.7 | G87: 34.9 | H87: 33.95 | I87: 143648 | J87: 5004013.05 | K87: 2018-03-13 | L87: 878 | M87: INE731A01020
A88: ARCOTECH | B88: EQ | C88: 38.1 | D88: 41.25 | E88: 37.95 | F88: 38.8 | G88: 39.2 | H88: 38.05 | I88: 392777 | J88: 15442155.9 | K88: 2018-03-13 | L88: 1884 | M88: INE574I01035
A89: ARENTERP | B89: EQ | C89: 18.85 | D89: 18.85 | E89: 18.85 | F89: 18.85 | G89: 18.85 | H89: 19.8 | I89: 900 | J89: 16965 | K89: 2018-03-13 | L89: 2 | M89: INE610C01014
A90: ARIES | B90: EQ | C90: 194.9 | D90: 201.45 | E90: 192.5 | F90: 201.35 | G90: 201.45 | H90: 191.9 | I90: 39451 | J90: 7846043.2 | K90: 2018-03-13 | L90: 688 | M90: INE298I01015
A91: ARIHANTSUP | B91: EQ | C91: 131.5 | D91: 131.95 | E91: 122.15 | F91: 126.5 | G91: 125 | H91: 131.45 | I91: 116636 | J91: 14792663.15 | K91: 2018-03-13 | L91: 1345 | M91: INE643K01018
A92: ARMANFIN | B92: EQ | C92: 334.15 | D92: 342.1 | E92: 333 | F92: 335.1 | G92: 335 | H92: 334.1 | I92: 9409 | J92: 3164521 | K92: 2018-03-13 | L92: 88 | M92: INE109C01017
A93: AROGRANITE | B93: EQ | C93: 57.5 | D93: 59 | E93: 56.5 | F93: 58.15 | G93: 58.1 | H93: 57.5 | I93: 33526 | J93: 1948838.9 | K93: 2018-03-13 | L93: 314 | M93: INE210C01013
A94: ARROWGREEN | B94: EQ | C94: 302 | D94: 310 | E94: 297.5 | F94: 300.9 | G94: 299.95 | H94: 305.5 | I94: 35560 | J94: 10811525.8 | K94: 2018-03-13 | L94: 1120 | M94: INE570D01018
A95: ARROWTEX | B95: EQ | C95: 38.7 | D95: 38.7 | E95: 37.65 | F95: 37.95 | G95: 38 | H95: 38.15 | I95: 6048 | J95: 230135.35 | K95: 2018-03-13 | L95: 106 | M95: INE933J01015
A96: ARSHIYA | B96: EQ | C96: 74.35 | D96: 79.15 | E96: 74.35 | F96: 75.65 | G96: 75.6 | H96: 74.65 | I96: 102436 | J96: 7862845.5 | K96: 2018-03-13 | L96: 828 | M96: INE968D01022
A97: ARVIND | B97: EQ | C97: 400.25 | D97: 406.35 | E97: 396 | F97: 399.75 | G97: 399.75 | H97: 402.45 | I97: 3048982 | J97: 1222729639 | K97: 2018-03-13 | L97: 20500 | M97: INE034A01011
A98: ARVSMART | B98: EQ | C98: 160.95 | D98: 170.55 | E98: 159.45 | F98: 168.65 | G98: 170 | H98: 161.8 | I98: 25406 | J98: 4225165.8 | K98: 2018-03-13 | L98: 791 | M98: INE034S01021
A99: ASAHIINDIA | B99: EQ | C99: 346.05 | D99: 352 | E99: 346 | F99: 347.15 | G99: 346 | H99: 348.7 | I99: 37597 | J99: 13139086.05 | K99: 2018-03-13 | L99: 2310 | M99: INE439A01020
A100: ASAHISONG | B100: EQ | C100: 341.65 | D100: 344 | E100: 331.15 | F100: 337.9 | G100: 337 | H100: 337.45 | I100: 7335 | J100: 2486124.9 | K100: 2018-03-13 | L100: 142 | M100: INE228I01012
A101: ASAL | B101: EQ | C101: 78.2 | D101: 80 | E101: 77.5 | F101: 78.5 | G101: 78.5 | H101: 78.2 | I101: 8651 | J101: 680839.4 | K101: 2018-03-13 | L101: 118 | M101: INE900C01027
A102: ASHAPURMIN | B102: EQ | C102: 67.95 | D102: 71.7 | E102: 67.6 | F102: 70.3 | G102: 71 | H102: 68.05 | I102: 206296 | J102: 14420486.7 | K102: 2018-03-13 | L102: 1230 | M102: INE348A01023
A103: ASHIANA | B103: EQ | C103: 156.6 | D103: 163.5 | E103: 155.75 | F103: 161.1 | G103: 162.45 | H103: 155.7 | I103: 65936 | J103: 10573918.8 | K103: 2018-03-13 | L103: 1128 | M103: INE365D01021
A104: ASHIMASYN | B104: EQ | C104: 27 | D104: 27.35 | E104: 26.05 | F104: 26.6 | G104: 27.05 | H104: 26.7 | I104: 229826 | J104: 6133380.45 | K104: 2018-03-13 | L104: 1006 | M104: INE440A01010
A105: ASHOKA | B105: EQ | C105: 230 | D105: 231.9 | E105: 226.7 | F105: 230.05 | G105: 230 | H105: 226.7 | I105: 604708 | J105: 139049150.4 | K105: 2018-03-13 | L105: 6095 | M105: INE442H01029
A106: ASHOKLEY | B106: EQ | C106: 145.8 | D106: 150.45 | E106: 143.8 | F106: 149.9 | G106: 150.05 | H106: 145.4 | I106: 24601040 | J106: 3632660622 | K106: 2018-03-13 | L106: 75761 | M106: INE208A01029
A107: ASIANPAINT | B107: EQ | C107: 1125.2 | D107: 1143 | E107: 1125.2 | F107: 1140.3 | G107: 1142 | H107: 1131.5 | I107: 711550 | J107: 810304574.1 | K107: 2018-03-13 | L107: 36146 | M107: INE021A01026
A108: ASIANTILES | B108: EQ | C108: 466 | D108: 484 | E108: 465 | F108: 470.85 | G108: 470.4 | H108: 466 | I108: 38940 | J108: 18402204.35 | K108: 2018-03-13 | L108: 1735 | M108: INE022I01019
A109: ASPINWALL | B109: EQ | C109: 387.25 | D109: 402 | E109: 387.25 | F109: 391.4 | G109: 391 | H109: 389.25 | I109: 1160 | J109: 462148.8 | K109: 2018-03-13 | L109: 45 | M109: INE991I01015
A110: ASSAMCO | B110: EQ | C110: 4.35 | D110: 4.55 | E110: 4.3 | F110: 4.35 | G110: 4.45 | H110: 4.4 | I110: 188802 | J110: 829649.25 | K110: 2018-03-13 | L110: 163 | M110: INE442A01024
A111: ASTEC | B111: EQ | C111: 570.45 | D111: 578.95 | E111: 550.2 | F111: 564.4 | G111: 565.65 | H111: 567.8 | I111: 15315 | J111: 8651301.45 | K111: 2018-03-13 | L111: 924 | M111: INE563J01010
A112: ASTERDM | B112: EQ | C112: 144.6 | D112: 147.5 | E112: 140 | F112: 144.6 | G112: 144.5 | H112: 145.35 | I112: 492289 | J112: 70946852.75 | K112: 2018-03-13 | L112: 14146 | M112: INE914M01019
A113: ASTRAL | B113: EQ | C113: 868.65 | D113: 884 | E113: 867.05 | F113: 871.75 | G113: 872 | H113: 864.35 | I113: 26058 | J113: 22756372.05 | K113: 2018-03-13 | L113: 1269 | M113: INE006I01046
A114: ASTRAMICRO | B114: EQ | C114: 86.25 | D114: 87.6 | E114: 84.65 | F114: 85.95 | G114: 85.8 | H114: 85.95 | I114: 290843 | J114: 25140447.2 | K114: 2018-03-13 | L114: 2024 | M114: INE386C01029
A115: ASTRAZEN | B115: EQ | C115: 980.6 | D115: 980.6 | E115: 968.05 | F115: 969.95 | G115: 970 | H115: 975.95 | I115: 1474 | J115: 1436184.75 | K115: 2018-03-13 | L115: 176 | M115: INE203A01020
A116: ASTRON | B116: EQ | C116: 119.6 | D116: 120.5 | E116: 117.85 | F116: 118.4 | G116: 118.5 | H116: 118.8 | I116: 135634 | J116: 16140886.95 | K116: 2018-03-13 | L116: 1616 | M116: INE646X01014
A117: ATFL | B117: EQ | C117: 629.55 | D117: 639 | E117: 622 | F117: 635.4 | G117: 638.75 | H117: 624.3 | I117: 2342 | J117: 1479084.2 | K117: 2018-03-13 | L117: 249 | M117: INE209A01019
A118: ATLANTA | B118: EQ | C118: 83.4 | D118: 85.35 | E118: 83 | F118: 83.7 | G118: 83.6 | H118: 82.85 | I118: 173935 | J118: 14618222.2 | K118: 2018-03-13 | L118: 1112 | M118: INE285H01022
A119: ATUL | B119: EQ | C119: 2695 | D119: 2695 | E119: 2601 | F119: 2629.8 | G119: 2617.05 | H119: 2694.05 | I119: 2427 | J119: 6441027.6 | K119: 2018-03-13 | L119: 512 | M119: INE100A01010
A120: ATULAUTO | B120: EQ | C120: 426.2 | D120: 437.6 | E120: 426.2 | F120: 435.45 | G120: 432.3 | H120: 432.95 | I120: 14964 | J120: 6498352 | K120: 2018-03-13 | L120: 838 | M120: INE951D01028
A121: AUBANK | B121: EQ | C121: 584.9 | D121: 592.5 | E121: 576.95 | F121: 583.35 | G121: 581.35 | H121: 581.45 | I121: 84750 | J121: 49514194.3 | K121: 2018-03-13 | L121: 4549 | M121: INE949L01017
A122: AURIONPRO | B122: EQ | C122: 220.9 | D122: 224 | E122: 218 | F122: 218.9 | G122: 219.05 | H122: 218.9 | I122: 114239 | J122: 25206482.65 | K122: 2018-03-13 | L122: 2031 | M122: INE132H01018
A123: AUROPHARMA | B123: EQ | C123: 581.9 | D123: 588.35 | E123: 577.55 | F123: 581.65 | G123: 581.35 | H123: 582.85 | I123: 2285767 | J123: 1331280609 | K123: 2018-03-13 | L123: 43985 | M123: INE406A01037
A124: AUSOMENT | B124: EQ | C124: 72.3 | D124: 77.55 | E124: 72 | F124: 74.4 | G124: 73.65 | H124: 73.35 | I124: 67639 | J124: 5094865.5 | K124: 2018-03-13 | L124: 753 | M124: INE218C01016
A125: AUTOAXLES | B125: EQ | C125: 1489 | D125: 1504.95 | E125: 1457.55 | F125: 1479.8 | G125: 1480.5 | H125: 1475.1 | I125: 4962 | J125: 7361737.7 | K125: 2018-03-13 | L125: 616 | M125: INE449A01011
A126: AUTOIND | B126: EQ | C126: 71.95 | D126: 73.95 | E126: 71.1 | F126: 72.1 | G126: 71.15 | H126: 72.55 | I126: 56795 | J126: 4126700.35 | K126: 2018-03-13 | L126: 397 | M126: INE718H01014
A127: AUTOLITIND | B127: EQ | C127: 63 | D127: 67.95 | E127: 63 | F127: 66.7 | G127: 66.55 | H127: 65.45 | I127: 6827 | J127: 455547.6 | K127: 2018-03-13 | L127: 134 | M127: INE448A01013
A128: AVADHSUGAR | B128: EQ | C128: 530 | D128: 538.7 | E128: 511.6 | F128: 521.8 | G128: 518 | H128: 523.9 | I128: 57589 | J128: 30190036.25 | K128: 2018-03-13 | L128: 1957 | M128: INE349W01017
A129: AVANTIFEED | B129: EQ | C129: 2299.85 | D129: 2486.45 | E129: 2290 | F129: 2450.5 | G129: 2458 | H129: 2283.55 | I129: 305626 | J129: 740302488.5 | K129: 2018-03-13 | L129: 29690 | M129: INE871C01020
A130: AVTNPL | B130: EQ | C130: 38.6 | D130: 40.9 | E130: 38.55 | F130: 39.85 | G130: 40.3 | H130: 38.9 | I130: 117453 | J130: 4681366.15 | K130: 2018-03-13 | L130: 904 | M130: INE488D01021
A131: AXISBANK | B131: EQ | C131: 517.1 | D131: 534.95 | E131: 514.65 | F131: 531.5 | G131: 531.2 | H131: 519.2 | I131: 7846232 | J131: 4153683863 | K131: 2018-03-13 | L131: 79834 | M131: INE238A01034
A132: AXISCADES | B132: EQ | C132: 147.45 | D132: 149.2 | E132: 142.6 | F132: 145.4 | G132: 144 | H132: 147.85 | I132: 147755 | J132: 21482359.6 | K132: 2018-03-13 | L132: 1983 | M132: INE555B01013
A133: AXISGOLD | B133: EQ | C133: 2656.05 | D133: 2678.8 | E133: 2656.05 | F133: 2660 | G133: 2660 | H133: 2656.5 | I133: 17 | J133: 45345.8 | K133: 2018-03-13 | L133: 13 | M133: INF846K01347
A134: AXISNIFTY | B134: EQ | C134: 1050 | D134: 1050 | E134: 1046.59 | F134: 1046.59 | G134: 1046.59 | H134: 1042 | I134: 5 | J134: 5243.74 | K134: 2018-03-13 | L134: 3 | M134: INF846K01ZL0
A135: AYMSYNTEX | B135: EQ | C135: 61.95 | D135: 62.7 | E135: 61 | F135: 61.55 | G135: 62 | H135: 61.2 | I135: 17235 | J135: 1070843.7 | K135: 2018-03-13 | L135: 122 | M135: INE193B01039
A136: BAFNAPHARM | B136: EQ | C136: 25.3 | D136: 25.4 | E136: 25 | F136: 25.05 | G136: 25.05 | H136: 24.75 | I136: 11804 | J136: 297000.65 | K136: 2018-03-13 | L136: 58 | M136: INE878I01014
A137: BAGFILMS | B137: EQ | C137: 5.3 | D137: 5.4 | E137: 5.2 | F137: 5.3 | G137: 5.4 | H137: 5.4 | I137: 80001 | J137: 422996.45 | K137: 2018-03-13 | L137: 138 | M137: INE116D01028
A138: BAJAJ-AUTO | B138: EQ | C138: 2959 | D138: 3004 | E138: 2952.95 | F138: 2971.75 | G138: 2968 | H138: 2957.75 | I138: 287288 | J138: 856402363.5 | K138: 2018-03-13 | L138: 18248 | M138: INE917I01010
A139: BAJAJCORP | B139: EQ | C139: 467.9 | D139: 475.3 | E139: 463.25 | F139: 466.05 | G139: 468.95 | H139: 466.2 | I139: 67727 | J139: 31609817.8 | K139: 2018-03-13 | L139: 1954 | M139: INE933K01021
A140: BAJAJELEC | B140: EQ | C140: 578 | D140: 624 | E140: 564.7 | F140: 611.7 | G140: 610.5 | H140: 576.55 | I140: 1321940 | J140: 796899977.5 | K140: 2018-03-13 | L140: 27097 | M140: INE193E01025
A141: BAJAJFINSV | B141: EQ | C141: 5039 | D141: 5119.95 | E141: 5016.6 | F141: 5098.4 | G141: 5104 | H141: 5040.05 | I141: 92570 | J141: 470772050.7 | K141: 2018-03-13 | L141: 9972 | M141: INE918I01018
A142: BAJAJHIND | B142: EQ | C142: 10 | D142: 10.35 | E142: 9.8 | F142: 10.1 | G142: 10.1 | H142: 10.05 | I142: 2640608 | J142: 26828908.1 | K142: 2018-03-13 | L142: 4107 | M142: INE306A01021
A143: BAJAJHLDNG | B143: EQ | C143: 2735.05 | D143: 2743.8 | E143: 2704 | F143: 2706.3 | G143: 2705 | H143: 2745.35 | I143: 8989 | J143: 24420386.6 | K143: 2018-03-13 | L143: 2174 | M143: INE118A01012
A144: BAJFINANCE | B144: EQ | C144: 1665.5 | D144: 1698.85 | E144: 1663.6 | F144: 1680.7 | G144: 1681 | H144: 1665.25 | I144: 820802 | J144: 1383160629 | K144: 2018-03-13 | L144: 29990 | M144: INE296A01024
A145: BALAJITELE | B145: EQ | C145: 129 | D145: 138.9 | E145: 128.45 | F145: 137.05 | G145: 138.5 | H145: 130.4 | I145: 315577 | J145: 42301295.35 | K145: 2018-03-13 | L145: 2336 | M145: INE794B01026
A146: BALAMINES | B146: EQ | C146: 574.95 | D146: 595 | E146: 568.55 | F146: 580.95 | G146: 583 | H146: 572.65 | I146: 55774 | J146: 32571552.75 | K146: 2018-03-13 | L146: 2115 | M146: INE050E01027
A147: BALKRISHNA | B147: EQ | C147: 70.15 | D147: 71.85 | E147: 68.4 | F147: 69.6 | G147: 69.6 | H147: 68.6 | I147: 4415 | J147: 308795.5 | K147: 2018-03-13 | L147: 67 | M147: INE875R01011
A148: BALKRISIND | B148: EQ | C148: 1038 | D148: 1052 | E148: 1036.65 | F148: 1049.7 | G148: 1050 | H148: 1042.55 | I148: 255010 | J148: 266546393.9 | K148: 2018-03-13 | L148: 12065 | M148: INE787D01026
A149: BALLARPUR | B149: EQ | C149: 12.95 | D149: 13.3 | E149: 12.7 | F149: 13.05 | G149: 13.15 | H149: 12.85 | I149: 1630197 | J149: 21217353.2 | K149: 2018-03-13 | L149: 1013 | M149: INE294A01037
A150: BALMLAWRIE | B150: EQ | C150: 224.15 | D150: 228.4 | E150: 223.5 | F150: 224.15 | G150: 224.5 | H150: 225.9 | I150: 54085 | J150: 12201771.9 | K150: 2018-03-13 | L150: 1192 | M150: INE164A01016
A151: BALPHARMA | B151: EQ | C151: 90.05 | D151: 92 | E151: 89.65 | F151: 90.35 | G151: 90.1 | H151: 90 | I151: 22475 | J151: 2041424.15 | K151: 2018-03-13 | L151: 476 | M151: INE083D01012
A152: BALRAMCHIN | B152: EQ | C152: 86.5 | D152: 91.7 | E152: 84.55 | F152: 90.25 | G152: 91.65 | H152: 86.9 | I152: 5805539 | J152: 513094918.4 | K152: 2018-03-13 | L152: 30828 | M152: INE119A01028
A153: BANARBEADS | B153: EQ | C153: 61.4 | D153: 61.4 | E153: 58.3 | F153: 58.4 | G153: 59.95 | H153: 59.35 | I153: 819 | J153: 48310.7 | K153: 2018-03-13 | L153: 20 | M153: INE655B01011
A154: BANARISUG | B154: EQ | C154: 1570.15 | D154: 1619.9 | E154: 1570.15 | F154: 1604 | G154: 1604 | H154: 1597.8 | I154: 2114 | J154: 3378865.95 | K154: 2018-03-13 | L154: 111 | M154: INE459A01010
A155: BANCOINDIA | B155: EQ | C155: 220.2 | D155: 220.35 | E155: 217.5 | F155: 217.95 | G155: 218.05 | H155: 219 | I155: 44833 | J155: 9808306.7 | K155: 2018-03-13 | L155: 1002 | M155: INE213C01025
A156: BANG | B156: EQ | C156: 27.3 | D156: 29.4 | E156: 27.1 | F156: 27.55 | G156: 27.5 | H156: 28.1 | I156: 8165 | J156: 233357.35 | K156: 2018-03-13 | L156: 87 | M156: INE863I01016
A157: BANKBARODA | B157: EQ | C157: 132.15 | D157: 144.3 | E157: 131.05 | F157: 141.55 | G157: 140.85 | H157: 132.1 | I157: 31216963 | J157: 4378227091 | K157: 2018-03-13 | L157: 117817 | M157: INE028A01039
A158: BANKBEES | B158: EQ | C158: 2497 | D158: 2534.5 | E158: 2490.5 | F158: 2508.37 | G158: 2503.8 | H158: 2498.77 | I158: 16474 | J158: 41404852.25 | K158: 2018-03-13 | L158: 810 | M158: INF732E01078
A159: BANKINDIA | B159: EQ | C159: 94.95 | D159: 109.35 | E159: 94.1 | F159: 102.15 | G159: 101.8 | H159: 95.1 | I159: 68002667 | J159: 7102470338 | K159: 2018-03-13 | L159: 192187 | M159: INE084A01016
A160: BANSWRAS | B160: EQ | C160: 103 | D160: 108.7 | E160: 103 | F160: 104.8 | G160: 104.5 | H160: 104.65 | I160: 14292 | J160: 1516671.45 | K160: 2018-03-13 | L160: 152 | M160: INE629D01012
A161: BARTRONICS | B161: EQ | C161: 11.7 | D161: 12.2 | E161: 11.7 | F161: 11.95 | G161: 11.9 | H161: 11.95 | I161: 31468 | J161: 376102.3 | K161: 2018-03-13 | L161: 123 | M161: INE855F01034
A162: BASF | B162: EQ | C162: 2092.2 | D162: 2092.2 | E162: 2036 | F162: 2040.65 | G162: 2044 | H162: 2083.9 | I162: 8700 | J162: 17896115.75 | K162: 2018-03-13 | L162: 1113 | M162: INE373A01013
A163: BASML | B163: EQ | C163: 269 | D163: 277.95 | E163: 251 | F163: 265.35 | G163: 265 | H163: 262.25 | I163: 726 | J163: 191864.6 | K163: 2018-03-13 | L163: 63 | M163: INE186H01014
A164: BATAINDIA | B164: EQ | C164: 701.3 | D164: 717.45 | E164: 701.3 | F164: 715.35 | G164: 713.6 | H164: 710.9 | I164: 566988 | J164: 403727223.3 | K164: 2018-03-13 | L164: 20575 | M164: INE176A01028
A165: BAYERCROP | B165: EQ | C165: 4051.05 | D165: 4155 | E165: 4051.05 | F165: 4133.5 | G165: 4154.95 | H165: 4103.8 | I165: 7360 | J165: 30335177.9 | K165: 2018-03-13 | L165: 1713 | M165: INE462A01022
A166: BBL | B166: EQ | C166: 1561.95 | D166: 1611 | E166: 1530.05 | F166: 1561.05 | G166: 1562 | H166: 1550.4 | I166: 29313 | J166: 46279449.45 | K166: 2018-03-13 | L166: 1988 | M166: INE464A01028
A167: BBTC | B167: EQ | C167: 1345 | D167: 1376 | E167: 1331.5 | F167: 1346.75 | G167: 1347 | H167: 1349.9 | I167: 130101 | J167: 175775583.1 | K167: 2018-03-13 | L167: 10633 | M167: INE050A01025
A168: BEARDSELL | B168: EQ | C168: 53.05 | D168: 53.95 | E168: 52.1 | F168: 53 | G168: 53 | H168: 52.55 | I168: 387 | J168: 20467.55 | K168: 2018-03-13 | L168: 21 | M168: INE520H01022
A169: BEDMUTHA | B169: EQ | C169: 20.5 | D169: 21 | E169: 19.7 | F169: 20 | G169: 20.1 | H169: 20.8 | I169: 19588 | J169: 394329.6 | K169: 2018-03-13 | L169: 212 | M169: INE844K01012
A170: BEL | B170: EQ | C170: 150 | D170: 152.2 | E170: 149.6 | F170: 151.55 | G170: 151.5 | H170: 150.15 | I170: 4155454 | J170: 627030825.6 | K170: 2018-03-13 | L170: 22085 | M170: INE263A01024
A171: BEML | B171: EQ | C171: 1122.55 | D171: 1136.15 | E171: 1101 | F171: 1106.6 | G171: 1103.05 | H171: 1122.55 | I171: 878793 | J171: 980733416.8 | K171: 2018-03-13 | L171: 27165 | M171: INE258A01016
A172: BEPL | B172: EQ | C172: 161.95 | D172: 170.4 | E172: 160.85 | F172: 169.5 | G172: 170.4 | H172: 162.3 | I172: 813407 | J172: 135462718.8 | K172: 2018-03-13 | L172: 9722 | M172: INE922A01025
A173: BERGEPAINT | B173: EQ | C173: 244.8 | D173: 248.15 | E173: 244.7 | F173: 246.8 | G173: 247 | H173: 245.9 | I173: 382305 | J173: 94217957.35 | K173: 2018-03-13 | L173: 15024 | M173: INE463A01038
A174: BFINVEST | B174: EQ | C174: 297.05 | D174: 311 | E174: 295.1 | F174: 301.15 | G174: 301.15 | H174: 297 | I174: 155831 | J174: 47312771.95 | K174: 2018-03-13 | L174: 4149 | M174: INE878K01010
A175: BFUTILITIE | B175: EQ | C175: 401.9 | D175: 418.9 | E175: 399 | F175: 408.45 | G175: 408.55 | H175: 402.95 | I175: 614329 | J175: 251481001.6 | K175: 2018-03-13 | L175: 12991 | M175: INE243D01012
A176: BGRENERGY | B176: EQ | C176: 105.65 | D176: 109.95 | E176: 105.6 | F176: 109.05 | G176: 108.1 | H176: 105.6 | I176: 71085 | J176: 7718792.6 | K176: 2018-03-13 | L176: 1249 | M176: INE661I01014
A177: BHAGERIA | B177: EQ | C177: 286.5 | D177: 295 | E177: 285 | F177: 287 | G177: 287.3 | H177: 286.2 | I177: 16498 | J177: 4764311.65 | K177: 2018-03-13 | L177: 686 | M177: INE354C01027
A178: BHAGYANGR | B178: EQ | C178: 44.95 | D178: 49.85 | E178: 43.3 | F178: 48.95 | G178: 48.45 | H178: 45.3 | I178: 547503 | J178: 25910720.05 | K178: 2018-03-13 | L178: 4423 | M178: INE458B01036
A179: BHAGYAPROP | B179: EQ | C179: 21.1 | D179: 21.1 | E179: 19.45 | F179: 20.05 | G179: 20 | H179: 20.8 | I179: 1246 | J179: 24888.05 | K179: 2018-03-13 | L179: 16 | M179: INE363W01018
A180: BHANDARI | B180: EQ | C180: 3.05 | D180: 3.15 | E180: 2.9 | F180: 3.1 | G180: 3.15 | H180: 3 | I180: 141400 | J180: 442190.75 | K180: 2018-03-13 | L180: 185 | M180: INE474E01029
A181: BHARATFIN | B181: EQ | C181: 1066.75 | D181: 1074 | E181: 1051.3 | F181: 1056.6 | G181: 1055.65 | H181: 1066.9 | I181: 692305 | J181: 736178711.1 | K181: 2018-03-13 | L181: 18337 | M181: INE180K01011
A182: BHARATFORG | B182: EQ | C182: 743 | D182: 750.2 | E182: 729 | F182: 737.75 | G182: 740.85 | H182: 735.6 | I182: 1032311 | J182: 764417339.1 | K182: 2018-03-13 | L182: 25146 | M182: INE465A01025
A183: BHARATGEAR | B183: EQ | C183: 193.35 | D183: 194.7 | E183: 182.5 | F183: 184.75 | G183: 184.55 | H183: 189.85 | I183: 193949 | J183: 36764454.25 | K183: 2018-03-13 | L183: 4091 | M183: INE561C01019
A184: BHARATIWIN | B184: EQ | C184: 35.55 | D184: 36.23 | E184: 35.55 | F184: 36.04 | G184: 36.15 | H184: 35.83 | I184: 536240 | J184: 19340667.65 | K184: 2018-03-13 | L184: 1055 | M184: INF109KB15Y7
A185: BHARATRAS | B185: EQ | C185: 4491.95 | D185: 4510 | E185: 4366 | F185: 4489.7 | G185: 4510 | H185: 4430.7 | I185: 505 | J185: 2251890.85 | K185: 2018-03-13 | L185: 161 | M185: INE838B01013
A186: BHARATWIRE | B186: EQ | C186: 117.35 | D186: 121 | E186: 115.6 | F186: 117.25 | G186: 117.5 | H186: 116.95 | I186: 223499 | J186: 26321254.05 | K186: 2018-03-13 | L186: 878 | M186: INE316L01019
A187: BHARTIARTL | B187: EQ | C187: 423 | D187: 429.8 | E187: 420.15 | F187: 426.3 | G187: 427.5 | H187: 421.55 | I187: 5148679 | J187: 2186404117 | K187: 2018-03-13 | L187: 51238 | M187: INE397D01024
A188: BHEL | B188: EQ | C188: 86.9 | D188: 87.8 | E188: 86.3 | F188: 86.9 | G188: 87 | H188: 86.95 | I188: 8051617 | J188: 700284163.6 | K188: 2018-03-13 | L188: 25332 | M188: INE257A01026
A189: BHUSANSTL | B189: EQ | C189: 41.9 | D189: 44.45 | E189: 41.05 | F189: 42.3 | G189: 42.3 | H189: 42.25 | I189: 3647660 | J189: 154843306.9 | K189: 2018-03-13 | L189: 13797 | M189: INE824B01021
A190: BIGBLOC | B190: EQ | C190: 165.5 | D190: 174.9 | E190: 155.05 | F190: 167.2 | G190: 168 | H190: 164.15 | I190: 85699 | J190: 14195006.1 | K190: 2018-03-13 | L190: 2123 | M190: INE412U01017
A191: BIL | B191: EQ | C191: 410 | D191: 416 | E191: 403 | F191: 414.5 | G191: 416 | H191: 411.2 | I191: 5875 | J191: 2415926.8 | K191: 2018-03-13 | L191: 203 | M191: INE828A01016
A192: BILENERGY | B192: EQ | C192: 1.1 | D192: 1.1 | E192: 1 | F192: 1.05 | G192: 1.1 | H192: 1.05 | I192: 743173 | J192: 804816.25 | K192: 2018-03-13 | L192: 297 | M192: INE607L01029
A193: BILPOWER | B193: EQ | C193: 1.8 | D193: 1.8 | E193: 1.8 | F193: 1.8 | G193: 1.8 | H193: 1.8 | I193: 100 | J193: 180 | K193: 2018-03-13 | L193: 2 | M193: INE952D01018
A194: BINANIIND | B194: EQ | C194: 97.05 | D194: 100.75 | E194: 95.8 | F194: 98.75 | G194: 98.8 | H194: 97.05 | I194: 51797 | J194: 5106412.3 | K194: 2018-03-13 | L194: 642 | M194: INE071A01013
A195: BINDALAGRO | B195: EQ | C195: 27.5 | D195: 28.1 | E195: 27.1 | F195: 27.4 | G195: 27.65 | H195: 27.2 | I195: 52217 | J195: 1438960.2 | K195: 2018-03-13 | L195: 240 | M195: INE143A01010
A196: BIOCON | B196: EQ | C196: 588.2 | D196: 610.35 | E196: 582.3 | F196: 603.8 | G196: 603.5 | H196: 595.25 | I196: 3084553 | J196: 1845447239 | K196: 2018-03-13 | L196: 42864 | M196: INE376G01013
A197: BIRLACABLE | B197: EQ | C197: 65.7 | D197: 65.7 | E197: 63 | F197: 64.7 | G197: 64.7 | H197: 63.6 | I197: 18155 | J197: 1167829.65 | K197: 2018-03-13 | L197: 216 | M197: INE800A01015
A198: BIRLACORPN | B198: EQ | C198: 795 | D198: 809 | E198: 777.1 | F198: 781.5 | G198: 784.5 | H198: 802 | I198: 38037 | J198: 30171686.4 | K198: 2018-03-13 | L198: 2657 | M198: INE340A01012
A199: BIRLAMONEY | B199: EQ | C199: 61.9 | D199: 65.9 | E199: 60.75 | F199: 64.4 | G199: 64 | H199: 61.9 | I199: 123192 | J199: 7802587.5 | K199: 2018-03-13 | L199: 1393 | M199: INE865C01022
A200: BKMINDST | B200: EQ | C200: 28.9 | D200: 30.2 | E200: 28.9 | F200: 30.05 | G200: 30.1 | H200: 29.2 | I200: 6996 | J200: 210199.75 | K200: 2018-03-13 | L200: 33 | M200: INE831Q01016
... 1326 more rows
